Ref No,Fund Type,Dept,Cost Centre Description    ,Description    ,Creditor Name    ,GL Code Net Amount,Payment date        
2,Revenue,CCHD,Breakthrough and Inclusion Work,Other Supplies & Services,121Turnaround Ltd,4063.26, 09-Jan-2014
3,Revenue,CCHD,Supporting People Programme,Grants to Voluntary Bodies,1625 Independent People,17380, 31-Jan-2014
4,Revenue,CCHD,Community Support - North,Preventative Assistance,1st Choice Removals & Storage Limited,840, 16-Jan-2014
5,Revenue,CCHD,Home Care - Elderly - South,Other Small Contracts,3 Trees Community Support Ltd,95.52, 10-Jan-2014
6,Revenue,CCHD,Home Care - Elderly - North,Other Small Contracts,3 Trees Community Support Ltd,1922.34, 10-Jan-2014
7,Revenue,CCHD,Day Care - North,Private & Voluntary Day Care,3 Trees Community Support Ltd,47.76, 10-Jan-2014
8,Revenue,CCHD,Home Care - Elderly - South,Other Small Contracts,3 Trees Community Support Ltd,95.52, 10-Jan-2014
9,Revenue,CCHD,Home Care - Elderly - North,Other Small Contracts,3 Trees Community Support Ltd,1906.42, 10-Jan-2014
10,Revenue,CCHD,Day Care - North,Private & Voluntary Day Care,3 Trees Community Support Ltd,47.76, 10-Jan-2014
11,Revenue,CCHD,Home Care - Elderly - North,Other Small Contracts,3 Trees Community Support Ltd,2708.94, 13-Jan-2014
12,Revenue,CCHD,Day Care - North,Private & Voluntary Day Care,3 Trees Community Support Ltd,47.76, 13-Jan-2014
13,Revenue,CCHD,Home Care - Elderly - South,Other Small Contracts,3 Trees Community Support Ltd,191.04, 17-Jan-2014
14,Revenue,CCHD,Home Care - Elderly - North,Other Small Contracts,3 Trees Community Support Ltd,2380.04, 17-Jan-2014
15,Revenue,CCHD,Home Care - Elderly - South,Other Small Contracts,3 Trees Community Support Ltd,95.52, 17-Jan-2014
16,Revenue,CCHD,Home Care - Elderly - North,Other Small Contracts,3 Trees Community Support Ltd,1946.22, 17-Jan-2014
17,Revenue,CCHD,Day Care - North,Private & Voluntary Day Care,3 Trees Community Support Ltd,47.76, 17-Jan-2014
18,Revenue,CCHD,Home Care - Elderly - South,Other Small Contracts,3 Trees Community Support Ltd,99.5, 22-Jan-2014
19,Revenue,CCHD,Home Care - Elderly - North,Other Small Contracts,3 Trees Community Support Ltd,2467.6, 22-Jan-2014
20,Revenue,CCHD,Day Care - North,Private & Voluntary Day Care,3 Trees Community Support Ltd,47.76, 22-Jan-2014
21,Revenue,CCHD,Supported Living - South,Private & Voluntary Home Care,3 Trees Community Support Ltd,722.45, 07-Jan-2014
22,Revenue,CCHD,Supported Living - South,Private & Voluntary Home Care,3 Trees Community Support Ltd,664.87, 21-Jan-2014
23,Revenue,CCHD,Supported Living - South,Private & Voluntary Home Care,3 Trees Community Support Ltd,1666.87, 22-Jan-2014
24,Revenue,CCHD,Purchase of Non-Res Care - North,Private & Voluntary Day Care,3 Trees Community Support Ltd,3464.3, 20-Jan-2014
25,Revenue,CCHD,Purchase of Non-Res Care - North,Private & Voluntary Day Care,3 Trees Community Support Ltd,1503.6, 21-Jan-2014
26,Revenue,CCHD,Purchase of Non-Res Care - North,Private & Voluntary Day Care,3 Trees Community Support Ltd,1279.77, 20-Jan-2014
27,Revenue,CCHD,Purchase of Non-Res Care - North,Private & Voluntary Day Care,3 Trees Community Support Ltd,1179.26, 20-Jan-2014
28,Revenue,CCHD,Purchase of Non-Res Care - North,Private & Voluntary Day Care,3 Trees Community Support Ltd,5249.7, 10-Jan-2014
29,Revenue,CCHD,Purchase of Non-Res Care - South,Private & Voluntary Day Care,3 Trees Community Support Ltd,2802.52, 22-Jan-2014
30,Revenue,CCHD,Supported Living - South,Private & Voluntary Home Care,3 Trees Community Support Ltd,9498.1, 13-Jan-2014
31,Revenue,CCHD,Supported Living - North,Private & Voluntary Home Care,3 Trees Community Support Ltd,9541, 10-Jan-2014
32,Revenue,CCHD,Supported Living - North,Private & Voluntary Home Care,3 Trees Community Support Ltd,10085.17, 21-Jan-2014
33,Revenue,CCHD,Swift Dump Code,Other Supplies & Services,5Th Floor Harlech Court,77200, 21-Jan-2014
34,Revenue,CCHD,Direct Payments - Phys Dis - North,Grants to Voluntary Bodies,A4E Management Limited,23434.92, 17-Jan-2014
35,Revenue,CCHD,Bed purchasing - Phys Dis - North,Permanent Nursing,ABI Development Limited,6874.36, 28-Jan-2014
36,Revenue,CCHD,Swift Dump Code,Other Supplies & Services,ABI Development Limited,6800, 21-Jan-2014
37,Revenue,CCHD,Bed and Breakfast,Storage & Removal,Ablemove-Wottons,420, 09-Jan-2014
38,Revenue,CCHD,Day Care - North,Private & Voluntary Day Care,About Me Care and Support Limited,1079.4, 14-Jan-2014
39,Revenue,CCHD,Day Care - North,Private & Voluntary Day Care,About Me Care and Support Limited,514.25, 14-Jan-2014
40,Revenue,CCHD,Day Care - South,Private & Voluntary Day Care,About Me Care and Support Limited,905.37, 09-Jan-2014
41,Revenue,CCHD,Bed purchasing - Under 65s PWLD - North,Permanent Residential,Acorn Care Providers,5744.4, 28-Jan-2014
42,Revenue,CCHD,Swift Dump Code,Other Supplies & Services,Acorn Care Providers,5700, 21-Jan-2014
43,Revenue,CCHD,Day Care - North,Private & Voluntary Day Care,Action on Hearing Loss,538.4, 14-Jan-2014
44,Revenue,CCHD,Swift Dump Code,Other Supplies & Services,Age Concern,4900, 21-Jan-2014
45,Revenue,CCHD,Swift Dump Code,Other Supplies & Services,Age Concern,2000, 21-Jan-2014
46,Revenue,CCHD,Home Care - Elderly - South,Other Small Contracts,Agincare Chippenham,1192.55, 17-Jan-2014
47,Revenue,CCHD,Home Care - Elderly - South,Other Small Contracts,Agincare Chippenham,1227.74, 17-Jan-2014
48,Revenue,CCHD,Home Care - Elderly - South,Other Small Contracts,Agincare Chippenham,1075.25, 23-Jan-2014
49,Revenue,CCHD,Home Care - Elderly - South,Other Small Contracts,Agincare Chippenham,1231.65, 17-Jan-2014
50,Revenue,CCHD,Home Care - Elderly - South,Other Small Contracts,Agincare Chippenham,1200.37, 17-Jan-2014
51,Revenue,CCHD,Home Care - Elderly - South,Other Small Contracts,Agincare UK Limited,469.2, 17-Jan-2014
52,Revenue,CCHD,Home Care - Elderly - North,Other Small Contracts,Agincare UK Limited,101.66, 17-Jan-2014
53,Revenue,CCHD,Day Care - South,Private & Voluntary Day Care,Agincare UK Limited,23.46, 17-Jan-2014
54,Revenue,CCHD,Elderly MH Day Care North,Private & Voluntary Day Care,Agincare UK Limited,117.3, 17-Jan-2014
55,Revenue,CCHD,Home Care - Elderly - South,Other Small Contracts,Agincare UK Limited,473.11, 23-Jan-2014
56,Revenue,CCHD,Home Care - Elderly - North,Other Small Contracts,Agincare UK Limited,78.2, 23-Jan-2014
57,Revenue,CCHD,Day Care - South,Private & Voluntary Day Care,Agincare UK Limited,23.46, 23-Jan-2014
58,Revenue,CCHD,Elderly MH Day Care North,Private & Voluntary Day Care,Agincare UK Limited,109.48, 23-Jan-2014
59,Revenue,CCHD,Home Care - Elderly - South,Other Small Contracts,Agincare UK Limited,359.72, 17-Jan-2014
60,Revenue,CCHD,Home Care - Elderly - North,Other Small Contracts,Agincare UK Limited,54.74, 17-Jan-2014
61,Revenue,CCHD,Day Care - South,Private & Voluntary Day Care,Agincare UK Limited,23.46, 17-Jan-2014
62,Revenue,CCHD,Elderly MH Day Care North,Private & Voluntary Day Care,Agincare UK Limited,82.11, 17-Jan-2014
63,Revenue,CCHD,Home Care - Elderly - South,Other Small Contracts,Agincare UK Limited,477.02, 17-Jan-2014
64,Revenue,CCHD,Home Care - Elderly - North,Other Small Contracts,Agincare UK Limited,58.65, 17-Jan-2014
65,Revenue,CCHD,Elderly MH Day Care North,Private & Voluntary Day Care,Agincare UK Limited,54.74, 17-Jan-2014
66,Revenue,CCHD,Home Care - Elderly - South,Other Small Contracts,Agincare UK Limited,430.1, 23-Jan-2014
67,Revenue,CCHD,Home Care - Elderly - North,Other Small Contracts,Agincare UK Limited,70.38, 23-Jan-2014
68,Revenue,CCHD,Elderly MH Day Care North,Private & Voluntary Day Care,Agincare UK Limited,54.74, 23-Jan-2014
69,Revenue,CCHD,S117 Placements PCT,Permanent Residential,Alexandra House,6875.64, 28-Jan-2014
70,Revenue,CCHD,Bed Purchasing - Under 65s PWLD - South,Permanent Residential,Alexandra House,6069, 28-Jan-2014
71,Revenue,CCHD,Section 117 Placements MH Younger,Permanent Residential,Alexandra House,6400.88, 28-Jan-2014
72,Revenue,CCHD,Swift Dump Code,Other Supplies & Services,Alexandra House,6000, 21-Jan-2014
73,Revenue,CCHD,Swift Dump Code,Other Supplies & Services,Alexandra House,13200, 21-Jan-2014
74,Revenue,CCHD,Home Care - Elderly - South,Other Small Contracts,AliMo Care Ltd,1098.58, 03-Jan-2014
75,Revenue,CCHD,Home Care - Elderly - North,Other Small Contracts,AliMo Care Ltd,995.25, 03-Jan-2014
76,Revenue,CCHD,Home Care - Elderly - South,Other Small Contracts,AliMo Care Ltd,859.04, 29-Jan-2014
77,Revenue,CCHD,Home Care - Elderly - North,Other Small Contracts,AliMo Care Ltd,995.26, 29-Jan-2014
78,Revenue,CCHD,Home Care - Elderly - South,Other Small Contracts,AliMo Care Ltd,933.38, 09-Jan-2014
79,Revenue,CCHD,Home Care - Elderly - North,Other Small Contracts,AliMo Care Ltd,995.26, 09-Jan-2014
80,Revenue,CCHD,Home Care - Elderly - South,Other Small Contracts,AliMo Care Ltd,896.21, 16-Jan-2014
81,Revenue,CCHD,Home Care - Elderly - North,Other Small Contracts,AliMo Care Ltd,995.26, 16-Jan-2014
82,Revenue,CCHD,Home Care - Elderly - South,Other Small Contracts,AliMo Care Ltd,718.62, 29-Jan-2014
83,Revenue,CCHD,Home Care - Elderly - North,Other Small Contracts,AliMo Care Ltd,995.26, 29-Jan-2014
84,Revenue,CCHD,Home Care - Elderly - South,Other Small Contracts,AliMo Care Ltd,499.73, 29-Jan-2014
85,Revenue,CCHD,Home Care - Elderly - North,Other Small Contracts,AliMo Care Ltd,995.26, 29-Jan-2014
86,Revenue,CCHD,Home Care - Elderly - South,Other Small Contracts,Allied Healthcare Group,4759.2, 24-Jan-2014
87,Revenue,CCHD,Home Care - Elderly - North,Other Small Contracts,Allied Healthcare Group,8838.52, 24-Jan-2014
88,Revenue,CCHD,Home Care - Elderly - South,Other Small Contracts,Allied Healthcare Group,4645.11, 29-Jan-2014
89,Revenue,CCHD,Home Care - Elderly - North,Other Small Contracts,Allied Healthcare Group,8626.62, 29-Jan-2014
90,Revenue,CCHD,Sexual Health Services - Contraception,Other Supplies & Services,Almondsbury Surgery,960.1, 20-Jan-2014
91,Revenue,CCHD,Bed Purchasing - Southmead Hospital,Permanent Nursing,Ambleside Nusing Ho!,1425.36, 28-Jan-2014
92,Revenue,CCHD,Swift Dump Code,Other Supplies & Services,Ambleside Nusing Ho!,1400, 21-Jan-2014
93,Revenue,CCHD,Tenancy Start Up Scheme,Other Supplies & Services,Anne James Estate Agent,1300, 09-Jan-2014
94,Revenue,CCHD,Bed purchasing - Under 65s PWLD - North,Permanent Residential,Ark Care Homes Ltd,10163.76, 28-Jan-2014
95,Revenue,CCHD,Swift Dump Code,Other Supplies & Services,Ark Care Homes Ltd,10100, 21-Jan-2014
96,Revenue,CCHD,Stop Smoking Services and Interventions,Other Supplies & Services,Asda Stores Limited,620, 27-Jan-2014
97,Revenue,CCHD,Bed Purchasing - Elderly - South,Permanent Residential,Ashbourne House Care Home Limited,1107.96, 28-Jan-2014
98,Revenue,CCHD,Swift Dump Code,Other Supplies & Services,Ashbourne House Care Home Limited,1100, 21-Jan-2014
99,Revenue,CCHD,Home Care - Elderly - South,Other Small Contracts,Ashley Commercial Finance Ltd,1084.2, 10-Jan-2014
100,Revenue,CCHD,Home Care - Elderly - North,Other Small Contracts,Ashley Commercial Finance Ltd,3836.4, 10-Jan-2014
101,Revenue,CCHD,Home Care - Elderly - South,Other Small Contracts,Ashley Commercial Finance Ltd,984.12, 10-Jan-2014
102,Revenue,CCHD,Home Care - Elderly - North,Other Small Contracts,Ashley Commercial Finance Ltd,3594.54, 10-Jan-2014
103,Revenue,CCHD,Home Care - Elderly - South,Other Small Contracts,Ashley Commercial Finance Ltd,767.28, 10-Jan-2014
104,Revenue,CCHD,Home Care - Elderly - North,Other Small Contracts,Ashley Commercial Finance Ltd,2910.66, 10-Jan-2014
105,Revenue,CCHD,Bed purchasing - Under 65s PWLD - North,Permanent Residential,Aspects 2 Limited,6265.24, 28-Jan-2014
106,Revenue,CCHD,Swift Dump Code,Other Supplies & Services,Aspects 2 Limited,6200, 21-Jan-2014
107,Revenue,CCHD,Supporting People Programme,Grants to Voluntary Bodies,Aspects and Milestones Trust,3172.58, 31-Jan-2014
108,Revenue,CCHD,Supporting People Programme,Grants to Voluntary Bodies,Aspects and Milestones Trust,1590.58, 31-Jan-2014
109,Revenue,CCHD,Supporting People Programme,Grants to Voluntary Bodies,Aspects and Milestones Trust,2414.33, 31-Jan-2014
110,Revenue,CCHD,Supported Living - South,Private & Voluntary Home Care,Aspirations Support Bristol Limited,660, 10-Jan-2014
111,Revenue,CCHD,Supported Living - South,Private & Voluntary Home Care,Aspirations Support Bristol Limited,523.9, 13-Jan-2014
112,Revenue,CCHD,Supported Living - South,Private & Voluntary Home Care,Aspirations Support Bristol Limited,3906.27, 13-Jan-2014
113,Revenue,CCHD,Supported Living - South,Private & Voluntary Home Care,Aspirations Support Bristol Limited,3955.31, 13-Jan-2014
114,Revenue,CCHD,Purchase of Non-Res Care - South,Private & Voluntary Day Care,Aspirations Support Bristol Limited,2499.48, 13-Jan-2014
115,Revenue,CCHD,Supported Living - South,Private & Voluntary Home Care,Aspirations Support Bristol Limited,596.44, 13-Jan-2014
116,Revenue,CCHD,Day Care - South,Private & Voluntary Day Care,Aspirations Support Bristol Limited,1431.11, 09-Jan-2014
117,Revenue,CCHD,Bed Purchasing - Under 65s PWLD - South,Permanent Residential,Autism Specialised Care Homes,5584.12, 28-Jan-2014
118,Revenue,CCHD,Swift Dump Code,Other Supplies & Services,Autism Specialised Care Homes,5500, 21-Jan-2014
119,Revenue,CCHD,Purchase of Non-Res Care - North,Private & Voluntary Day Care,Avon Autistic Foundation Limited,2301.6, 17-Jan-2014
120,Revenue,CCHD,Purchase of Non-Res Care - North,Private & Voluntary Day Care,Avon Autistic Foundation Limited,3387.04, 17-Jan-2014
121,Revenue,CCHD,Swift Dump Code,Other Supplies & Services,Bamfield Lodge,1800, 21-Jan-2014
122,Revenue,CCHD,Woodleaze,Operational Staff Pay,Bath & North East Somerset Dist Council,-286.28, 10-Jan-2014
123,Revenue,CCHD,Bed Purchasing - Frenchay Hospital,Permanent Nursing,Bayview Nursing & Residential Home,1463.36, 28-Jan-2014
124,Revenue,CCHD,Swift Dump Code,Other Supplies & Services,Bayview Nursing & Residential Home,1400, 21-Jan-2014
125,Revenue,CCHD,South Glos Users in South Glos Homes,Permanent Nursing,Beaufort Grange Care Home,2462.43, 28-Jan-2014
126,Revenue,CCHD,Bed Purchasing - Elderly - North,Permanent Nursing,Beaufort Grange Care Home,1883.92, 28-Jan-2014
127,Revenue,CCHD,Swift Dump Code,Other Supplies & Services,Beaufort Grange Care Home,6400, 21-Jan-2014
128,Revenue,CCHD,Bed Purchasing - Elderly - North,Permanent Residential,Beaufort House,1801.76, 28-Jan-2014
129,Revenue,CCHD,Bed purchasing - Elderly MH - North,Permanent Residential,Beaufort House,1514.84, 28-Jan-2014
130,Revenue,CCHD,Bed purchasing - Elderly MH - North,Permanent Residential,Beaufort House,1383.68, 28-Jan-2014
131,Revenue,CCHD,Bed Purchasing - Elderly - North,Permanent Residential,Beaufort House,1836.08, 28-Jan-2014
132,Revenue,CCHD,Bed Purchasing - Frenchay Hospital,Permanent Residential,Beaufort House,1285.32, 28-Jan-2014
133,Revenue,CCHD,Bed Purchasing - Elderly - North,Permanent Residential,Beaufort House,1726.68, 28-Jan-2014
134,Revenue,CCHD,Bed Purchasing - Elderly - North,Respite Emergency - Residential,Beaufort House,1160, 28-Jan-2014
135,Revenue,CCHD,Bed purchasing - Elderly MH - North,Permanent Residential,Beaufort House,1684.12, 28-Jan-2014
136,Revenue,CCHD,Bed Purchasing - Elderly - North,Permanent Residential,Beaufort House,1519.32, 28-Jan-2014
137,Revenue,CCHD,Swift Dump Code,Other Supplies & Services,Beaufort House,12300, 21-Jan-2014
138,Revenue,CCHD,Bed purchasing - Elderly PWLD - South,Permanent Residential,Bedrock Lodge,2909.4, 28-Jan-2014
139,Revenue,CCHD,Swift Dump Code,Other Supplies & Services,Bedrock Lodge,2900, 21-Jan-2014
140,Revenue,CCHD,Section 117 Placements MH Younger,Permanent Residential,Bedrock Lodge,1837.68, 28-Jan-2014
141,Revenue,CCHD,Swift Dump Code,Other Supplies & Services,Bedrock Lodge,1800, 21-Jan-2014
142,Revenue,CCHD,Bed Purchasing - Elderly - North,Permanent Nursing,Beech House,2314.84, 28-Jan-2014
143,Revenue,CCHD,Bed Purchasing - Elderly - North,Permanent Residential,Beech House,1885.64, 28-Jan-2014
144,Revenue,CCHD,Bed Purchasing - Elderly - North,Permanent Nursing,Beech House,2095.68, 28-Jan-2014
145,Revenue,CCHD,Bed Purchasing - Elderly - North,Permanent Nursing,Beech House,725.16, 28-Jan-2014
146,Revenue,CCHD,Swift Dump Code,Other Supplies & Services,Beech House,17100, 21-Jan-2014
147,Revenue,CCHD,Bed Purchasing - Elderly - North,Permanent Nursing,Blossom Field,3884.98, 28-Jan-2014
148,Revenue,CCHD,Bed Purchasing - Elderly - North,Permanent Nursing,Blossom Field,1843.72, 28-Jan-2014
149,Revenue,CCHD,Bed Purchasing - Elderly - North,Permanent Nursing,Blossom Field,1911, 28-Jan-2014
150,Revenue,CCHD,Bed Purchasing - Elderly - North,Permanent Nursing,Blossom Field,1096.6, 28-Jan-2014
151,Revenue,CCHD,Bed Purchasing - Elderly - North,Permanent Nursing,Blossom Field,2271, 28-Jan-2014
152,Revenue,CCHD,Bed purchasing - Elderly MH - North,Permanent Nursing,Blossom Field,1400.04, 28-Jan-2014
153,Revenue,CCHD,Bed Purchasing - Elderly - South,Permanent Nursing,Blossom Field,1884.56, 28-Jan-2014
154,Revenue,CCHD,Swift Dump Code,Other Supplies & Services,Blossom Field,21500, 21-Jan-2014
155,Revenue,CCHD,Bed Purchasing - Elderly - South,Permanent Nursing,Blossom Fields,2551.21, 21-Jan-2014
156,Revenue,CCHD,Bed Purchasing - Southmead Hospital,Permanent Nursing,Blossom Fields,2065.21, 21-Jan-2014
157,Revenue,CCHD,South Glos Users in South Glos Homes,Permanent Nursing,Blossom Fields,878.32, 21-Jan-2014
158,Revenue,CCHD,Bed purchasing - Elderly MH - North,Permanent Nursing,Blossom Fields,1544.57, 21-Jan-2014
159,Revenue,CCHD,Bed Purchasing - Elderly - North,Permanent Nursing,Blossom Fields,2551.21, 21-Jan-2014
160,Revenue,CCHD,Bed Purchasing - Southmead Hospital,Permanent Nursing,Blossom Fields,2065.21, 21-Jan-2014
161,Revenue,CCHD,South Glos Users in South Glos Homes,Permanent Nursing,Blossom Fields,878.32, 21-Jan-2014
162,Revenue,CCHD,Bed purchasing - Elderly MH - North,Permanent Nursing,Blossom Fields,1544.57, 21-Jan-2014
163,Revenue,CCHD,Tenancy Start Up Scheme,Other Supplies & Services,Blue Sky,1612.3, 17-Jan-2014
164,Revenue,CCHD,Training - Adult Services,Training Expenses,Bob Dawson,750, 22-Jan-2014
165,Revenue,CCHD,Home Care - Elderly - North,Other Small Contracts,Bradley House Home Care Services,1679.79, 15-Jan-2014
166,Revenue,CCHD,Day Care - North,Private & Voluntary Day Care,Bradley House Home Care Services,101.04, 15-Jan-2014
167,Revenue,CCHD,Home Care - Elderly - North,Other Small Contracts,Bradley House Home Care Services,1738.73, 15-Jan-2014
168,Revenue,CCHD,Day Care - North,Private & Voluntary Day Care,Bradley House Home Care Services,101.04, 15-Jan-2014
169,Revenue,CCHD,Home Care - Elderly - North,Other Small Contracts,Bradley House Home Care Services,1427.19, 15-Jan-2014
170,Revenue,CCHD,Day Care - North,Private & Voluntary Day Care,Bradley House Home Care Services,101.04, 15-Jan-2014
171,Revenue,CCHD,Home Care - Elderly - North,Other Small Contracts,Bradley House Home Care Services,1439.82, 15-Jan-2014
172,Revenue,CCHD,Day Care - North,Private & Voluntary Day Care,Bradley House Home Care Services,101.04, 15-Jan-2014
173,Revenue,CCHD,Home Care - Elderly - North,Other Small Contracts,Bradley House Home Care Services,1789.25, 30-Jan-2014
174,Revenue,CCHD,Day Care - North,Private & Voluntary Day Care,Bradley House Home Care Services,101.04, 30-Jan-2014
175,Revenue,CCHD,Home Care - Elderly - North,Other Small Contracts,Bradley House Home Care Services,1797.67, 30-Jan-2014
176,Revenue,CCHD,Day Care - North,Private & Voluntary Day Care,Bradley House Home Care Services,101.04, 30-Jan-2014
177,Revenue,CCHD,Sexual Health Services - Contraception,Other Supplies & Services,Bradley Stoke Surgery,3892.02, 20-Jan-2014
178,Revenue,CCHD,Alexandra Way,"Provisions (Food, etc)",Brake Bros,697.49, 09-Jan-2014
179,Revenue,CCHD,Alexandra Way,"Provisions (Food, etc)",Brake Bros,616.48, 13-Jan-2014
180,Revenue,CCHD,Alexandra Way,"Provisions (Food, etc)",Brake Bros,691.66, 13-Jan-2014
181,Revenue,CCHD,Woodleaze,"Provisions (Food, etc)",Brake Bros,961.43, 10-Jan-2014
182,Revenue,CCHD,Alexandra Way,"Provisions (Food, etc)",Brake Bros,553.45, 22-Jan-2014
183,Revenue,CCHD,Alexandra Way,"Provisions (Food, etc)",Brake Bros,681.43, 22-Jan-2014
184,Revenue,CCHD,Woodleaze,"Provisions (Food, etc)",Brake Bros,678.58, 22-Jan-2014
185,Revenue,CCHD,Woodleaze,"Provisions (Food, etc)",Brake Bros,690.08, 29-Jan-2014
186,Revenue,CCHD,Swift Dump Code,Other Supplies & Services,Brandon Trust,4700, 21-Jan-2014
187,Revenue,CCHD,Swift Dump Code,Other Supplies & Services,Brandon Trust,44700, 21-Jan-2014
188,Revenue,CCHD,Swift Dump Code,Other Supplies & Services,Brandon Trust,6200, 21-Jan-2014
189,Revenue,CCHD,Swift Dump Code,Other Supplies & Services,Brandon Trust,4700, 21-Jan-2014
190,Revenue,CCHD,Swift Dump Code,Other Supplies & Services,Brandon Trust,25000, 21-Jan-2014
191,Revenue,CCHD,Swift Dump Code,Other Supplies & Services,Brandon Trust,20900, 21-Jan-2014
192,Revenue,CCHD,Swift Dump Code,Other Supplies & Services,Brandon Trust,13300, 21-Jan-2014
193,Revenue,CCHD,Swift Dump Code,Permanent Residential,Bridge House Care Home,4876.98, 28-Jan-2014
194,Revenue,CCHD,Bed Purchasing - Elderly - North,Permanent Residential,Bridge House Care Home,1032.78, 28-Jan-2014
195,Revenue,CCHD,Bed Purchasing - Elderly - North,Permanent Residential,Bridge House Care Home,1150.56, 28-Jan-2014
196,Revenue,CCHD,Swift Dump Code,Other Supplies & Services,Bridge House Care Home,3000, 21-Jan-2014
197,Revenue,CCHD,Bed Purchasing - Elderly MH - South,Permanent Residential,Brightbow,2067.28, 28-Jan-2014
198,Revenue,CCHD,MH Purchasing - Younger,Permanent Residential,Brightbow,1467.4, 28-Jan-2014
199,Revenue,CCHD,Swift Dump Code,Other Supplies & Services,Brightbow,3500, 21-Jan-2014
200,Revenue,CCHD,Training - Adult Services,Training Expenses,Bristol City Council,1125, 02-Jan-2014
201,Revenue,CCHD,Training - Adult Services,Training Expenses,Bristol City Council,1125, 10-Jan-2014
202,Revenue,CCHD,Tenancy Start Up Scheme,Other Supplies & Services,Bristol Homes Estate Agent Ltd,1250, 17-Jan-2014
203,Revenue,CCHD,Supported Living - North,Private & Voluntary Home Care,Bristol Houses UK Limited,1303.14, 09-Jan-2014
204,Revenue,CCHD,Supported Living - North,Private & Voluntary Home Care,Bristol Houses UK Limited,1303.14, 29-Jan-2014
205,Revenue,CCHD,Supported Living - North,Private & Voluntary Home Care,Bristol Houses UK Limited,1056.6, 03-Jan-2014
206,Revenue,CCHD,Supported Living - North,Private & Voluntary Home Care,Bristol Houses UK Limited,1056.6, 29-Jan-2014
207,Revenue,CCHD,Day Care - North,Private & Voluntary Day Care,Bristol Houses UK Limited,1496.85, 14-Jan-2014
208,Revenue,CCHD,Day Care - North,Private & Voluntary Day Care,Bristol Houses UK Limited,1514.46, 29-Jan-2014
209,Revenue,CCHD,Supported Living - North,Private & Voluntary Home Care,Bristol Houses UK Limited,950.94, 03-Jan-2014
210,Revenue,CCHD,Supported Living - North,Private & Voluntary Home Care,Bristol Houses UK Limited,633.96, 29-Jan-2014
211,Revenue,CCHD,Day Care - North,Private & Voluntary Day Care,Bristol Houses UK Limited,2394.96, 14-Jan-2014
212,Revenue,CCHD,Day Care - North,Private & Voluntary Day Care,Bristol Houses UK Limited,2386.16, 29-Jan-2014
213,Revenue,CCHD,Supported Living - North,Private & Voluntary Home Care,Bristol Houses UK Limited,605.6, 07-Jan-2014
214,Revenue,CCHD,Supported Living - North,Private & Voluntary Home Care,Bristol Houses UK Limited,514.76, 29-Jan-2014
215,Revenue,CCHD,Supported Living - North,Private & Voluntary Home Care,Bristol Houses UK Limited,908.4, 07-Jan-2014
216,Revenue,CCHD,Supported Living - North,Private & Voluntary Home Care,Bristol Houses UK Limited,968.96, 29-Jan-2014
217,Revenue,CCHD,Day Care - North,Private & Voluntary Day Care,Bristol Houses UK Limited,726.72, 14-Jan-2014
218,Revenue,CCHD,Day Care - North,Private & Voluntary Day Care,Bristol Houses UK Limited,726.72, 29-Jan-2014
219,Revenue,CCHD,Supported Living - North,Private & Voluntary Home Care,Bristol Houses UK Limited,700.72, 07-Jan-2014
220,Revenue,CCHD,Supported Living - North,Private & Voluntary Home Care,Bristol Houses UK Limited,681.3, 29-Jan-2014
221,Revenue,CCHD,Bed and Breakfast,Bed & Breakfast,Bristol Housing & Support Limited,1120, 27-Jan-2014
222,Revenue,CCHD,Bed and Breakfast,Bed & Breakfast,Bristol Housing & Support Limited,880, 31-Jan-2014
223,Revenue,CCHD,Bed and Breakfast,Bed & Breakfast,Bristol Housing & Support Limited,840, 27-Jan-2014
224,Revenue,CCHD,Bed and Breakfast,Bed & Breakfast,Bristol Housing & Support Limited,840, 27-Jan-2014
225,Revenue,CCHD,Bed and Breakfast,Bed & Breakfast,Bristol Housing & Support Limited,840, 27-Jan-2014
226,Revenue,CCHD,Bed and Breakfast,Bed & Breakfast,Bristol Housing & Support Limited,840, 27-Jan-2014
227,Revenue,CCHD,Woodleaze,Water Charges,Bristol Wessex Billing Services Limited,3536.25, 29-Jan-2014
228,Revenue,CCHD,Day Care - South,Private & Voluntary Day Care,Britannia House,901.6, 28-Jan-2014
229,Revenue,CCHD,Day Care - South,Private & Voluntary Day Care,Britannia House,676.2, 28-Jan-2014
230,Revenue,CCHD,Day Care - North,Private & Voluntary Day Care,Britannia House,901.6, 28-Jan-2014
231,Revenue,CCHD,Day Care - South,Private & Voluntary Day Care,Britannia House,676.2, 28-Jan-2014
232,Revenue,CCHD,Day Care - North,Private & Voluntary Day Care,Britannia House,901.6, 28-Jan-2014
233,Revenue,CCHD,Day Care - South,Private & Voluntary Day Care,Britannia House,563.5, 28-Jan-2014
234,Revenue,CCHD,Day Care - South,Private & Voluntary Day Care,Britannia House,1127, 28-Jan-2014
235,Revenue,CCHD,Home Care - Elderly - South,Other Small Contracts,Britannia House,676.2, 28-Jan-2014
236,Revenue,CCHD,Day Care - South,Private & Voluntary Day Care,Britannia House,676.2, 28-Jan-2014
237,Revenue,CCHD,Day Care - South,Private & Voluntary Day Care,Britannia House,676.2, 28-Jan-2014
238,Revenue,CCHD,Swift Dump Code,Other Supplies & Services,Britannia House,16000, 21-Jan-2014
239,Revenue,CCHD,Supporting People Programme,Grants to Voluntary Bodies,Bromford Housing Group,14050.25, 31-Jan-2014
240,Revenue,CCHD,Bed Purchasing - Elderly - North,Permanent Residential,Brook Lane Residential Home,910.08, 28-Jan-2014
241,Revenue,CCHD,Swift Dump Code,Other Supplies & Services,Brook Lane Residential Home,900, 21-Jan-2014
242,Revenue,CCHD,Home Care - Elderly - North,Private & Voluntary Home Care,Brunelcare,15809.01, 06-Jan-2014
243,Revenue,CCHD,Home Care - Elderly - North,Private & Voluntary Home Care,Brunelcare,15809.01, 13-Jan-2014
244,Revenue,CCHD,Home Care - Elderly - North,Private & Voluntary Home Care,Brunelcare,15809.01, 20-Jan-2014
245,Revenue,CCHD,Home Care - Elderly - North,Private & Voluntary Home Care,Brunelcare,11292.57, 27-Jan-2014
246,Revenue,CCHD,Bed Purchasing - Elderly - South,Permanent Nursing,Brunelcare,15146.4, 29-Jan-2014
247,Revenue,CCHD,Bed Purchasing - Elderly - South,Respite Emergency - Nursing,Brunelcare,2260.1, 29-Jan-2014
248,Revenue,CCHD,Bed Purchasing - Elderly - North,Permanent Nursing,Brunelcare,3244.03, 29-Jan-2014
249,Revenue,CCHD,Bed Purchasing - Frenchay Hospital,Permanent Nursing,Brunelcare,3326.39, 29-Jan-2014
250,Revenue,CCHD,Bed Purchasing - Southmead Hospital,Permanent Nursing,Brunelcare,5772.73, 29-Jan-2014
251,Revenue,CCHD,South Glos Users in South Glos Homes,Permanent Nursing,Brunelcare,10853.53, 29-Jan-2014
252,Revenue,CCHD,Bed Purchasing - Elderly MH - South,Permanent Nursing,Brunelcare,5225.49, 29-Jan-2014
253,Revenue,CCHD,Bed purchasing - Elderly S117 - South,Permanent Nursing,Brunelcare,4575.09, 29-Jan-2014
254,Revenue,CCHD,Bed purchasing - Elderly MH - North,Permanent Nursing,Brunelcare,1560.81, 29-Jan-2014
255,Revenue,CCHD,Bed Purchasing - Elderly S117- North,Permanent Nursing,Brunelcare,2287.54, 29-Jan-2014
256,Revenue,CCHD,Bed Purchasing - Elderly - South,Permanent Nursing,Brunelcare,17820.35, 29-Jan-2014
257,Revenue,CCHD,Bed Purchasing - Elderly - South,Respite Emergency - Nursing,Brunelcare,2192.32, 29-Jan-2014
258,Revenue,CCHD,Bed Purchasing - Elderly - North,Permanent Nursing,Brunelcare,3352.16, 29-Jan-2014
259,Revenue,CCHD,Bed Purchasing - Frenchay Hospital,Permanent Nursing,Brunelcare,3152.27, 29-Jan-2014
260,Revenue,CCHD,Bed Purchasing - Southmead Hospital,Permanent Nursing,Brunelcare,5965.15, 29-Jan-2014
261,Revenue,CCHD,South Glos Users in South Glos Homes,Permanent Nursing,Brunelcare,7183.4, 29-Jan-2014
262,Revenue,CCHD,Bed Purchasing - Elderly MH - South,Permanent Nursing,Brunelcare,5399.67, 29-Jan-2014
263,Revenue,CCHD,Bed purchasing - Elderly S117 - South,Permanent Nursing,Brunelcare,4676.52, 29-Jan-2014
264,Revenue,CCHD,Bed purchasing - Elderly MH - North,Permanent Nursing,Brunelcare,1612.84, 29-Jan-2014
265,Revenue,CCHD,Bed Purchasing - Elderly S117- North,Permanent Nursing,Brunelcare,2363.79, 29-Jan-2014
266,Revenue,CCHD,S75 CCG Interim Beds,Permanent Nursing,Brunelcare,3800, 31-Jan-2014
267,Revenue,CCHD,Home Care - Elderly - South,Other Small Contracts,Brunelcare,3231.36, 23-Jan-2014
268,Revenue,CCHD,Home Care - Elderly - North,Other Small Contracts,Brunelcare,4575.44, 23-Jan-2014
269,Revenue,CCHD,Day Care - South,Private & Voluntary Day Care,Brunelcare,28.56, 23-Jan-2014
270,Revenue,CCHD,Day Care - North,Private & Voluntary Day Care,Brunelcare,85.68, 23-Jan-2014
271,Revenue,CCHD,Home Care - Elderly - South,Other Small Contracts,Brunelcare,2978.4, 27-Jan-2014
272,Revenue,CCHD,Home Care - Elderly - North,Other Small Contracts,Brunelcare,3727.16, 27-Jan-2014
273,Revenue,CCHD,Day Care - South,Private & Voluntary Day Care,Brunelcare,8.16, 27-Jan-2014
274,Revenue,CCHD,Day Care - North,Private & Voluntary Day Care,Brunelcare,48.96, 27-Jan-2014
275,Revenue,CCHD,Home Care - Elderly - South,Other Small Contracts,Brunelcare,3149.76, 27-Jan-2014
276,Revenue,CCHD,Home Care - Elderly - North,Other Small Contracts,Brunelcare,4134.96, 27-Jan-2014
277,Revenue,CCHD,Day Care - South,Private & Voluntary Day Care,Brunelcare,24.48, 27-Jan-2014
278,Revenue,CCHD,Day Care - North,Private & Voluntary Day Care,Brunelcare,81.6, 27-Jan-2014
279,Revenue,CCHD,Information Systems - Software,Computer Equipment - Purchase,BT Global Services Solutions,983.59, 10-Jan-2014
280,Revenue,CCHD,Bed Purchasing - Frenchay Hospital,Permanent Nursing,BUPA Care Service,2604, 06-Jan-2014
281,Revenue,CCHD,Swift Dump Code,Other Supplies & Services,BUPA Care Service,2600, 17-Jan-2014
282,Revenue,CCHD,Swift Dump Code,Other Supplies & Services,Bupa Care Services  Bridge House,12900, 21-Jan-2014
283,Revenue,CCHD,Bed purchasing - Elderly MH - North,Permanent Residential,Bupa Care Services  Bridge House,1900, 28-Jan-2014
284,Revenue,CCHD,Swift Dump Code,Other Supplies & Services,Bupa Care Services  Bridge House,1900, 21-Jan-2014
285,Revenue,CCHD,Swift Dump Code,Other Supplies & Services,Bupa Care Services  Bridge House,1300, 21-Jan-2014
286,Revenue,CCHD,Tenancy Start Up Scheme,Other Supplies & Services,C J Hole Estate Agents,1550, 31-Jan-2014
287,Revenue,CCHD,Supported Living - North,Private & Voluntary Home Care,Camphill Communities Thornbury Limited,2793.8, 02-Jan-2014
288,Revenue,CCHD,Supported Living - North,Private & Voluntary Home Care,Camphill Communities Thornbury Limited,1753.08, 08-Jan-2014
289,Revenue,CCHD,Supported Living - North,Private & Voluntary Home Care,Camphill Communities Thornbury Limited,2498.76, 08-Jan-2014
290,Revenue,CCHD,Supported Living - North,Private & Voluntary Home Care,Camphill Communities Thornbury Limited,2597.48, 08-Jan-2014
291,Revenue,CCHD,Supported Living - North,Private & Voluntary Home Care,Camphill Communities Thornbury Limited,1822.24, 10-Jan-2014
292,Revenue,CCHD,Supported Living - North,Private & Voluntary Home Care,Camphill Communities Thornbury Limited,2290.92, 15-Jan-2014
293,Revenue,CCHD,Supported Living - North,Private & Voluntary Home Care,Camphill Communities Thornbury Limited,2049.76, 15-Jan-2014
294,Revenue,CCHD,Supported Living - North,Private & Voluntary Home Care,Camphill Communities Thornbury Limited,2016.49, 15-Jan-2014
295,Revenue,CCHD,Supported Living - North,Private & Voluntary Home Care,Camphill Communities Thornbury Limited,2563.76, 20-Jan-2014
296,Revenue,CCHD,Supported Living - North,Private & Voluntary Home Care,Camphill Communities Thornbury Limited,2132.92, 22-Jan-2014
297,Revenue,CCHD,Supported Living - North,Private & Voluntary Home Care,Camphill Communities Thornbury Limited,2450.96, 22-Jan-2014
298,Revenue,CCHD,Supported Living - North,Private & Voluntary Home Care,Camphill Communities Thornbury Limited,2479.4, 23-Jan-2014
299,Revenue,CCHD,Supported Living - North,Private & Voluntary Home Care,Camphill Communities Thornbury Limited,2237.32, 23-Jan-2014
300,Revenue,CCHD,Supported Living - North,Private & Voluntary Home Care,Camphill Communities Thornbury Limited,1792.96, 23-Jan-2014
301,Revenue,CCHD,Supported Living - North,Private & Voluntary Home Care,Camphill Communities Thornbury Limited,2303.08, 23-Jan-2014
302,Revenue,CCHD,Supported Living - North,Private & Voluntary Home Care,Camphill Communities Thornbury Limited,2203.08, 23-Jan-2014
303,Revenue,CCHD,Supported Living - North,Private & Voluntary Home Care,Camphill Communities Thornbury Limited,2793.8, 30-Jan-2014
304,Revenue,CCHD,Home Care - Elderly - South,Other Small Contracts,Care 1st Homecare,4069.55, 10-Jan-2014
305,Revenue,CCHD,Home Care - Elderly - North,Other Small Contracts,Care 1st Homecare,3615.56, 10-Jan-2014
306,Revenue,CCHD,Day Care - North,Private & Voluntary Day Care,Care 1st Homecare,114.52, 10-Jan-2014
307,Revenue,CCHD,Home care - Elderly MH - North,Other Small Contracts,Care 1st Homecare,49.08, 10-Jan-2014
308,Revenue,CCHD,Home Care - Elderly - South,Other Small Contracts,Care 1st Homecare,4388.57, 10-Jan-2014
309,Revenue,CCHD,Home Care - Elderly - North,Other Small Contracts,Care 1st Homecare,3096.13, 10-Jan-2014
310,Revenue,CCHD,Day Care - North,Private & Voluntary Day Care,Care 1st Homecare,114.52, 10-Jan-2014
311,Revenue,CCHD,Home care - Elderly MH - North,Other Small Contracts,Care 1st Homecare,53.17, 10-Jan-2014
312,Revenue,CCHD,Bed Purchasing - PWLD S 117 Placements,Permanent Residential,Care Community Ltd,7536.4, 28-Jan-2014
313,Revenue,CCHD,Swift Dump Code,Other Supplies & Services,Care Community Ltd,7500, 21-Jan-2014
314,Revenue,CCHD,Supported Living - North,Private & Voluntary Home Care,Care Horizons Limited,5373.79, 30-Jan-2014
315,Revenue,CCHD,Home Care - Elderly - North,Other Small Contracts,Care Horizons Limited,1894.78, 24-Jan-2014
316,Revenue,CCHD,Day Care - South,Private & Voluntary Day Care,Care Horizons Limited,359.16, 24-Jan-2014
317,Revenue,CCHD,Home Care - Elderly - North,Other Small Contracts,Care Horizons Limited,2112.94, 24-Jan-2014
318,Revenue,CCHD,Day Care - South,Private & Voluntary Day Care,Care Horizons Limited,359.16, 24-Jan-2014
319,Revenue,CCHD,Home Care - Elderly - North,Other Small Contracts,Care Horizons Limited,2144.32, 24-Jan-2014
320,Revenue,CCHD,Day Care - South,Private & Voluntary Day Care,Care Horizons Limited,367.92, 24-Jan-2014
321,Revenue,CCHD,Home Care - Elderly - North,Other Small Contracts,Care Horizons Limited,2122.37, 24-Jan-2014
322,Revenue,CCHD,Day Care - South,Private & Voluntary Day Care,Care Horizons Limited,363.54, 24-Jan-2014
323,Revenue,CCHD,Home Care - Elderly - North,Other Small Contracts,Care Horizons Limited,2134.91, 24-Jan-2014
324,Revenue,CCHD,Day Care - South,Private & Voluntary Day Care,Care Horizons Limited,346.02, 24-Jan-2014
325,Revenue,CCHD,Supported Living - North,Private & Voluntary Home Care,Care Horizons Limited,2887.46, 16-Jan-2014
326,Revenue,CCHD,Supported Living - North,Private & Voluntary Home Care,Care Horizons Limited,2887.45, 16-Jan-2014
327,Revenue,CCHD,Purchase of Non-Res Care - North,Private & Voluntary Day Care,Care Horizons Limited,1568.03, 14-Jan-2014
328,Revenue,CCHD,Purchase of Non-Res Care - North,Private & Voluntary Day Care,Care Horizons Limited,930.52, 14-Jan-2014
329,Revenue,CCHD,Purchase of Non-Res Care - North,Private & Voluntary Day Care,Care Horizons Limited,1268.26, 14-Jan-2014
330,Revenue,CCHD,Supported Living - South,Private & Voluntary Home Care,Care Horizons Limited,1808.14, 17-Jan-2014
331,Revenue,CCHD,Electronic Home Care Monitoring,Other Supplies & Services,Care Monitoring 2000 Limited,1340, 16-Jan-2014
332,Revenue,CCHD,Electronic Home Care Monitoring,Other Supplies & Services,Care Monitoring 2000 Limited,7691.02, 10-Jan-2014
333,Revenue,CCHD,Home Care - Elderly - South,Other Small Contracts,Care UK,5330.66, 13-Jan-2014
334,Revenue,CCHD,Home Care - Elderly - North,Other Small Contracts,Care UK,1893.91, 13-Jan-2014
335,Revenue,CCHD,Day Care - South,Private & Voluntary Day Care,Care UK,274.06, 13-Jan-2014
336,Revenue,CCHD,Day Care - North,Private & Voluntary Day Care,Care UK,475.83, 13-Jan-2014
337,Revenue,CCHD,Home care - Elderly MH - North,Other Small Contracts,Care UK,582.86, 13-Jan-2014
338,Revenue,CCHD,Elderly MH Day Care North,Private & Voluntary Day Care,Care UK,142.82, 13-Jan-2014
339,Revenue,CCHD,Home Care - Elderly - South,Other Small Contracts,Care UK,4902.2, 13-Jan-2014
340,Revenue,CCHD,Home Care - Elderly - North,Other Small Contracts,Care UK,1660.85, 13-Jan-2014
341,Revenue,CCHD,Day Care - South,Private & Voluntary Day Care,Care UK,127.38, 13-Jan-2014
342,Revenue,CCHD,Day Care - North,Private & Voluntary Day Care,Care UK,165.98, 13-Jan-2014
343,Revenue,CCHD,Home care - Elderly MH - North,Other Small Contracts,Care UK,544.26, 13-Jan-2014
344,Revenue,CCHD,Elderly MH Day Care North,Private & Voluntary Day Care,Care UK,92.64, 13-Jan-2014
345,Revenue,CCHD,Home Care - Elderly - South,Other Small Contracts,Care UK,5504.36, 23-Jan-2014
346,Revenue,CCHD,Home Care - Elderly - North,Other Small Contracts,Care UK,1944.09, 23-Jan-2014
347,Revenue,CCHD,Day Care - South,Private & Voluntary Day Care,Care UK,266.34, 23-Jan-2014
348,Revenue,CCHD,Day Care - North,Private & Voluntary Day Care,Care UK,224.93, 23-Jan-2014
349,Revenue,CCHD,Home care - Elderly MH - North,Other Small Contracts,Care UK,586.72, 23-Jan-2014
350,Revenue,CCHD,Elderly MH Day Care North,Private & Voluntary Day Care,Care UK,92.64, 23-Jan-2014
351,Revenue,CCHD,Home Care - Elderly - South,Other Small Contracts,Care UK,5508.22, 23-Jan-2014
352,Revenue,CCHD,Home Care - Elderly - North,Other Small Contracts,Care UK,1926.14, 23-Jan-2014
353,Revenue,CCHD,Day Care - South,Private & Voluntary Day Care,Care UK,270.2, 23-Jan-2014
354,Revenue,CCHD,Day Care - North,Private & Voluntary Day Care,Care UK,397.58, 23-Jan-2014
355,Revenue,CCHD,Home care - Elderly MH - North,Other Small Contracts,Care UK,586.72, 23-Jan-2014
356,Revenue,CCHD,Elderly MH Day Care North,Private & Voluntary Day Care,Care UK,131.24, 23-Jan-2014
357,Revenue,CCHD,Home Care - Elderly - South,Other Small Contracts,Carewatch (Bristol),760.75, 10-Jan-2014
358,Revenue,CCHD,Home Care - Elderly - North,Other Small Contracts,Carewatch (Bristol),1428, 10-Jan-2014
359,Revenue,CCHD,Home Care - Elderly - South,Other Small Contracts,Carewatch (Bristol),735.25, 10-Jan-2014
360,Revenue,CCHD,Home Care - Elderly - North,Other Small Contracts,Carewatch (Bristol),1623.5, 10-Jan-2014
361,Revenue,CCHD,Home Care - Elderly - South,Other Small Contracts,Carewatch (Bristol),658.75, 23-Jan-2014
362,Revenue,CCHD,Home Care - Elderly - North,Other Small Contracts,Carewatch (Bristol),1462, 23-Jan-2014
363,Revenue,CCHD,Home Care - Elderly - South,Other Small Contracts,Carewatch (Bristol),726.75, 23-Jan-2014
364,Revenue,CCHD,Home Care - Elderly - North,Other Small Contracts,Carewatch (Bristol),1602.25, 23-Jan-2014
365,Revenue,CCHD,Home Care - Elderly - South,Other Small Contracts,Carewatch (Bristol),692.75, 10-Jan-2014
366,Revenue,CCHD,Home Care - Elderly - North,Other Small Contracts,Carewatch (Bristol),1113.5, 10-Jan-2014
367,Revenue,CCHD,Home Care - Elderly - South,Other Small Contracts,Cash Friday at Lloyds TSB,101.4, 27-Jan-2014
368,Revenue,CCHD,Home Care - Elderly - North,Other Small Contracts,Cash Friday at Lloyds TSB,553.8, 27-Jan-2014
369,Revenue,CCHD,Bed Purchasing - Elderly - South,Permanent Residential,Cepen Lodge Care Home,2176.28, 28-Jan-2014
370,Revenue,CCHD,Swift Dump Code,Other Supplies & Services,Cepen Lodge Care Home,2100, 21-Jan-2014
371,Revenue,CCHD,Bed Purchasing - Southmead Hospital,Permanent Residential,Charlton House Residential Home,1385.36, 28-Jan-2014
372,Revenue,CCHD,Swift Dump Code,Other Supplies & Services,Charlton House Residential Home,1300, 21-Jan-2014
373,Revenue,CCHD,Training - Adult Services,Training Expenses,Chartered Management Institute,524, 14-Jan-2014
374,Revenue,CCHD,Training - Adult Services,Training Expenses,Chartered Management Institute,665, 14-Jan-2014
375,Revenue,CCHD,Home Care - Elderly - South,Other Small Contracts,Cherish Able Care Limited,6030.34, 09-Jan-2014
376,Revenue,CCHD,Home Care - Elderly - South,Other Small Contracts,Cherish Able Care Limited,5986.24, 10-Jan-2014
377,Revenue,CCHD,Home Care - Elderly - South,Other Small Contracts,Cherish Able Care Limited,5990.4, 17-Jan-2014
378,Revenue,CCHD,Bed purchasing -S28A  Under 65 - North,Permanent Residential,Chescombe Lodge,8569.72, 28-Jan-2014
379,Revenue,CCHD,Swift Dump Code,Other Supplies & Services,Chescombe Lodge,8500, 21-Jan-2014
380,Revenue,CCHD,Alexandra Way,Prop.Serv. General Repairs,Chimney Centres Limited,4610, 29-Jan-2014
381,Revenue,CCHD,Bed Purchasing - Under 65s PWLD - South,Permanent Residential,Chosen Court,6910.16, 28-Jan-2014
382,Revenue,CCHD,Bed Purchasing - PWLD S 117 Placements,Permanent Residential,Chosen Court,8801.84, 28-Jan-2014
383,Revenue,CCHD,Bed Purchasing - Under 65s PWLD - South,Permanent Residential,Chosen Court,5375.48, 28-Jan-2014
384,Revenue,CCHD,Swift Dump Code,Other Supplies & Services,Chosen Court,21000, 21-Jan-2014
385,Revenue,CCHD,Drug Misuse - Adults,Other Supplies & Services,Christchurch Family Medical  Centre,1726, 09-Jan-2014
386,Revenue,CCHD,Bed Purchasing - Elderly - North,Permanent Residential,Clarence Park Nursing Home,839.35, 28-Jan-2014
387,Revenue,CCHD,Swift Dump Code,Other Supplies & Services,Cleeve Lodge,17800, 21-Jan-2014
388,Revenue,CCHD,Swift Dump Code,Other Supplies & Services,Collingwood Residential Home,15500, 21-Jan-2014
389,Revenue,CCHD,Sexual Health Services - Contraception,Other Supplies & Services,Concord Medical Centre,5564.5, 24-Jan-2014
390,Revenue,CCHD,Drug Misuse - Adults,Other Supplies & Services,Coniston Medical Practice,914, 09-Jan-2014
391,Revenue,CCHD,Bed and Breakfast,Bed & Breakfast,Connolly & Callaghan Limited,431, 03-Jan-2014
392,Revenue,CCHD,Bed and Breakfast,Bed & Breakfast,Connolly & Callaghan Limited,459.9, 03-Jan-2014
393,Revenue,CCHD,Bed and Breakfast,Bed & Breakfast,Connolly & Callaghan Limited,428.4, 03-Jan-2014
394,Revenue,CCHD,Bed and Breakfast,Bed & Breakfast,Connolly & Callaghan Limited,491.4, 03-Jan-2014
395,Revenue,CCHD,Bed and Breakfast,Bed & Breakfast,Connolly & Callaghan Limited,462, 07-Jan-2014
396,Revenue,CCHD,Bed and Breakfast,Bed & Breakfast,Connolly & Callaghan Limited,459.9, 07-Jan-2014
397,Revenue,CCHD,Bed and Breakfast,Bed & Breakfast,Connolly & Callaghan Limited,428.4, 07-Jan-2014
398,Revenue,CCHD,Bed and Breakfast,Bed & Breakfast,Connolly & Callaghan Limited,491.4, 07-Jan-2014
399,Revenue,CCHD,Bed and Breakfast,Bed & Breakfast,Connolly & Callaghan Limited,462, 09-Jan-2014
400,Revenue,CCHD,Bed and Breakfast,Bed & Breakfast,Connolly & Callaghan Limited,459.9, 09-Jan-2014
401,Revenue,CCHD,Bed and Breakfast,Bed & Breakfast,Connolly & Callaghan Limited,490, 09-Jan-2014
402,Revenue,CCHD,Bed and Breakfast,Bed & Breakfast,Connolly & Callaghan Limited,428.4, 09-Jan-2014
403,Revenue,CCHD,Bed and Breakfast,Bed & Breakfast,Connolly & Callaghan Limited,491.4, 09-Jan-2014
404,Revenue,CCHD,Bed and Breakfast,Bed & Breakfast,Connolly & Callaghan Limited,462, 27-Jan-2014
405,Revenue,CCHD,Bed and Breakfast,Bed & Breakfast,Connolly & Callaghan Limited,459.9, 27-Jan-2014
406,Revenue,CCHD,Bed and Breakfast,Bed & Breakfast,Connolly & Callaghan Limited,490, 27-Jan-2014
407,Revenue,CCHD,Bed and Breakfast,Bed & Breakfast,Connolly & Callaghan Limited,428.4, 27-Jan-2014
408,Revenue,CCHD,Bed and Breakfast,Bed & Breakfast,Connolly & Callaghan Limited,491.4, 27-Jan-2014
409,Revenue,CCHD,Bed and Breakfast,Bed & Breakfast,Connolly & Callaghan Limited,462, 28-Jan-2014
410,Revenue,CCHD,Bed and Breakfast,Bed & Breakfast,Connolly & Callaghan Limited,459.9, 28-Jan-2014
411,Revenue,CCHD,Bed and Breakfast,Bed & Breakfast,Connolly & Callaghan Limited,490, 28-Jan-2014
412,Revenue,CCHD,Bed and Breakfast,Bed & Breakfast,Connolly & Callaghan Limited,428.4, 28-Jan-2014
413,Revenue,CCHD,Bed and Breakfast,Bed & Breakfast,Connolly & Callaghan Limited,491.4, 28-Jan-2014
414,Revenue,CCHD,Bed and Breakfast,Bed & Breakfast,Connolly & Callaghan Limited,462, 30-Jan-2014
415,Revenue,CCHD,Bed and Breakfast,Bed & Breakfast,Connolly & Callaghan Limited,428.4, 30-Jan-2014
416,Revenue,CCHD,Bed and Breakfast,Bed & Breakfast,Connolly & Callaghan Limited,459.9, 30-Jan-2014
417,Revenue,CCHD,Bed and Breakfast,Bed & Breakfast,Connolly & Callaghan Limited,491.4, 31-Jan-2014
418,Revenue,CCHD,Bed Purchasing - Frenchay Hospital,Permanent Residential,Coombs Wood House,962.96, 28-Jan-2014
419,Revenue,CCHD,Swift Dump Code,Other Supplies & Services,Coombs Wood House,900, 21-Jan-2014
420,Revenue,CCHD,Drug Misuse - Adults,Other Supplies & Services,Courtside Surgery,1726, 03-Jan-2014
421,Revenue,CCHD,Sexual Health Services - Contraception,Other Supplies & Services,Courtside Surgery,2219.62, 24-Jan-2014
422,Revenue,CCHD,Bed purchasing -S28A  Under 65 - North,Permanent Residential,Cream Ii Ltd  Longrun House,7924.8, 28-Jan-2014
423,Revenue,CCHD,Swift Dump Code,Other Supplies & Services,Cream Ii Ltd  Longrun House,7900, 21-Jan-2014
424,Revenue,CCHD,Bed Purchasing - Under 65s PWLD - South,Permanent Residential,Cream Ii Ltd  Longrun House,5546.44, 28-Jan-2014
425,Revenue,CCHD,Swift Dump Code,Other Supplies & Services,Cream Ii Ltd  Longrun House,5500, 21-Jan-2014
426,Revenue,CCHD,Bed purchasing -S28A  Under 65 - North,Permanent Residential,Creedy Court,9157.32, 28-Jan-2014
427,Revenue,CCHD,Bed Purchasing - S28A - Over 65- North,Permanent Residential,Creedy Court,7616.76, 28-Jan-2014
428,Revenue,CCHD,Swift Dump Code,Other Supplies & Services,Creedy Court,16700, 21-Jan-2014
429,Revenue,CCHD,Brokerage and Information Service,Grants to Voluntary Bodies,D H I,9210.08, 27-Jan-2014
430,Revenue,CCHD,Purchase of Non-Res Care - South,Private & Voluntary Day Care,Daneswood,1472.68, 13-Jan-2014
431,Revenue,CCHD,Bed Purchasing - Under 65s PWLD - South,Permanent Residential,Daneswood,10848.44, 28-Jan-2014
432,Revenue,CCHD,Bed purchasing - Under 65s PWLD - North,Permanent Residential,Daneswood,8986.84, 28-Jan-2014
433,Revenue,CCHD,Swift Dump Code,Other Supplies & Services,Daneswood,19800, 21-Jan-2014
434,Revenue,CCHD,Learning Difficulties PSL,Other Supplies & Services,Individual,2016.44, 22-Jan-2014
435,Revenue,CCHD,Purchase of Non-Res Care - North,Private & Voluntary Day Care,Design 4 Life Ltd,1680.9, 20-Jan-2014
436,Revenue,CCHD,Purchase of Non-Res Care - North,Private & Voluntary Day Care,Design 4 Life Ltd,905.1, 20-Jan-2014
437,Revenue,CCHD,Day Care - South,Private & Voluntary Day Care,Dhek Bhal,898.27, 28-Jan-2014
438,Revenue,CCHD,Day Care - South,Private & Voluntary Day Care,Dhek Bhal,960.94, 28-Jan-2014
439,Revenue,CCHD,Bed Purchasing - Under 65s PWLD - South,Permanent Residential,Dimensions (Uk),4808.36, 28-Jan-2014
440,Revenue,CCHD,Swift Dump Code,Other Supplies & Services,Dimensions (Uk),4800, 21-Jan-2014
441,Revenue,CCHD,Supported Living - South,Private & Voluntary Home Care,Dimensions (UK) Ltd,8006.68, 17-Jan-2014
442,Revenue,CCHD,Home Care - Elderly - South,Other Small Contracts,DoCare Ltd,4478.53, 27-Jan-2014
443,Revenue,CCHD,Home Care - Elderly - North,Other Small Contracts,DoCare Ltd,8219.2, 27-Jan-2014
444,Revenue,CCHD,Day Care - North,Private & Voluntary Day Care,DoCare Ltd,74.72, 27-Jan-2014
445,Revenue,CCHD,Home Care - Elderly - South,Other Small Contracts,DoCare Ltd,4567.26, 27-Jan-2014
446,Revenue,CCHD,Home Care - Elderly - North,Other Small Contracts,DoCare Ltd,7616.77, 27-Jan-2014
447,Revenue,CCHD,Day Care - North,Private & Voluntary Day Care,DoCare Ltd,79.39, 27-Jan-2014
448,Revenue,CCHD,Home Care - Elderly - South,Other Small Contracts,DoCare Ltd,3637.93, 27-Jan-2014
449,Revenue,CCHD,Home Care - Elderly - North,Other Small Contracts,DoCare Ltd,6281.15, 27-Jan-2014
450,Revenue,CCHD,Day Care - North,Private & Voluntary Day Care,DoCare Ltd,37.36, 27-Jan-2014
451,Revenue,CCHD,Home Care - Elderly - South,Other Small Contracts,DoCare Ltd,4371.12, 27-Jan-2014
452,Revenue,CCHD,Home Care - Elderly - North,Other Small Contracts,DoCare Ltd,7089.06, 27-Jan-2014
453,Revenue,CCHD,Day Care - North,Private & Voluntary Day Care,DoCare Ltd,37.36, 27-Jan-2014
454,Revenue,CCHD,Home Care - Elderly - South,Other Small Contracts,DoCare Ltd,4226.35, 30-Jan-2014
455,Revenue,CCHD,Home Care - Elderly - North,Other Small Contracts,DoCare Ltd,8088.44, 30-Jan-2014
456,Revenue,CCHD,Day Care - North,Private & Voluntary Day Care,DoCare Ltd,74.72, 30-Jan-2014
457,Revenue,CCHD,Sexual Health Services - Contraception,Other Supplies & Services,Dr A Kerr,887.86, 20-Jan-2014
458,Revenue,CCHD,Drug Misuse - Adults,Other Supplies & Services,Dr Norman,2842, 03-Jan-2014
459,Revenue,CCHD,Sexual Health Services - Contraception,Other Supplies & Services,Dr Norman,4501.1, 24-Jan-2014
460,Revenue,CCHD,Drug Misuse - Adults,Other Supplies & Services,Dr P Taylor & Partners,1421, 03-Jan-2014
461,Revenue,CCHD,Stop Smoking Services and Interventions,Other Supplies & Services,Dr P Taylor & Partners,1810, 03-Jan-2014
462,Revenue,CCHD,Stop Smoking Services and Interventions,Other Supplies & Services,Dr P Taylor & Partners,600, 17-Jan-2014
463,Revenue,CCHD,Drug Misuse - Adults,Other Supplies & Services,Dr P Taylor & Partners,1523, 17-Jan-2014
464,Revenue,CCHD,Sexual Health Services - Contraception,Other Supplies & Services,Dr P Taylor & Partners,4212.08, 24-Jan-2014
465,Revenue,CCHD,Bed Purchasing - Under 65s PWLD - South,Permanent Residential,Dudbridge House,6546.16, 28-Jan-2014
466,Revenue,CCHD,Swift Dump Code,Other Supplies & Services,Dudbridge House,6500, 21-Jan-2014
467,Revenue,CCHD,Swift Dump Code,Other Supplies & Services,Dunkirk Memorial House,1100, 21-Jan-2014
468,Revenue,CCHD,MH Purchasing - Younger,Permanent Residential,Dunraven House,1826.8, 28-Jan-2014
469,Revenue,CCHD,Swift Dump Code,Other Supplies & Services,Dunraven House,1800, 21-Jan-2014
470,Revenue,CCHD,Bed and Breakfast,Bed & Breakfast,E J Bartlett,420, 06-Jan-2014
471,Revenue,CCHD,Bed and Breakfast,Bed & Breakfast,E J Bartlett,434, 08-Jan-2014
472,Revenue,CCHD,Bed and Breakfast,Bed & Breakfast,E J Bartlett,420, 07-Jan-2014
473,Revenue,CCHD,Bed and Breakfast,Bed & Breakfast,E J Bartlett,434, 07-Jan-2014
474,Revenue,CCHD,Bed and Breakfast,Bed & Breakfast,E J Bartlett,420, 07-Jan-2014
475,Revenue,CCHD,Bed and Breakfast,Bed & Breakfast,E J Bartlett,434, 07-Jan-2014
476,Revenue,CCHD,Bed and Breakfast,Bed & Breakfast,E J Bartlett,420, 15-Jan-2014
477,Revenue,CCHD,Bed and Breakfast,Bed & Breakfast,E J Bartlett,434, 15-Jan-2014
478,Revenue,CCHD,Bed and Breakfast,Bed & Breakfast,E J Bartlett,420, 22-Jan-2014
479,Revenue,CCHD,Bed and Breakfast,Bed & Breakfast,E J Bartlett,434, 22-Jan-2014
480,Revenue,CCHD,Bed and Breakfast,Bed & Breakfast,E J Bartlett,434, 28-Jan-2014
481,Revenue,CCHD,Bed purchasing - Under 65s PWLD - North,Permanent Residential,East Court,2180.72, 28-Jan-2014
482,Revenue,CCHD,Swift Dump Code,Other Supplies & Services,East Court,2100, 21-Jan-2014
483,Revenue,CCHD,Day Care - South,Private & Voluntary Day Care,Easton Community Centre,512.88, 28-Jan-2014
484,Revenue,CCHD,Day Care - South,Private & Voluntary Day Care,Easton Community Centre,512.88, 28-Jan-2014
485,Revenue,CCHD,Younger MH non-res purchasing,Private & Voluntary Day Care,Easton Community Centre,512.88, 28-Jan-2014
486,Revenue,CCHD,Day Care - South,Private & Voluntary Day Care,Easton Community Centre,512.88, 28-Jan-2014
487,Revenue,CCHD,Day Care - South,Private & Voluntary Day Care,Easton Community Centre,512.88, 28-Jan-2014
488,Revenue,CCHD,Swift Dump Code,Other Supplies & Services,Easton Community Centre,7000, 21-Jan-2014
489,Revenue,CCHD,Swift Dump Code,Other Supplies & Services,Eclipse Office Park,19800, 21-Jan-2014
490,Revenue,CCHD,Swift Dump Code,Other Supplies & Services,Eclipse Office Park,33800, 21-Jan-2014
491,Revenue,CCHD,Swift Dump Code,Other Supplies & Services,Eclipse Office Park,20200, 21-Jan-2014
492,Revenue,CCHD,Swift Dump Code,Other Supplies & Services,Eclipse Office Park,2000, 21-Jan-2014
493,Revenue,CCHD,Swift Dump Code,Other Supplies & Services,Eclipse Office Park,13400, 21-Jan-2014
494,Revenue,CCHD,Swift Dump Code,Other Supplies & Services,Eclipse Office Park,2000, 21-Jan-2014
495,Revenue,CCHD,Swift Dump Code,Other Supplies & Services,Eclipse Office Park,38700, 21-Jan-2014
496,Revenue,CCHD,Swift Dump Code,Other Supplies & Services,Eclipse Office Park,12300, 21-Jan-2014
497,Revenue,CCHD,Swift Dump Code,Other Supplies & Services,Eclipse Office Park,2900, 21-Jan-2014
498,Revenue,CCHD,Swift Dump Code,Other Supplies & Services,Eclipse Office Park,21700, 21-Jan-2014
499,Revenue,CCHD,Swift Dump Code,Other Supplies & Services,Eclipse Office Park,30400, 21-Jan-2014
500,Revenue,CCHD,Swift Dump Code,Other Supplies & Services,Eclipse Office Park,11300, 21-Jan-2014
501,Revenue,CCHD,Swift Dump Code,Other Supplies & Services,Eclipse Office Park,20400, 21-Jan-2014
502,Revenue,CCHD,Swift Dump Code,Other Supplies & Services,Eclipse Office Park,10500, 21-Jan-2014
503,Revenue,CCHD,Swift Dump Code,Other Supplies & Services,Eclipse Office Park,4800, 21-Jan-2014
504,Revenue,CCHD,Swift Dump Code,Other Supplies & Services,Eclipse Office Park,18200, 21-Jan-2014
505,Revenue,CCHD,Swift Dump Code,Other Supplies & Services,Eclipse Office Park,1300, 21-Jan-2014
506,Revenue,CCHD,Swift Dump Code,Other Supplies & Services,Eclipse Office Park,3200, 21-Jan-2014
507,Revenue,CCHD,Swift Dump Code,Other Supplies & Services,Eclipse Office Park,27800, 21-Jan-2014
508,Revenue,CCHD,Swift Dump Code,Other Supplies & Services,Eclipse Office Park,9700, 21-Jan-2014
509,Revenue,CCHD,Swift Dump Code,Other Supplies & Services,Eclipse Office Park,8500, 21-Jan-2014
510,Revenue,CCHD,Swift Dump Code,Other Supplies & Services,Eclipse Office Park,17100, 21-Jan-2014
511,Revenue,CCHD,Swift Dump Code,Other Supplies & Services,Eclipse Office Park,11600, 21-Jan-2014
512,Revenue,CCHD,Swift Dump Code,Other Supplies & Services,Eclipse Office Park,13200, 21-Jan-2014
513,Revenue,CCHD,Swift Dump Code,Other Supplies & Services,Eclipse Office Park,22900, 21-Jan-2014
514,Revenue,CCHD,Swift Dump Code,Other Supplies & Services,Eclipse Office Park,11200, 21-Jan-2014
515,Revenue,CCHD,Swift Dump Code,Other Supplies & Services,Eclipse Office Park,3900, 21-Jan-2014
516,Revenue,CCHD,Swift Dump Code,Other Supplies & Services,Eclipse Office Park,50100, 21-Jan-2014
517,Revenue,CCHD,Swift Dump Code,Other Supplies & Services,Eclipse Office Park,1400, 21-Jan-2014
518,Revenue,CCHD,Section 117 Placements MH Younger,Permanent Residential,Eclipse Office Park,1336, 28-Jan-2014
519,Revenue,CCHD,Swift Dump Code,Other Supplies & Services,Eclipse Office Park,1300, 21-Jan-2014
520,Revenue,CCHD,Bed Purchasing - Under 65s PWLD - South,Permanent Nursing,Eclipse Office Park,12043.96, 28-Jan-2014
521,Revenue,CCHD,Bed Purchasing - Under 65s PWLD - South,Permanent Nursing,Eclipse Office Park,3338.92, 28-Jan-2014
522,Revenue,CCHD,Bed Purchasing - LD S28A- Over 65- South,Permanent Nursing,Eclipse Office Park,2940.76, 28-Jan-2014
523,Revenue,CCHD,Bed Purchasing - LD S28A- Over 65- South,Permanent Nursing,Eclipse Office Park,2729.64, 28-Jan-2014
524,Revenue,CCHD,Bed Purchasing - S28A - Over 65- North,Permanent Nursing,Eclipse Office Park,3649.32, 28-Jan-2014
525,Revenue,CCHD,Bed Purchasing - S28A - Over 65- North,Permanent Nursing,Eclipse Office Park,3665.32, 28-Jan-2014
526,Revenue,CCHD,Swift Dump Code,Other Supplies & Services,Eclipse Office Park,9700, 21-Jan-2014
527,Revenue,CCHD,Swift Dump Code,Other Supplies & Services,Eclipse Office Park,4100, 21-Jan-2014
528,Revenue,CCHD,Bed Purchasing - Elderly - South,Permanent Residential,Edgecumbe Lodge,1514, 28-Jan-2014
529,Revenue,CCHD,Bed Purchasing - Southmead Hospital,Permanent Residential,Edgecumbe Lodge,1246, 28-Jan-2014
530,Revenue,CCHD,Bed Purchasing - Elderly - South,Permanent Residential,Edgecumbe Lodge,1052.16, 28-Jan-2014
531,Revenue,CCHD,Bed Purchasing - Elderly - South,Permanent Residential,Edgecumbe Lodge,1312.64, 28-Jan-2014
532,Revenue,CCHD,Bed Purchasing - Southmead Hospital,Permanent Residential,Edgecumbe Lodge,2100, 28-Jan-2014
533,Revenue,CCHD,Bed Purchasing - Elderly - South,Permanent Residential,Edgecumbe Lodge,1405.12, 28-Jan-2014
534,Revenue,CCHD,Bed Purchasing - Southmead Hospital,Permanent Residential,Edgecumbe Lodge,1514, 28-Jan-2014
535,Revenue,CCHD,Bed Purchasing - Elderly - South,Permanent Residential,Edgecumbe Lodge,991.96, 28-Jan-2014
536,Revenue,CCHD,Bed Purchasing - Elderly - South,Permanent Residential,Edgecumbe Lodge,1276.24, 28-Jan-2014
537,Revenue,CCHD,Bed Purchasing - Elderly - South,Permanent Residential,Edgecumbe Lodge,1223.16, 28-Jan-2014
538,Revenue,CCHD,Swift Dump Code,Other Supplies & Services,Edgecumbe Lodge,13600, 21-Jan-2014
539,Revenue,CCHD,Bed Purchasing - Southmead Hospital,Permanent Residential,Edgemont House Ltd,1414, 28-Jan-2014
540,Revenue,CCHD,Bed Purchasing - Elderly - South,Permanent Residential,Edgemont House Ltd,1454, 28-Jan-2014
541,Revenue,CCHD,Bed Purchasing - Elderly - South,Permanent Residential,Edgemont House Ltd,1246, 28-Jan-2014
542,Revenue,CCHD,Bed Purchasing - Elderly - South,Permanent Residential,Edgemont House Ltd,1246, 28-Jan-2014
543,Revenue,CCHD,Bed Purchasing - Elderly - South,Permanent Residential,Edgemont House Ltd,1412.04, 28-Jan-2014
544,Revenue,CCHD,Bed Purchasing - Elderly - South,Permanent Residential,Edgemont House Ltd,1260.96, 28-Jan-2014
545,Revenue,CCHD,Swift Dump Code,Other Supplies & Services,Edgemont House Ltd,8000, 21-Jan-2014
546,Revenue,CCHD,Swift Dump Code,Other Supplies & Services,Edgemont View Nursing Home,20100, 21-Jan-2014
547,Revenue,CCHD,Telecare,Other Supplies & Services,Eldercare,2828.52, 27-Jan-2014
548,Revenue,CCHD,Supporting People Programme,Grants to Voluntary Bodies,Elim Housing Association Limited,4945.25, 31-Jan-2014
549,Revenue,CCHD,Home Care - Elderly - South,Other Small Contracts,Elite Home Care Ltd,4780.3, 15-Jan-2014
550,Revenue,CCHD,Home Care - Elderly - South,Other Small Contracts,Elite Home Care Ltd,5182.34, 15-Jan-2014
551,Revenue,CCHD,Home Care - Elderly - South,Other Small Contracts,Elite Home Care Ltd,6017.01, 22-Jan-2014
552,Revenue,CCHD,Home Care - Elderly - South,Other Small Contracts,Elite Home Care Ltd,6209.29, 23-Jan-2014
553,Revenue,CCHD,Swift Dump Code,Other Supplies & Services,Elmbridge Residential Home Ltd,3900, 21-Jan-2014
554,Revenue,CCHD,Bed Purchasing - Frenchay Hospital,Permanent Nursing,Elmwood Nursing Home,2223.88, 28-Jan-2014
555,Revenue,CCHD,Swift Dump Code,Other Supplies & Services,Elmwood Nursing Home,2200, 21-Jan-2014
556,Revenue,CCHD,Sexual Health Services - Contraception,Other Supplies & Services,Emersons Green Medical Centre,2054.52, 20-Jan-2014
557,Revenue,CCHD,Day Care - South,Private & Voluntary Day Care,Enham,638.72, 28-Jan-2014
558,Revenue,CCHD,Home Care - Elderly - South,Other Small Contracts,Everycare (Bristol) Ltd,6037.76, 10-Jan-2014
559,Revenue,CCHD,Home Care - Elderly - North,Other Small Contracts,Everycare (Bristol) Ltd,2662.72, 10-Jan-2014
560,Revenue,CCHD,Day Care - South,Private & Voluntary Day Care,Everycare (Bristol) Ltd,97.52, 10-Jan-2014
561,Revenue,CCHD,Under 65s -MH  Home Care Purch,Other Small Contracts,Everycare (Bristol) Ltd,84.8, 10-Jan-2014
562,Revenue,CCHD,Home Care - Elderly - South,Other Small Contracts,Everycare (Bristol) Ltd,5554.4, 13-Jan-2014
563,Revenue,CCHD,Home Care - Elderly - North,Other Small Contracts,Everycare (Bristol) Ltd,2064.88, 13-Jan-2014
564,Revenue,CCHD,Day Care - South,Private & Voluntary Day Care,Everycare (Bristol) Ltd,76.32, 13-Jan-2014
565,Revenue,CCHD,Under 65s -MH  Home Care Purch,Other Small Contracts,Everycare (Bristol) Ltd,84.8, 13-Jan-2014
566,Revenue,CCHD,Home Care - Elderly - South,Other Small Contracts,Everycare (Bristol) Ltd,5567.12, 22-Jan-2014
567,Revenue,CCHD,Home Care - Elderly - North,Other Small Contracts,Everycare (Bristol) Ltd,1797.76, 22-Jan-2014
568,Revenue,CCHD,Day Care - South,Private & Voluntary Day Care,Everycare (Bristol) Ltd,72.08, 22-Jan-2014
569,Revenue,CCHD,Under 65s -MH  Home Care Purch,Other Small Contracts,Everycare (Bristol) Ltd,84.8, 22-Jan-2014
570,Revenue,CCHD,Home Care - Elderly - South,Other Small Contracts,Everycare (Bristol) Ltd,5164.32, 22-Jan-2014
571,Revenue,CCHD,Home Care - Elderly - North,Other Small Contracts,Everycare (Bristol) Ltd,2009.76, 22-Jan-2014
572,Revenue,CCHD,Day Care - South,Private & Voluntary Day Care,Everycare (Bristol) Ltd,29.68, 22-Jan-2014
573,Revenue,CCHD,Under 65s -MH  Home Care Purch,Other Small Contracts,Everycare (Bristol) Ltd,59.36, 22-Jan-2014
574,Revenue,CCHD,Home Care - Elderly - South,Other Small Contracts,Everycare (Bristol) Ltd,5414.48, 31-Jan-2014
575,Revenue,CCHD,Home Care - Elderly - North,Other Small Contracts,Everycare (Bristol) Ltd,2743.28, 31-Jan-2014
576,Revenue,CCHD,Day Care - South,Private & Voluntary Day Care,Everycare (Bristol) Ltd,106, 31-Jan-2014
577,Revenue,CCHD,Under 65s -MH  Home Care Purch,Other Small Contracts,Everycare (Bristol) Ltd,84.8, 31-Jan-2014
578,Revenue,CCHD,Bed Purchasing - Elderly MH - South,Permanent Residential,Exmouth House,1397.88, 28-Jan-2014
579,Revenue,CCHD,Swift Dump Code,Other Supplies & Services,Exmouth House,1300, 21-Jan-2014
580,Revenue,CCHD,Swift Dump Code,Other Supplies & Services,Fairfield House Care Home,4300, 21-Jan-2014
581,Revenue,CCHD,Bed Purchasing - Elderly - South,Permanent Nursing,Fairview Court,1180.4, 28-Jan-2014
582,Revenue,CCHD,Bed purchasing - Elderly MH - North,Permanent Nursing,Fairview Court,1595.96, 28-Jan-2014
583,Revenue,CCHD,Bed Purchasing - Elderly MH - South,Permanent Nursing,Fairview Court,1850.48, 28-Jan-2014
584,Revenue,CCHD,Bed Purchasing - Elderly MH - South,Permanent Nursing,Fairview Court,1934.36, 28-Jan-2014
585,Revenue,CCHD,Bed Purchasing - Southmead Hospital,Permanent Nursing,Fairview Court,1023.72, 28-Jan-2014
586,Revenue,CCHD,Bed Purchasing - Elderly - South,Permanent Nursing,Fairview Court,1056.84, 28-Jan-2014
587,Revenue,CCHD,South Glos Users in South Glos Homes,Permanent Nursing,Fairview Court,956.74, 28-Jan-2014
588,Revenue,CCHD,Bed Purchasing - Elderly MH - South,Permanent Residential,Fairview Court,1414, 28-Jan-2014
589,Revenue,CCHD,South Glos Users in South Glos Homes,Permanent Nursing,Fairview Court,1144.95, 28-Jan-2014
590,Revenue,CCHD,Bed Purchasing - Elderly - South,Permanent Nursing,Fairview Court,2476, 28-Jan-2014
591,Revenue,CCHD,Bed Purchasing - Elderly - South,Permanent Residential,Fairview Court,2648.56, 28-Jan-2014
592,Revenue,CCHD,Bed Purchasing - Elderly MH - South,Permanent Nursing,Fairview Court,1974.84, 28-Jan-2014
593,Revenue,CCHD,Bed Purchasing - Elderly MH - South,Permanent Nursing,Fairview Court,1410.6, 28-Jan-2014
594,Revenue,CCHD,Bed Purchasing - Elderly - South,Permanent Residential,Fairview Court,2154.56, 28-Jan-2014
595,Revenue,CCHD,Bed Purchasing - Elderly - South,Permanent Nursing,Fairview Court,1830.44, 28-Jan-2014
596,Revenue,CCHD,Bed Purchasing - Frenchay Hospital,Permanent Nursing,Fairview Court,1836.08, 28-Jan-2014
597,Revenue,CCHD,Bed Purchasing - Elderly MH - South,Permanent Nursing,Fairview Court,1921.68, 28-Jan-2014
598,Revenue,CCHD,Bed purchasing - Elderly MH - North,Permanent Nursing,Fairview Court,1699.6, 28-Jan-2014
599,Revenue,CCHD,Swift Dump Code,Other Supplies & Services,Fairview Court,35600, 21-Jan-2014
600,Revenue,CCHD,Bed Purchasing - Frenchay Hospital,Permanent Nursing,Fairview Court Care Home,1531.89, 14-Jan-2014
601,Revenue,CCHD,South Glos Users in South Glos Homes,Permanent Nursing,Fairview Court Care Home,2431.06, 14-Jan-2014
602,Revenue,CCHD,Bed purchasing - Phys Dis - North,Permanent Nursing,Fairview Court Care Home,2512.15, 14-Jan-2014
603,Revenue,CCHD,Bed Purchasing - Elderly MH - South,Permanent Nursing,Fairview Court Care Home,4679.05, 14-Jan-2014
604,Revenue,CCHD,Bed purchasing - Elderly S117 - South,Permanent Nursing,Fairview Court Care Home,2574.51, 14-Jan-2014
605,Revenue,CCHD,Bed Purchasing - Elderly - South,Permanent Residential,Fairview House,865.48, 28-Jan-2014
606,Revenue,CCHD,Bed Purchasing - Elderly - South,Permanent Residential,Fairview House,1265.24, 28-Jan-2014
607,Revenue,CCHD,Bed Purchasing - Frenchay Hospital,Permanent Residential,Fairview House,992.24, 28-Jan-2014
608,Revenue,CCHD,Bed Purchasing - Elderly - South,Permanent Residential,Fairview House,928.12, 28-Jan-2014
609,Revenue,CCHD,Bed purchasing - Elderly S117 - South,Permanent Residential,Fairview House,1888.88, 28-Jan-2014
610,Revenue,CCHD,Bed Purchasing - Southmead Hospital,Permanent Residential,Fairview House,1019.48, 28-Jan-2014
611,Revenue,CCHD,Bed Purchasing - Elderly - South,Permanent Residential,Fairview House,721.84, 28-Jan-2014
612,Revenue,CCHD,Bed Purchasing - Elderly - South,Permanent Residential,Fairview House,1188.36, 28-Jan-2014
613,Revenue,CCHD,Bed Purchasing - Southmead Hospital,Permanent Residential,Fairview House,1116.24, 28-Jan-2014
614,Revenue,CCHD,Bed Purchasing - Elderly MH - South,Permanent Residential,Fairview House,1109.84, 28-Jan-2014
615,Revenue,CCHD,Bed Purchasing - Frenchay Hospital,Permanent Residential,Fairview House,1246, 28-Jan-2014
616,Revenue,CCHD,Bed Purchasing - Southmead Hospital,Permanent Residential,Fairview House,1062.04, 28-Jan-2014
617,Revenue,CCHD,Bed Purchasing - Elderly MH - South,Permanent Residential,Fairview House,1036.08, 28-Jan-2014
618,Revenue,CCHD,Swift Dump Code,Other Supplies & Services,Fairview House,13600, 21-Jan-2014
619,Revenue,CCHD,Bed purchasing - Under 65s PWLD - North,Permanent Residential,Fernbank,7593.16, 28-Jan-2014
620,Revenue,CCHD,Swift Dump Code,Other Supplies & Services,Fernbank,7500, 21-Jan-2014
621,Revenue,CCHD,Home Care - Elderly - South,Other Small Contracts,Firstpoint Homecare Ltd,1152, 10-Jan-2014
622,Revenue,CCHD,Home Care - Elderly - North,Other Small Contracts,Firstpoint Homecare Ltd,1397.76, 10-Jan-2014
623,Revenue,CCHD,Day Care - South,Private & Voluntary Day Care,Firstpoint Homecare Ltd,184.32, 10-Jan-2014
624,Revenue,CCHD,Day Care - North,Private & Voluntary Day Care,Firstpoint Homecare Ltd,168.96, 10-Jan-2014
625,Revenue,CCHD,Under 65s -MH  Home Care Purch,Other Small Contracts,Firstpoint Homecare Ltd,46.08, 10-Jan-2014
626,Revenue,CCHD,Elderly MH Day Care North,Private & Voluntary Day Care,Firstpoint Homecare Ltd,92.16, 10-Jan-2014
627,Revenue,CCHD,Home Care - Elderly - South,Other Small Contracts,Firstpoint Homecare Ltd,1109.76, 10-Jan-2014
628,Revenue,CCHD,Home Care - Elderly - North,Other Small Contracts,Firstpoint Homecare Ltd,1409.28, 10-Jan-2014
629,Revenue,CCHD,Day Care - South,Private & Voluntary Day Care,Firstpoint Homecare Ltd,215.04, 10-Jan-2014
630,Revenue,CCHD,Day Care - North,Private & Voluntary Day Care,Firstpoint Homecare Ltd,245.76, 10-Jan-2014
631,Revenue,CCHD,Under 65s -MH  Home Care Purch,Other Small Contracts,Firstpoint Homecare Ltd,46.08, 10-Jan-2014
632,Revenue,CCHD,Home care - Elderly MH - North,Other Small Contracts,Firstpoint Homecare Ltd,46.08, 10-Jan-2014
633,Revenue,CCHD,Elderly MH Day Care North,Private & Voluntary Day Care,Firstpoint Homecare Ltd,96, 10-Jan-2014
634,Revenue,CCHD,Home Care - Elderly - South,Other Small Contracts,Firstpoint Homecare Ltd,1167.36, 10-Jan-2014
635,Revenue,CCHD,Home Care - Elderly - North,Other Small Contracts,Firstpoint Homecare Ltd,1489.92, 10-Jan-2014
636,Revenue,CCHD,Day Care - South,Private & Voluntary Day Care,Firstpoint Homecare Ltd,153.6, 10-Jan-2014
637,Revenue,CCHD,Day Care - North,Private & Voluntary Day Care,Firstpoint Homecare Ltd,207.36, 10-Jan-2014
638,Revenue,CCHD,Under 65s -MH  Home Care Purch,Other Small Contracts,Firstpoint Homecare Ltd,46.08, 10-Jan-2014
639,Revenue,CCHD,Home care - Elderly MH - North,Other Small Contracts,Firstpoint Homecare Ltd,46.08, 10-Jan-2014
640,Revenue,CCHD,Elderly MH Day Care North,Private & Voluntary Day Care,Firstpoint Homecare Ltd,92.16, 10-Jan-2014
641,Revenue,CCHD,Home Care - Elderly - South,Other Small Contracts,Firstpoint Homecare Ltd,1109.76, 10-Jan-2014
642,Revenue,CCHD,Home Care - Elderly - North,Other Small Contracts,Firstpoint Homecare Ltd,1232.64, 10-Jan-2014
643,Revenue,CCHD,Day Care - South,Private & Voluntary Day Care,Firstpoint Homecare Ltd,157.44, 10-Jan-2014
644,Revenue,CCHD,Day Care - North,Private & Voluntary Day Care,Firstpoint Homecare Ltd,245.76, 10-Jan-2014
645,Revenue,CCHD,Under 65s -MH  Home Care Purch,Other Small Contracts,Firstpoint Homecare Ltd,46.08, 10-Jan-2014
646,Revenue,CCHD,Home care - Elderly MH - North,Other Small Contracts,Firstpoint Homecare Ltd,49.92, 10-Jan-2014
647,Revenue,CCHD,Elderly MH Day Care North,Private & Voluntary Day Care,Firstpoint Homecare Ltd,92.16, 10-Jan-2014
648,Revenue,CCHD,Home Care - Elderly - South,Other Small Contracts,Firstpoint Homecare Ltd,1105.92, 10-Jan-2014
649,Revenue,CCHD,Home Care - Elderly - North,Other Small Contracts,Firstpoint Homecare Ltd,1290.24, 10-Jan-2014
650,Revenue,CCHD,Day Care - South,Private & Voluntary Day Care,Firstpoint Homecare Ltd,153.6, 10-Jan-2014
651,Revenue,CCHD,Day Care - North,Private & Voluntary Day Care,Firstpoint Homecare Ltd,245.76, 10-Jan-2014
652,Revenue,CCHD,Under 65s -MH  Home Care Purch,Other Small Contracts,Firstpoint Homecare Ltd,46.08, 10-Jan-2014
653,Revenue,CCHD,Home care - Elderly MH - North,Other Small Contracts,Firstpoint Homecare Ltd,46.08, 10-Jan-2014
654,Revenue,CCHD,Elderly MH Day Care North,Private & Voluntary Day Care,Firstpoint Homecare Ltd,92.16, 10-Jan-2014
655,Revenue,CCHD,Home Care - Elderly - South,Other Small Contracts,Firstpoint Homecare Ltd,1113.6, 10-Jan-2014
656,Revenue,CCHD,Home Care - Elderly - North,Other Small Contracts,Firstpoint Homecare Ltd,1474.56, 10-Jan-2014
657,Revenue,CCHD,Day Care - South,Private & Voluntary Day Care,Firstpoint Homecare Ltd,153.6, 10-Jan-2014
658,Revenue,CCHD,Day Care - North,Private & Voluntary Day Care,Firstpoint Homecare Ltd,245.76, 10-Jan-2014
659,Revenue,CCHD,Under 65s -MH  Home Care Purch,Other Small Contracts,Firstpoint Homecare Ltd,46.08, 10-Jan-2014
660,Revenue,CCHD,Home care - Elderly MH - North,Other Small Contracts,Firstpoint Homecare Ltd,49.92, 10-Jan-2014
661,Revenue,CCHD,Elderly MH Day Care North,Private & Voluntary Day Care,Firstpoint Homecare Ltd,92.16, 10-Jan-2014
662,Revenue,CCHD,Home Care - Elderly - South,Other Small Contracts,Firstpoint Homecare Ltd,1148.16, 10-Jan-2014
663,Revenue,CCHD,Home Care - Elderly - North,Other Small Contracts,Firstpoint Homecare Ltd,2576.98, 10-Jan-2014
664,Revenue,CCHD,Day Care - South,Private & Voluntary Day Care,Firstpoint Homecare Ltd,184.32, 10-Jan-2014
665,Revenue,CCHD,Day Care - North,Private & Voluntary Day Care,Firstpoint Homecare Ltd,199.68, 10-Jan-2014
666,Revenue,CCHD,Under 65s -MH  Home Care Purch,Other Small Contracts,Firstpoint Homecare Ltd,46.08, 10-Jan-2014
667,Revenue,CCHD,Home care - Elderly MH - North,Other Small Contracts,Firstpoint Homecare Ltd,46.08, 10-Jan-2014
668,Revenue,CCHD,Elderly MH Day Care North,Private & Voluntary Day Care,Firstpoint Homecare Ltd,92.16, 10-Jan-2014
669,Revenue,CCHD,Learning Difficulties Development Fund,Other Supplies & Services,Forest of Avon Trust,10245, 10-Jan-2014
670,Revenue,CCHD,Bed Purchasing - Elderly - South,Permanent Nursing,Four Seasons Health Care,1177.16, 28-Jan-2014
671,Revenue,CCHD,Swift Dump Code,Other Supplies & Services,Four Seasons Health Care,1100, 21-Jan-2014
672,Revenue,CCHD,Bed Purchasing - Elderly S117- North,Permanent Residential,Four Seasons Health Care,2030.36, 28-Jan-2014
673,Revenue,CCHD,Bed Purchasing - Frenchay Hospital,Permanent Residential,Four Seasons Health Care,1526.84, 28-Jan-2014
674,Revenue,CCHD,Swift Dump Code,Other Supplies & Services,Four Seasons Health Care,3500, 21-Jan-2014
675,Revenue,CCHD,Home Care - Elderly - South,Other Small Contracts,Freedom Social Care Recruitment,1292.76, 31-Jan-2014
676,Revenue,CCHD,Home Care - Elderly - North,Other Small Contracts,Freedom Social Care Recruitment,3017.01, 31-Jan-2014
677,Revenue,CCHD,Home care - Elderly MH - North,Other Small Contracts,Freedom Social Care Recruitment,15.96, 31-Jan-2014
678,Revenue,CCHD,Freeways,Permanent Residential,Freeways Trust Limited,46214.23, 16-Jan-2014
679,Revenue,CCHD,Supported Living - South,Private & Voluntary Home Care,Freeways Trust Limited,1321.32, 07-Jan-2014
680,Revenue,CCHD,Supported Living - South,Private & Voluntary Home Care,Freeways Trust Limited,1155.32, 22-Jan-2014
681,Revenue,CCHD,Supported Living - South,Private & Voluntary Home Care,Freeways Trust Limited,1227.53, 22-Jan-2014
682,Revenue,CCHD,Bed purchasing - Under 65s PWLD - North,Permanent Residential,Freeways Trust Ltd,2817.88, 28-Jan-2014
683,Revenue,CCHD,Bed purchasing - S28A Under 65 - South,Permanent Residential,Freeways Trust Ltd,2880.64, 28-Jan-2014
684,Revenue,CCHD,Bed purchasing - Under 65s PWLD - North,Permanent Residential,Freeways Trust Ltd,2682.36, 28-Jan-2014
685,Revenue,CCHD,Bed purchasing - Under 65s PWLD - North,Permanent Residential,Freeways Trust Ltd,2253.16, 28-Jan-2014
686,Revenue,CCHD,Bed purchasing - Under 65s PWLD - North,Permanent Residential,Freeways Trust Ltd,2691.08, 28-Jan-2014
687,Revenue,CCHD,Bed Purchasing - Under 65s PWLD - South,Permanent Residential,Freeways Trust Ltd,3289.6, 28-Jan-2014
688,Revenue,CCHD,Bed purchasing - Elderly PWLD - North,Permanent Residential,Freeways Trust Ltd,2235.92, 28-Jan-2014
689,Revenue,CCHD,Bed Purchasing - Under 65s PWLD - South,Permanent Residential,Freeways Trust Ltd,2382.36, 28-Jan-2014
690,Revenue,CCHD,Bed purchasing - Under 65s PWLD - North,Permanent Residential,Freeways Trust Ltd,2691.08, 28-Jan-2014
691,Revenue,CCHD,Bed purchasing - Elderly PWLD - North,Permanent Residential,Freeways Trust Ltd,3112.28, 28-Jan-2014
692,Revenue,CCHD,Section 117 Placements MH Younger,Permanent Residential,Freeways Trust Ltd,3324, 28-Jan-2014
693,Revenue,CCHD,Swift Dump Code,Other Supplies & Services,Freeways Trust Ltd,2800, 21-Jan-2014
694,Revenue,CCHD,Swift Dump Code,Other Supplies & Services,Freeways Trust Ltd,2600, 21-Jan-2014
695,Revenue,CCHD,Swift Dump Code,Other Supplies & Services,Freeways Trust Ltd,3300, 21-Jan-2014
696,Revenue,CCHD,Swift Dump Code,Other Supplies & Services,Freeways Trust Ltd,7600, 21-Jan-2014
697,Revenue,CCHD,Swift Dump Code,Other Supplies & Services,Freeways Trust Ltd,5000, 21-Jan-2014
698,Revenue,CCHD,Swift Dump Code,Other Supplies & Services,Freeways Trust Ltd,8700, 21-Jan-2014
699,Revenue,CCHD,Bed Purchasing - Under 65s PWLD - South,Permanent Residential,Freeways Trust Ltd,6117.96, 28-Jan-2014
700,Revenue,CCHD,Swift Dump Code,Other Supplies & Services,Freeways Trust Ltd,6100, 21-Jan-2014
701,Revenue,CCHD,Swift Dump Code,Other Supplies & Services,Frenchay Hospital,2200, 21-Jan-2014
702,Revenue,CCHD,Bed Purchasing - Frenchay Hospital,Permanent Nursing,Frenchay Park Nursing Home,1004.36, 28-Jan-2014
703,Revenue,CCHD,South Glos Users in South Glos Homes,Permanent Nursing,Frenchay Park Nursing Home,705.79, 28-Jan-2014
704,Revenue,CCHD,Bed Purchasing - Elderly - South,Permanent Nursing,Frenchay Park Nursing Home,1306.08, 28-Jan-2014
705,Revenue,CCHD,Swift Dump Code,Other Supplies & Services,Frenchay Park Nursing Home,2700, 21-Jan-2014
706,Revenue,CCHD,Sexual Health Services - Contraception,Other Supplies & Services,Frome Valley Medical Centre,2766.76, 17-Jan-2014
707,Revenue,CCHD,Swift Dump Code,Other Supplies & Services,Fshc  1St Floor,62300, 21-Jan-2014
708,Revenue,CCHD,Bed purchasing - Elderly MH - North,Permanent Nursing,Fshc  1St Floor,786.72, 28-Jan-2014
709,Revenue,CCHD,Bed Purchasing - Elderly - South,Permanent Nursing,Fshc  1St Floor,992.4, 28-Jan-2014
710,Revenue,CCHD,South Glos Users in South Glos Homes,Permanent Nursing,Fshc  1St Floor,1584.11, 28-Jan-2014
711,Revenue,CCHD,Bed Purchasing - Southmead Hospital,Permanent Nursing,Fshc  1St Floor,985.8, 28-Jan-2014
712,Revenue,CCHD,Bed Purchasing - Elderly - North,Permanent Nursing,Fshc  1St Floor,1134.84, 28-Jan-2014
713,Revenue,CCHD,Bed Purchasing - Elderly - North,Permanent Nursing,Fshc  1St Floor,974.36, 28-Jan-2014
714,Revenue,CCHD,Bed Purchasing - Frenchay Hospital,Permanent Nursing,Fshc  1St Floor,1019.32, 28-Jan-2014
715,Revenue,CCHD,Swift Dump Code,Permanent Residential,Fshc  1St Floor,509.66, 28-Jan-2014
716,Revenue,CCHD,South Glos Users in South Glos Homes,Permanent Nursing,Fshc  1St Floor,4391.6, 28-Jan-2014
717,Revenue,CCHD,Bed Purchasing - Elderly - North,Permanent Nursing,Fshc  1St Floor,1284.08, 28-Jan-2014
718,Revenue,CCHD,Bed Purchasing - Elderly - North,Permanent Nursing,Fshc  1St Floor,1339, 28-Jan-2014
719,Revenue,CCHD,Bed Purchasing - Elderly - North,Permanent Nursing,Fshc  1St Floor,667.83, 28-Jan-2014
720,Revenue,CCHD,Bed Purchasing - Southmead Hospital,Permanent Nursing,Fshc  1St Floor,1215.4, 28-Jan-2014
721,Revenue,CCHD,Bed Purchasing - Elderly - North,Permanent Residential,Fshc  1St Floor,1347.68, 28-Jan-2014
722,Revenue,CCHD,Bed Purchasing - Elderly - North,Permanent Residential,Fshc  1St Floor,1359.72, 28-Jan-2014
723,Revenue,CCHD,South Glos Users in South Glos Homes,Permanent Nursing,Fshc  1St Floor,2744.75, 28-Jan-2014
724,Revenue,CCHD,Bed Purchasing - Southmead Hospital,Permanent Nursing,Fshc  1St Floor,2032, 28-Jan-2014
725,Revenue,CCHD,Bed Purchasing - Frenchay Hospital,Permanent Nursing,Fshc  1St Floor,1097.72, 28-Jan-2014
726,Revenue,CCHD,Bed Purchasing - Frenchay Hospital,Permanent Nursing,Fshc  1St Floor,1114.96, 28-Jan-2014
727,Revenue,CCHD,South Glos Users in South Glos Homes,Permanent Nursing,Fshc  1St Floor,2525.17, 28-Jan-2014
728,Revenue,CCHD,Bed purchasing - Elderly MH - North,Permanent Nursing,Fshc  1St Floor,1546, 28-Jan-2014
729,Revenue,CCHD,Bed Purchasing - Southmead Hospital,Permanent Nursing,Fshc  1St Floor,1269.68, 28-Jan-2014
730,Revenue,CCHD,South Glos Users in South Glos Homes,Permanent Nursing,Fshc  1St Floor,2634.96, 28-Jan-2014
731,Revenue,CCHD,Bed Purchasing - Frenchay Hospital,Permanent Residential,Fshc  1St Floor,699.05, 28-Jan-2014
732,Revenue,CCHD,South Glos Users in South Glos Homes,Permanent Nursing,Fshc  1St Floor,2352.64, 28-Jan-2014
733,Revenue,CCHD,South Glos Users in South Glos Homes,Permanent Nursing,Fshc  1St Floor,2525.17, 28-Jan-2014
734,Revenue,CCHD,Bed Purchasing - Elderly - South,Permanent Residential,Fshc  1St Floor,1117.84, 28-Jan-2014
735,Revenue,CCHD,Bed Purchasing - Frenchay Hospital,Permanent Nursing,Fshc  1St Floor,1546, 28-Jan-2014
736,Revenue,CCHD,Bed Purchasing - Southmead Hospital,Permanent Nursing,Fshc  1St Floor,1766.86, 28-Jan-2014
737,Revenue,CCHD,Bed Purchasing - Southmead Hospital,Permanent Nursing,Fshc  1St Floor,1546, 28-Jan-2014
738,Revenue,CCHD,Bed Purchasing - Elderly - North,Permanent Nursing,Fshc  1St Floor,1370, 28-Jan-2014
739,Revenue,CCHD,Bed Purchasing - Southmead Hospital,Permanent Nursing,Fshc  1St Floor,1370, 28-Jan-2014
740,Revenue,CCHD,Bed Purchasing - Elderly - North,Permanent Nursing,Fshc  1St Floor,579.12, 28-Jan-2014
741,Revenue,CCHD,Bed purchasing - Elderly MH - North,Permanent Nursing,Fshc  1St Floor,1468.6, 28-Jan-2014
742,Revenue,CCHD,Bed Purchasing - Elderly - North,Permanent Nursing,Fshc  1St Floor,1269.68, 28-Jan-2014
743,Revenue,CCHD,Bed Purchasing - Frenchay Hospital,Permanent Nursing,Fshc  1St Floor,1018.76, 28-Jan-2014
744,Revenue,CCHD,Bed Purchasing - Southmead Hospital,Permanent Nursing,Fshc  1St Floor,1364.32, 28-Jan-2014
745,Revenue,CCHD,Bed Purchasing - Frenchay Hospital,Permanent Residential,Fshc  1St Floor,628.4, 28-Jan-2014
746,Revenue,CCHD,Bed Purchasing - Frenchay Hospital,Permanent Nursing,Fshc  1St Floor,1286.96, 28-Jan-2014
747,Revenue,CCHD,Bed Purchasing - Frenchay Hospital,Permanent Nursing,Fshc  1St Floor,1350.84, 28-Jan-2014
748,Revenue,CCHD,Bed Purchasing - Elderly - North,Permanent Nursing,Fshc  1St Floor,1041.72, 28-Jan-2014
749,Revenue,CCHD,Bed Purchasing - Elderly - North,Permanent Residential,Fshc  1St Floor,782.56, 28-Jan-2014
750,Revenue,CCHD,Bed Purchasing - Frenchay Hospital,Respite Emergency - Nursing,Fshc  1St Floor,2171.14, 28-Jan-2014
751,Revenue,CCHD,Bed Purchasing - Frenchay Hospital,Permanent Nursing,Fshc  1St Floor,1211.8, 28-Jan-2014
752,Revenue,CCHD,Bed Purchasing - Southmead Hospital,Permanent Nursing,Fshc  1St Floor,1450.56, 28-Jan-2014
753,Revenue,CCHD,Bed Purchasing - Southmead Hospital,Permanent Nursing,Fshc  1St Floor,1546, 28-Jan-2014
754,Revenue,CCHD,South Glos Users in South Glos Homes,Permanent Nursing,Fshc  1St Floor,4391.6, 28-Jan-2014
755,Revenue,CCHD,Bed Purchasing - Elderly MH - South,Permanent Nursing,Fshc  1St Floor,1327.8, 28-Jan-2014
756,Revenue,CCHD,Bed Purchasing - Elderly - North,Permanent Nursing,Fshc  1St Floor,1449, 28-Jan-2014
757,Revenue,CCHD,Bed Purchasing - Elderly - North,Permanent Residential,Fshc  1St Floor,505.4, 28-Jan-2014
758,Revenue,CCHD,Bed purchasing - Elderly MH - North,Permanent Residential,Fshc  1St Floor,1438, 28-Jan-2014
759,Revenue,CCHD,Bed purchasing - Elderly MH - North,Permanent Residential,Fshc  1St Floor,706.28, 28-Jan-2014
760,Revenue,CCHD,Bed Purchasing - Elderly - North,Permanent Nursing,Fshc  1St Floor,1530.84, 28-Jan-2014
761,Revenue,CCHD,Bed purchasing - Elderly S117 - South,Permanent Nursing,Fshc  1St Floor,1856, 28-Jan-2014
762,Revenue,CCHD,Bed purchasing - Elderly MH - North,Permanent Residential,Fshc  1St Floor,1255.2, 28-Jan-2014
763,Revenue,CCHD,Bed Purchasing - Southmead Hospital,Permanent Residential,Fshc  1St Floor,1246, 28-Jan-2014
764,Revenue,CCHD,Bed Purchasing - Elderly - North,Permanent Residential,Fshc  1St Floor,1155.6, 28-Jan-2014
765,Revenue,CCHD,South Glos Users in South Glos Homes,Permanent Nursing,Fshc  1St Floor,3968.12, 28-Jan-2014
766,Revenue,CCHD,Bed purchasing - Elderly MH - North,Permanent Residential,Fshc  1St Floor,1378.88, 28-Jan-2014
767,Revenue,CCHD,Bed Purchasing - Elderly - North,Permanent Nursing,Fshc  1St Floor,1349.52, 28-Jan-2014
768,Revenue,CCHD,Bed Purchasing - Southmead Hospital,Permanent Nursing,Fshc  1St Floor,1213.24, 28-Jan-2014
769,Revenue,CCHD,Bed purchasing - Elderly MH - North,Permanent Nursing,Fshc  1St Floor,1048.64, 28-Jan-2014
770,Revenue,CCHD,South Glos Users in South Glos Homes,Permanent Nursing,Fshc  1St Floor,1192.01, 28-Jan-2014
771,Revenue,CCHD,Swift Dump Code,Other Supplies & Services,Fshc  1St Floor,106400, 21-Jan-2014
772,Revenue,CCHD,Bed Purchasing - Elderly - North,Permanent Nursing,Fshc  1St Floor,1370, 28-Jan-2014
773,Revenue,CCHD,Bed Purchasing - Elderly - North,Permanent Residential,Fshc  1St Floor,1254, 28-Jan-2014
774,Revenue,CCHD,Bed Purchasing - Elderly - North,Permanent Nursing,Fshc  1St Floor,1145.72, 28-Jan-2014
775,Revenue,CCHD,South Glos Users in South Glos Homes,Permanent Nursing,Fshc  1St Floor,941.06, 28-Jan-2014
776,Revenue,CCHD,Bed Purchasing - Frenchay Hospital,Permanent Residential,Fshc  1St Floor,1246, 28-Jan-2014
777,Revenue,CCHD,Bed Purchasing - Elderly - North,Permanent Nursing,Fshc  1St Floor,509.8, 28-Jan-2014
778,Revenue,CCHD,South Glos Users in South Glos Homes,Permanent Nursing,Fshc  1St Floor,1428.63, 28-Jan-2014
779,Revenue,CCHD,Bed Purchasing - Frenchay Hospital,Permanent Nursing,Fshc  1St Floor,1307.44, 28-Jan-2014
780,Revenue,CCHD,Bed Purchasing - Elderly - North,Permanent Nursing,Fshc  1St Floor,854.8, 28-Jan-2014
781,Revenue,CCHD,Bed Purchasing - Elderly - North,Permanent Nursing,Fshc  1St Floor,1013.16, 28-Jan-2014
782,Revenue,CCHD,South Glos Users in South Glos Homes,Permanent Nursing,Fshc  1St Floor,3168.23, 28-Jan-2014
783,Revenue,CCHD,Bed Purchasing - Southmead Hospital,Permanent Nursing,Fshc  1St Floor,1020.68, 28-Jan-2014
784,Revenue,CCHD,Bed Purchasing - Southmead Hospital,Permanent Nursing,Fshc  1St Floor,3315, 28-Jan-2014
785,Revenue,CCHD,Bed Purchasing - Southmead Hospital,Permanent Nursing,Fshc  1St Floor,1131.62, 28-Jan-2014
786,Revenue,CCHD,Bed Purchasing - Elderly - South,Permanent Nursing,Fshc  1St Floor,1368.76, 28-Jan-2014
787,Revenue,CCHD,Bed Purchasing - Frenchay Hospital,Permanent Nursing,Fshc  1St Floor,1304.8, 28-Jan-2014
788,Revenue,CCHD,Bed Purchasing - Frenchay Hospital,Permanent Nursing,Fshc  1St Floor,763.08, 28-Jan-2014
789,Revenue,CCHD,Bed Purchasing - Frenchay Hospital,Permanent Nursing,Fshc  1St Floor,557.49, 28-Jan-2014
790,Revenue,CCHD,Bed Purchasing - Frenchay Hospital,Permanent Nursing,Fshc  1St Floor,1370, 28-Jan-2014
791,Revenue,CCHD,Bed Purchasing - Southmead Hospital,Permanent Nursing,Fshc  1St Floor,592.56, 28-Jan-2014
792,Revenue,CCHD,Bed Purchasing - Elderly - North,Permanent Nursing,Fshc  1St Floor,1268.68, 28-Jan-2014
793,Revenue,CCHD,Bed Purchasing - Elderly - North,Permanent Nursing,Fshc  1St Floor,1071.64, 28-Jan-2014
794,Revenue,CCHD,Bed Purchasing - Southmead Hospital,Permanent Nursing,Fshc  1St Floor,754.48, 28-Jan-2014
795,Revenue,CCHD,Bed Purchasing - Frenchay Hospital,Permanent Nursing,Fshc  1St Floor,873.36, 28-Jan-2014
796,Revenue,CCHD,South Glos Users in South Glos Homes,Permanent Nursing,Fshc  1St Floor,4391.6, 28-Jan-2014
797,Revenue,CCHD,Bed Purchasing - Southmead Hospital,Permanent Nursing,Fshc  1St Floor,1292.6, 28-Jan-2014
798,Revenue,CCHD,Bed Purchasing - Elderly - North,Permanent Nursing,Fshc  1St Floor,1249.04, 28-Jan-2014
799,Revenue,CCHD,Bed Purchasing - Southmead Hospital,Permanent Nursing,Fshc  1St Floor,1370, 28-Jan-2014
800,Revenue,CCHD,Bed Purchasing - Elderly - South,Permanent Nursing,Fshc  1St Floor,1390, 28-Jan-2014
801,Revenue,CCHD,Bed Purchasing - Frenchay Hospital,Permanent Nursing,Fshc  1St Floor,1336.6, 28-Jan-2014
802,Revenue,CCHD,Bed Purchasing - Southmead Hospital,Permanent Nursing,Fshc  1St Floor,1344.2, 28-Jan-2014
803,Revenue,CCHD,Swift Dump Code,Other Supplies & Services,Fshc  1St Floor,32500, 21-Jan-2014
804,Revenue,CCHD,Bed Purchasing - Southmead Hospital,Permanent Nursing,Fshc  1St Floor,3564.83, 28-Jan-2014
805,Revenue,CCHD,Bed Purchasing - Southmead Hospital,Permanent Nursing,Fshc  1St Floor,1957.16, 28-Jan-2014
806,Revenue,CCHD,Bed Purchasing - Elderly - North,Permanent Residential,Fshc  1St Floor,2960.04, 28-Jan-2014
807,Revenue,CCHD,Bed purchasing - Phys Dis - North,Permanent Nursing,Fshc  1St Floor,1376.28, 28-Jan-2014
808,Revenue,CCHD,Swift Dump Code,Other Supplies & Services,Fshc  1St Floor,4800, 21-Jan-2014
809,Revenue,CCHD,Bed Purchasing - Elderly - South,Permanent Nursing,Fshc  1St Floor,1224.64, 28-Jan-2014
810,Revenue,CCHD,Bed Purchasing - Elderly - South,Respite Emergency - Residential,Fshc  1St Floor,1732, 28-Jan-2014
811,Revenue,CCHD,South Glos Users in South Glos Homes,Permanent Nursing,Fshc  1St Floor,1286.11, 28-Jan-2014
812,Revenue,CCHD,Bed Purchasing - Southmead Hospital,Permanent Nursing,Fshc  1St Floor,1370, 28-Jan-2014
813,Revenue,CCHD,Bed Purchasing - Elderly - North,Permanent Residential,Fshc  1St Floor,1342.12, 28-Jan-2014
814,Revenue,CCHD,Bed Purchasing - Southmead Hospital,Permanent Nursing,Fshc  1St Floor,1298.96, 28-Jan-2014
815,Revenue,CCHD,Bed Purchasing - Elderly MH - South,Permanent Residential,Fshc  1St Floor,1924, 28-Jan-2014
816,Revenue,CCHD,Bed Purchasing - Frenchay Hospital,Permanent Nursing,Fshc  1St Floor,1359.08, 28-Jan-2014
817,Revenue,CCHD,Bed Purchasing - Frenchay Hospital,Permanent Nursing,Fshc  1St Floor,1293.56, 28-Jan-2014
818,Revenue,CCHD,Bed Purchasing - Southmead Hospital,Permanent Residential,Fshc  1St Floor,1466, 28-Jan-2014
819,Revenue,CCHD,Bed Purchasing - Elderly - South,Permanent Residential,Fshc  1St Floor,1399.72, 28-Jan-2014
820,Revenue,CCHD,Bed Purchasing - Elderly - North,Permanent Residential,Fshc  1St Floor,1160.96, 28-Jan-2014
821,Revenue,CCHD,Bed Purchasing - Elderly - North,Permanent Nursing,Fshc  1St Floor,1135, 28-Jan-2014
822,Revenue,CCHD,Bed Purchasing - Frenchay Hospital,Permanent Nursing,Fshc  1St Floor,1230.52, 28-Jan-2014
823,Revenue,CCHD,Bed purchasing - Elderly MH - North,Permanent Residential,Fshc  1St Floor,1438, 28-Jan-2014
824,Revenue,CCHD,Bed Purchasing - Southmead Hospital,Permanent Nursing,Fshc  1St Floor,1370, 28-Jan-2014
825,Revenue,CCHD,Bed Purchasing - Southmead Hospital,Permanent Nursing,Fshc  1St Floor,1366, 28-Jan-2014
826,Revenue,CCHD,Bed Purchasing - Elderly - South,Permanent Residential,Fshc  1St Floor,901.24, 28-Jan-2014
827,Revenue,CCHD,Bed purchasing - Elderly PWLD - South,Permanent Residential,Fshc  1St Floor,1246, 28-Jan-2014
828,Revenue,CCHD,Bed Purchasing - Frenchay Hospital,Permanent Nursing,Fshc  1St Floor,1370, 28-Jan-2014
829,Revenue,CCHD,Bed Purchasing - Southmead Hospital,Permanent Nursing,Fshc  1St Floor,1101.08, 28-Jan-2014
830,Revenue,CCHD,Bed Purchasing - Elderly - North,Permanent Residential,Fshc  1St Floor,1179.92, 28-Jan-2014
831,Revenue,CCHD,Bed Purchasing - Frenchay Hospital,Permanent Nursing,Fshc  1St Floor,1856, 28-Jan-2014
832,Revenue,CCHD,Bed Purchasing - Frenchay Hospital,Permanent Nursing,Fshc  1St Floor,1370, 28-Jan-2014
833,Revenue,CCHD,Bed Purchasing - Southmead Hospital,Permanent Nursing,Fshc  1St Floor,957.12, 28-Jan-2014
834,Revenue,CCHD,Bed Purchasing - Elderly - South,Permanent Residential,Fshc  1St Floor,816.56, 28-Jan-2014
835,Revenue,CCHD,Bed Purchasing - Elderly - South,Permanent Nursing,Fshc  1St Floor,10832, 28-Jan-2014
836,Revenue,CCHD,South Glos Users in South Glos Homes,Permanent Nursing,Fshc  1St Floor,3513.28, 28-Jan-2014
837,Revenue,CCHD,Bed Purchasing - Elderly - South,Permanent Nursing,Fshc  1St Floor,1354, 28-Jan-2014
838,Revenue,CCHD,South Glos Users in South Glos Homes,Permanent Nursing,Fshc  1St Floor,3560.33, 28-Jan-2014
839,Revenue,CCHD,Bed Purchasing - Southmead Hospital,Permanent Residential,Fshc  1St Floor,1453.28, 28-Jan-2014
840,Revenue,CCHD,Bed Purchasing - Elderly - South,Permanent Nursing,Fshc  1St Floor,1206.76, 28-Jan-2014
841,Revenue,CCHD,Bed Purchasing - Elderly - South,Permanent Nursing,Fshc  1St Floor,941.76, 28-Jan-2014
842,Revenue,CCHD,Bed purchasing - Elderly S117 - South,Permanent Nursing,Fshc  1St Floor,1856, 28-Jan-2014
843,Revenue,CCHD,Bed Purchasing - Frenchay Hospital,Permanent Residential,Fshc  1St Floor,1107.56, 28-Jan-2014
844,Revenue,CCHD,Bed Purchasing - Elderly - North,Permanent Nursing,Fshc  1St Floor,3171.52, 28-Jan-2014
845,Revenue,CCHD,Bed Purchasing - Elderly - North,Permanent Nursing,Fshc  1St Floor,1305.92, 28-Jan-2014
846,Revenue,CCHD,South Glos Users in South Glos Homes,Permanent Nursing,Fshc  1St Floor,2509.49, 28-Jan-2014
847,Revenue,CCHD,Bed Purchasing - Elderly - North,Respite Emergency - Residential,Fshc  1St Floor,1360.86, 28-Jan-2014
848,Revenue,CCHD,Bed Purchasing - Southmead Hospital,Permanent Residential,Fshc  1St Floor,1331.76, 28-Jan-2014
849,Revenue,CCHD,South Glos Users in South Glos Homes,Permanent Nursing,Fshc  1St Floor,4328.86, 28-Jan-2014
850,Revenue,CCHD,Bed Purchasing - Southmead Hospital,Permanent Nursing,Fshc  1St Floor,1180.56, 28-Jan-2014
851,Revenue,CCHD,Bed Purchasing - Elderly - North,Permanent Residential,Fshc  1St Floor,1199.92, 28-Jan-2014
852,Revenue,CCHD,Swift Dump Code,Other Supplies & Services,Fshc  1St Floor,51900, 21-Jan-2014
853,Revenue,CCHD,Bed Purchasing - Elderly - South,Permanent Nursing,Fshc  1St Floor,1370, 28-Jan-2014
854,Revenue,CCHD,Bed Purchasing - Elderly - South,Permanent Nursing,Fshc  1St Floor,1321.07, 28-Jan-2014
855,Revenue,CCHD,Bed Purchasing - Elderly - South,Permanent Nursing,Fshc  1St Floor,1370, 28-Jan-2014
856,Revenue,CCHD,Bed Purchasing - Elderly - South,Permanent Nursing,Fshc  1St Floor,1321.07, 28-Jan-2014
857,Revenue,CCHD,Bed Purchasing - Southmead Hospital,Permanent Nursing,Fshc  1St Floor,1856, 28-Jan-2014
858,Revenue,CCHD,Bed Purchasing - Frenchay Hospital,Permanent Nursing,Fshc  1St Floor,1109.92, 28-Jan-2014
859,Revenue,CCHD,Bed Purchasing - Southmead Hospital,Permanent Nursing,Fshc  1St Floor,1114.88, 28-Jan-2014
860,Revenue,CCHD,Bed Purchasing - Frenchay Hospital,Permanent Nursing,Fshc  1St Floor,956.08, 28-Jan-2014
861,Revenue,CCHD,Bed Purchasing - Frenchay Hospital,Permanent Nursing,Fshc  1St Floor,871.05, 28-Jan-2014
862,Revenue,CCHD,Bed Purchasing - Frenchay Hospital,Permanent Nursing,Fshc  1St Floor,1117.88, 28-Jan-2014
863,Revenue,CCHD,Bed Purchasing - Frenchay Hospital,Permanent Nursing,Fshc  1St Floor,1174.29, 28-Jan-2014
864,Revenue,CCHD,Bed Purchasing - Frenchay Hospital,Permanent Nursing,Fshc  1St Floor,1060.28, 28-Jan-2014
865,Revenue,CCHD,Bed Purchasing - Southmead Hospital,Permanent Nursing,Fshc  1St Floor,870.76, 28-Jan-2014
866,Revenue,CCHD,Swift Dump Code,Other Supplies & Services,Fshc  1St Floor,14100, 21-Jan-2014
867,Revenue,CCHD,Bed Purchasing - Southmead Hospital,Permanent Nursing,Fshc  1St Floor,739.04, 28-Jan-2014
868,Revenue,CCHD,Bed Purchasing - Southmead Hospital,Permanent Residential,Fshc  1St Floor,1732, 28-Jan-2014
869,Revenue,CCHD,Bed Purchasing - Frenchay Hospital,Permanent Nursing,Fshc  1St Floor,1394.12, 28-Jan-2014
870,Revenue,CCHD,Bed Purchasing - Elderly - North,Permanent Nursing,Fshc  1St Floor,1276.2, 28-Jan-2014
871,Revenue,CCHD,Swift Dump Code,Other Supplies & Services,Fshc  1St Floor,5100, 21-Jan-2014
872,Revenue,CCHD,Bed purchasing - Phys Dis - North,Permanent Nursing,Fshc  1St Floor,840.44, 28-Jan-2014
873,Revenue,CCHD,Swift Dump Code,Other Supplies & Services,Fshc  1St Floor,800, 21-Jan-2014
874,Revenue,CCHD,Bed Purchasing - Elderly - North,Permanent Nursing,Fshc  1St Floor,1478, 28-Jan-2014
875,Revenue,CCHD,Bed Purchasing - Elderly - North,Permanent Nursing,Fshc  1St Floor,1209.6, 28-Jan-2014
876,Revenue,CCHD,Bed Purchasing - Frenchay Hospital,Permanent Nursing,Fshc  1St Floor,1302, 28-Jan-2014
877,Revenue,CCHD,Bed purchasing - Elderly MH - North,Permanent Nursing,Fshc  1St Floor,858.48, 28-Jan-2014
878,Revenue,CCHD,Bed Purchasing - Southmead Hospital,Permanent Nursing,Fshc  1St Floor,1478, 28-Jan-2014
879,Revenue,CCHD,Bed Purchasing - Frenchay Hospital,Permanent Residential,Fshc  1St Floor,1215.68, 28-Jan-2014
880,Revenue,CCHD,Bed Purchasing - Southmead Hospital,Permanent Nursing,Fshc  1St Floor,1285.4, 28-Jan-2014
881,Revenue,CCHD,Bed Purchasing - Frenchay Hospital,Permanent Residential,Fshc  1St Floor,2665.36, 28-Jan-2014
882,Revenue,CCHD,Bed Purchasing - Southmead Hospital,Permanent Nursing,Fshc  1St Floor,1445.84, 28-Jan-2014
883,Revenue,CCHD,Swift Dump Code,Other Supplies & Services,Fshc  1St Floor,12100, 21-Jan-2014
884,Revenue,CCHD,Swift Dump Code,Other Supplies & Services,Fshc  1St Floor,8400, 21-Jan-2014
885,Revenue,CCHD,Bed Purchasing - Elderly - South,Permanent Residential,Fshc  1St Floor,1340.56, 28-Jan-2014
886,Revenue,CCHD,Swift Dump Code,Other Supplies & Services,Fshc  1St Floor,1300, 21-Jan-2014
887,Revenue,CCHD,Woodleaze,Prop.Serv. General Repairs,George Grimes,850.5, 22-Jan-2014
888,Revenue,CCHD,Alexandra Way,Prop.Serv. General Repairs,George Grimes,970.5, 29-Jan-2014
889,Revenue,CCHD,Section 117 Placements MH Younger,Permanent Residential,Gladstone House,2721.88, 28-Jan-2014
890,Revenue,CCHD,Swift Dump Code,Other Supplies & Services,Gladstone House,2700, 21-Jan-2014
891,Revenue,CCHD,Bed purchasing - Elderly MH - North,Permanent Residential,Glebe House Nursing Home,1792.88, 28-Jan-2014
892,Revenue,CCHD,Bed purchasing - Elderly MH - North,Permanent Residential,Glebe House Nursing Home,1024.5, 28-Jan-2014
893,Revenue,CCHD,South Glos Users in South Glos Homes,Permanent Nursing,Glebe House Nursing Home,1803.69, 28-Jan-2014
894,Revenue,CCHD,Bed purchasing - Elderly MH - North,Permanent Residential,Glebe House Nursing Home,2007.6, 28-Jan-2014
895,Revenue,CCHD,Bed Purchasing - Elderly - North,Permanent Nursing,Glebe House Nursing Home,1387.96, 28-Jan-2014
896,Revenue,CCHD,South Glos Users in South Glos Homes,Permanent Nursing,Glebe House Nursing Home,4250.44, 28-Jan-2014
897,Revenue,CCHD,Bed Purchasing - Frenchay Hospital,Permanent Nursing,Glebe House Nursing Home,898.48, 28-Jan-2014
898,Revenue,CCHD,Bed Purchasing - Elderly - North,Permanent Residential,Glebe House Nursing Home,1172.16, 28-Jan-2014
899,Revenue,CCHD,Bed Purchasing - Elderly - North,Permanent Nursing,Glebe House Nursing Home,2221.14, 28-Jan-2014
900,Revenue,CCHD,Swift Dump Code,Permanent Residential,Glebe House Nursing Home,723.65, 28-Jan-2014
901,Revenue,CCHD,Swift Dump Code,Permanent Residential,Glebe House Nursing Home,1672.17, 28-Jan-2014
902,Revenue,CCHD,Bed Purchasing - Elderly - North,Permanent Nursing,Glebe House Nursing Home,1365.36, 28-Jan-2014
903,Revenue,CCHD,Bed Purchasing - Elderly - South,Permanent Residential,Glebe House Nursing Home,1977.76, 28-Jan-2014
904,Revenue,CCHD,Bed Purchasing - Elderly - North,Permanent Residential,Glebe House Nursing Home,2551.92, 28-Jan-2014
905,Revenue,CCHD,Swift Dump Code,Other Supplies & Services,Glebe House Nursing Home,22900, 21-Jan-2014
906,Revenue,CCHD,Bed Purchasing - Under 65s PWLD - South,Permanent Residential,Gordena Care Home,2082.36, 28-Jan-2014
907,Revenue,CCHD,Bed purchasing - Elderly PWLD - South,Permanent Residential,Gordena Care Home,4732.4, 28-Jan-2014
908,Revenue,CCHD,Bed purchasing - Elderly PWLD - South,Permanent Residential,Gordena Care Home,3116.24, 28-Jan-2014
909,Revenue,CCHD,Bed purchasing - Elderly PWLD - South,Permanent Residential,Gordena Care Home,2927.44, 28-Jan-2014
910,Revenue,CCHD,Bed Purchasing - Under 65s PWLD - South,Permanent Residential,Gordena Care Home,1907.6, 28-Jan-2014
911,Revenue,CCHD,Swift Dump Code,Other Supplies & Services,Gordena Care Home,14700, 21-Jan-2014
912,Revenue,CCHD,Bed Purchasing - Under 65s PWLD - South,Permanent Residential,Gordena Care Limited,4158.56, 28-Jan-2014
913,Revenue,CCHD,Bed purchasing - S28A Under 65 - South,Permanent Residential,Gordena Care Limited,4055.8, 28-Jan-2014
914,Revenue,CCHD,Bed purchasing - Under 65s PWLD - North,Permanent Residential,Gordena Care Limited,4160, 28-Jan-2014
915,Revenue,CCHD,Swift Dump Code,Other Supplies & Services,Gordena Care Limited,12300, 21-Jan-2014
916,Revenue,CCHD,Bed Purchasing - Elderly - North,Permanent Residential,Greensleeves,1312.68, 28-Jan-2014
917,Revenue,CCHD,Swift Dump Code,Other Supplies & Services,Greensleeves,1300, 21-Jan-2014
918,Revenue,CCHD,Swift Dump Code,Other Supplies & Services,Grove Care,7500, 21-Jan-2014
919,Revenue,CCHD,Swift Dump Code,Other Supplies & Services,Gwendoline House,9200, 21-Jan-2014
920,Revenue,CCHD,Cambrian Green Day Service,Prop.Serv. General Repairs,H & L Ceilings Limited,6225, 20-Jan-2014
921,Revenue,CCHD,Supporting People Programme,Grants to Voluntary Bodies,Habinteg Housing Association,1338.75, 31-Jan-2014
922,Revenue,CCHD,Bed Purchasing - Elderly - South,Permanent Residential,Harefield Hall,1327.24, 28-Jan-2014
923,Revenue,CCHD,Bed Purchasing - Elderly - South,Permanent Residential,Harefield Hall,1968.44, 28-Jan-2014
924,Revenue,CCHD,Bed Purchasing - Elderly - South,Permanent Residential,Harefield Hall,1112.96, 28-Jan-2014
925,Revenue,CCHD,Bed Purchasing - Elderly - South,Permanent Residential,Harefield Hall,1778.56, 28-Jan-2014
926,Revenue,CCHD,Bed Purchasing - Elderly MH - South,Permanent Residential,Harefield Hall,1030.52, 28-Jan-2014
927,Revenue,CCHD,Bed Purchasing - Elderly - South,Permanent Residential,Harefield Hall,1291.8, 28-Jan-2014
928,Revenue,CCHD,Swift Dump Code,Other Supplies & Services,Harefield Hall,8500, 21-Jan-2014
929,Revenue,CCHD,Swift Dump Code,Other Supplies & Services,Hc-One Ltd,3200, 21-Jan-2014
930,Revenue,CCHD,Swift Dump Code,Other Supplies & Services,Hc-One Ltd,15700, 21-Jan-2014
931,Revenue,CCHD,Day Care - South,Private & Voluntary Day Care,Headway Bristol,527.13, 06-Jan-2014
932,Revenue,CCHD,Home Care - Elderly - South,Other Small Contracts,Helping Hands Homecare,93.84, 03-Jan-2014
933,Revenue,CCHD,Home Care - Elderly - North,Other Small Contracts,Helping Hands Homecare,1759.69, 03-Jan-2014
934,Revenue,CCHD,Day Care - North,Private & Voluntary Day Care,Helping Hands Homecare,31.28, 03-Jan-2014
935,Revenue,CCHD,Home Care - Elderly - South,Other Small Contracts,Helping Hands Homecare,160.31, 03-Jan-2014
936,Revenue,CCHD,Home Care - Elderly - North,Other Small Contracts,Helping Hands Homecare,2052.94, 03-Jan-2014
937,Revenue,CCHD,Day Care - North,Private & Voluntary Day Care,Helping Hands Homecare,31.28, 03-Jan-2014
938,Revenue,CCHD,Home Care - Elderly - South,Other Small Contracts,Helping Hands Homecare,289.34, 03-Jan-2014
939,Revenue,CCHD,Home Care - Elderly - North,Other Small Contracts,Helping Hands Homecare,1079.16, 03-Jan-2014
940,Revenue,CCHD,Day Care - North,Private & Voluntary Day Care,Helping Hands Homecare,31.28, 03-Jan-2014
941,Revenue,CCHD,Home Care - Elderly - South,Other Small Contracts,Helping Hands Homecare,222.87, 17-Jan-2014
942,Revenue,CCHD,Home Care - Elderly - North,Other Small Contracts,Helping Hands Homecare,1032.24, 17-Jan-2014
943,Revenue,CCHD,Day Care - North,Private & Voluntary Day Care,Helping Hands Homecare,31.28, 17-Jan-2014
944,Revenue,CCHD,Home care - Elderly MH - North,Other Small Contracts,Helping Hands Homecare,31.28, 17-Jan-2014
945,Revenue,CCHD,S117 Placements PCT,Permanent Residential,Hesley Hall,30761.07, 28-Jan-2014
946,Revenue,CCHD,Bed purchasing - Under 65s PWLD - North,Permanent Residential,Holmleigh Care Homes Ltd,4000.16, 28-Jan-2014
947,Revenue,CCHD,Bed Purchasing - Under 65s PWLD - South,Permanent Residential,Holmleigh Care Homes Ltd,5027.72, 28-Jan-2014
948,Revenue,CCHD,Swift Dump Code,Other Supplies & Services,Holmleigh Care Homes Ltd,4000, 21-Jan-2014
949,Revenue,CCHD,Swift Dump Code,Other Supplies & Services,Holmleigh Care Homes Ltd,5000, 21-Jan-2014
950,Revenue,CCHD,Swift Dump Code,Other Supplies & Services,Holmwood House,11100, 21-Jan-2014
951,Revenue,CCHD,Bed purchasing - Under 65s PWLD - North,Permanent Residential,Home Farm Trust Ltd  5-6 Brook Office Pa,2810.04, 28-Jan-2014
952,Revenue,CCHD,Bed purchasing - Elderly PWLD - South,Permanent Residential,Home Farm Trust Ltd  5-6 Brook Office Pa,5050.32, 28-Jan-2014
953,Revenue,CCHD,Bed purchasing - Under 65s PWLD - North,Permanent Residential,Home Farm Trust Ltd  5-6 Brook Office Pa,3396, 28-Jan-2014
954,Revenue,CCHD,Bed Purchasing - Under 65s PWLD - South,Permanent Residential,Home Farm Trust Ltd  5-6 Brook Office Pa,4505.04, 28-Jan-2014
955,Revenue,CCHD,Swift Dump Code,Other Supplies & Services,Home Farm Trust Ltd  5-6 Brook Office Pa,9500, 21-Jan-2014
956,Revenue,CCHD,Swift Dump Code,Other Supplies & Services,Home Farm Trust Ltd  5-6 Brook Office Pa,6200, 21-Jan-2014
957,Revenue,CCHD,Bed purchasing - Under 65s PWLD - North,Permanent Residential,Home From Home Care Ltd,8857.52, 28-Jan-2014
958,Revenue,CCHD,Swift Dump Code,Other Supplies & Services,Home From Home Care Ltd,8800, 21-Jan-2014
959,Revenue,CCHD,Bed purchasing - Under 65s PWLD - North,Permanent Residential,Homes Caring For Autism Ltd  Churchill H,9755.64, 28-Jan-2014
960,Revenue,CCHD,Swift Dump Code,Other Supplies & Services,Homes Caring For Autism Ltd  Churchill H,9700, 21-Jan-2014
961,Revenue,CCHD,Bed Purchasing - Under 65s PWLD - South,Permanent Residential,Homes Caring For Autism Ltd  Churchill H,12715.92, 28-Jan-2014
962,Revenue,CCHD,Swift Dump Code,Other Supplies & Services,Homes Caring For Autism Ltd  Churchill H,12700, 21-Jan-2014
963,Revenue,CCHD,Bed purchasing - Under 65s PWLD - North,Permanent Residential,Homes Caring For Autism Ltd  Churchill H,12410, 28-Jan-2014
964,Revenue,CCHD,Swift Dump Code,Other Supplies & Services,Homes Caring For Autism Ltd  Churchill H,12400, 21-Jan-2014
965,Revenue,CCHD,Home Care - Elderly - South,Other Small Contracts,Honest Homecare,206.5, 03-Jan-2014
966,Revenue,CCHD,Home Care - Elderly - North,Other Small Contracts,Honest Homecare,602, 03-Jan-2014
967,Revenue,CCHD,Home Care - Elderly - South,Other Small Contracts,Honest Homecare,213.5, 09-Jan-2014
968,Revenue,CCHD,Home Care - Elderly - North,Other Small Contracts,Honest Homecare,661.5, 09-Jan-2014
969,Revenue,CCHD,Home Care - Elderly - South,Other Small Contracts,Honest Homecare,231, 17-Jan-2014
970,Revenue,CCHD,Home Care - Elderly - North,Other Small Contracts,Honest Homecare,658, 17-Jan-2014
971,Revenue,CCHD,Home Care - Elderly - South,Other Small Contracts,Honest Homecare,220.5, 27-Jan-2014
972,Revenue,CCHD,Home Care - Elderly - North,Other Small Contracts,Honest Homecare,651, 27-Jan-2014
973,Revenue,CCHD,Bed Purchasing - Elderly - South,Permanent Nursing,Horfield Care Limited,3937.11, 08-Jan-2014
974,Revenue,CCHD,Bed Purchasing - Elderly - North,Permanent Nursing,Horfield Care Limited,2403.04, 08-Jan-2014
975,Revenue,CCHD,Bed Purchasing - Frenchay Hospital,Permanent Nursing,Horfield Care Limited,1435.54, 08-Jan-2014
976,Revenue,CCHD,Bed Purchasing - Frenchay Hospital,Respite Emergency - Nursing,Horfield Care Limited,2161.5, 08-Jan-2014
977,Revenue,CCHD,Bed Purchasing - Southmead Hospital,Permanent Nursing,Horfield Care Limited,8256.95, 08-Jan-2014
978,Revenue,CCHD,Bed Purchasing - Elderly - South,Permanent Nursing,Horfield Care Limited,3980.62, 15-Jan-2014
979,Revenue,CCHD,Bed Purchasing - Elderly - North,Permanent Nursing,Horfield Care Limited,2892.52, 15-Jan-2014
980,Revenue,CCHD,Bed Purchasing - Frenchay Hospital,Permanent Nursing,Horfield Care Limited,1483.39, 15-Jan-2014
981,Revenue,CCHD,Bed Purchasing - Frenchay Hospital,Respite Emergency - Nursing,Horfield Care Limited,2233.55, 15-Jan-2014
982,Revenue,CCHD,Bed Purchasing - Southmead Hospital,Permanent Nursing,Horfield Care Limited,7976.44, 15-Jan-2014
983,Revenue,CCHD,Supporting People Programme,Grants to Voluntary Bodies,Housing 21,607.38, 31-Jan-2014
984,Revenue,CCHD,Supporting People Programme,Grants to Voluntary Bodies,Housing 21,921.33, 31-Jan-2014
985,Revenue,CCHD,Home Care - Elderly - North,Private & Voluntary Home Care,Housing 21,37028.34, 10-Jan-2014
986,Revenue,CCHD,Home Care - Elderly - South,Private & Voluntary Home Care,Housing 21,23516.42, 31-Jan-2014
987,Revenue,CCHD,Home Care - Elderly - South,Private & Voluntary Home Care,Housing 21,8842.75, 31-Jan-2014
988,Revenue,CCHD,Public Health - Admin,Grants to Voluntary Bodies,Housing21,800, 13-Jan-2014
989,Revenue,CCHD,Social Lettings Agency,Fees - General,Individual,11.6, 10-Jan-2014
990,Revenue,CCHD,Social Lettings Agency,Other Supplies & Services,Individual,655.41, 10-Jan-2014
991,Revenue,CCHD,Bed Purchasing - Elderly - North,Permanent Residential,Jah Jireh Charity Homes,1674.26, 28-Jan-2014
992,Revenue,CCHD,Homeless - Private Sector Leasing,Other Supplies & Services,Jill Collins,594, 15-Jan-2014
993,Revenue,CCHD,Training - Adult Services,Training Expenses,Jo Williams,544, 13-Jan-2014
994,Revenue,CCHD,Bed Purchasing - Under 65s PWLD - South,Permanent Residential,Julia Simone- Supp. Ind.,3902.32, 28-Jan-2014
995,Revenue,CCHD,Bed purchasing -S28A  Under 65 - North,Permanent Residential,Julia Simone- Supp. Ind.,3443.08, 28-Jan-2014
996,Revenue,CCHD,Swift Dump Code,Other Supplies & Services,Julia Simone- Supp. Ind.,7300, 21-Jan-2014
997,Revenue,CCHD,Bed Purchasing - Elderly - South,Permanent Residential,Karenza Ltd,1732, 28-Jan-2014
998,Revenue,CCHD,Swift Dump Code,Other Supplies & Services,Karenza Ltd,1700, 21-Jan-2014
999,Revenue,CCHD,Tenancy Start Up Scheme,Other Supplies & Services,Individual,1625, 16-Jan-2014
1000,Revenue,CCHD,Sexual Health Services - Contraception,Other Supplies & Services,Kennedy Way Surgery,1569.22, 20-Jan-2014
1001,Revenue,CCHD,Swift Dump Code,Other Supplies & Services,Kenver House Residential Home,29200, 21-Jan-2014
1002,Revenue,CCHD,Supporting People Programme,Grants to Voluntary Bodies,Keyring Living Support Networks,2874.42, 31-Jan-2014
1003,Revenue,CCHD,Bed Purchasing - Elderly - North,Permanent Nursing,Kingfisher Lodge Care Centre,2486.88, 28-Jan-2014
1004,Revenue,CCHD,Swift Dump Code,Other Supplies & Services,Kingfisher Lodge Care Centre,2400, 21-Jan-2014
1005,Revenue,CCHD,Stop Smoking Services and Interventions,Other Supplies & Services,Kingswood Health Centre,1730, 03-Jan-2014
1006,Revenue,CCHD,Drug Misuse - Adults,Other Supplies & Services,Kingswood Health Centre,2842, 03-Jan-2014
1007,Revenue,CCHD,Stop Smoking Services and Interventions,Other Supplies & Services,Kingswood Health Centre,870, 17-Jan-2014
1008,Revenue,CCHD,Drug Misuse - Adults,Other Supplies & Services,Kingswood Health Centre,3248, 17-Jan-2014
1009,Revenue,CCHD,Sexual Health Services - Contraception,Other Supplies & Services,Kingswood Health Centre,5027.72, 24-Jan-2014
1010,Revenue,CCHD,Supporting People Programme,Grants to Voluntary Bodies,Kingswood Young Homeless Project,17289.42, 31-Jan-2014
1011,Revenue,CCHD,Community Care Contact Centre,Furniture & Fittings Loose,Kinnarps UK Limited (Invoice Account),2068.5, 27-Jan-2014
1012,Revenue,CCHD,Community Care Contact Centre,Furniture & Fittings Loose,Kinnarps UK Ltd (Contract Account),2068.5, 28-Jan-2014
1013,Revenue,CCHD,Bed purchasing - Under 65s PWLD - North,Permanent Residential,Kisimul Group,11223.12, 28-Jan-2014
1014,Revenue,CCHD,Swift Dump Code,Other Supplies & Services,Kisimul Group,11200, 21-Jan-2014
1015,Revenue,CCHD,Supporting People Programme,Grants to Voluntary Bodies,Knightstone Housing Association Limited,13316.58, 31-Jan-2014
1016,Revenue,CCHD,Supporting People Programme,Grants to Voluntary Bodies,Knightstone Housing Association Limited,8413.33, 31-Jan-2014
1017,Revenue,CCHD,Supporting People Programme,Grants to Voluntary Bodies,Knightstone Housing Association Limited,7491.58, 31-Jan-2014
1018,Revenue,CCHD,Supporting People Programme,Grants to Voluntary Bodies,Knightstone Housing Association Limited,1883.92, 31-Jan-2014
1019,Revenue,CCHD,Supporting People Programme,Grants to Voluntary Bodies,Knightstone Housing Association Limited,2446.5, 31-Jan-2014
1020,Revenue,CCHD,Supporting People Programme,Grants to Voluntary Bodies,Knightstone Housing Association Limited,2447.08, 31-Jan-2014
1021,Revenue,CCHD,Supporting People Programme,Grants to Voluntary Bodies,Knightstone Housing Association Limited,1189.08, 31-Jan-2014
1022,Revenue,CCHD,Supporting People Programme,Grants to Voluntary Bodies,Knightstone Housing Association Limited,2194.67, 31-Jan-2014
1023,Revenue,CCHD,Home Care - Elderly - South,Other Small Contracts,Kumari Care Limited,3524.18, 10-Jan-2014
1024,Revenue,CCHD,Home Care - Elderly - North,Other Small Contracts,Kumari Care Limited,833.86, 10-Jan-2014
1025,Revenue,CCHD,Under 65s -MH  Home Care Purch,Other Small Contracts,Kumari Care Limited,189.14, 10-Jan-2014
1026,Revenue,CCHD,Home Care - Elderly - South,Other Small Contracts,Kumari Care Limited,3701.74, 10-Jan-2014
1027,Revenue,CCHD,Home Care - Elderly - North,Other Small Contracts,Kumari Care Limited,887.9, 10-Jan-2014
1028,Revenue,CCHD,Day Care - South,Private & Voluntary Day Care,Kumari Care Limited,96.5, 10-Jan-2014
1029,Revenue,CCHD,Under 65s -MH  Home Care Purch,Other Small Contracts,Kumari Care Limited,266.34, 10-Jan-2014
1030,Revenue,CCHD,Home Care - Elderly - South,Other Small Contracts,Kumari Care Limited,3775.08, 10-Jan-2014
1031,Revenue,CCHD,Home Care - Elderly - North,Other Small Contracts,Kumari Care Limited,872.46, 10-Jan-2014
1032,Revenue,CCHD,Day Care - South,Private & Voluntary Day Care,Kumari Care Limited,96.5, 10-Jan-2014
1033,Revenue,CCHD,Under 65s -MH  Home Care Purch,Other Small Contracts,Kumari Care Limited,254.76, 10-Jan-2014
1034,Revenue,CCHD,Home Care - Elderly - South,Other Small Contracts,Kumari Care Limited,3389.08, 17-Jan-2014
1035,Revenue,CCHD,Home Care - Elderly - North,Other Small Contracts,Kumari Care Limited,845.44, 17-Jan-2014
1036,Revenue,CCHD,Day Care - South,Private & Voluntary Day Care,Kumari Care Limited,96.5, 17-Jan-2014
1037,Revenue,CCHD,Under 65s -MH  Home Care Purch,Other Small Contracts,Kumari Care Limited,266.34, 17-Jan-2014
1038,Revenue,CCHD,Home Care - Elderly - South,Other Small Contracts,Kumari Care Limited,2958.96, 24-Jan-2014
1039,Revenue,CCHD,Home Care - Elderly - North,Other Small Contracts,Kumari Care Limited,283.46, 24-Jan-2014
1040,Revenue,CCHD,Day Care - South,Private & Voluntary Day Care,Kumari Care Limited,98.98, 24-Jan-2014
1041,Revenue,CCHD,Under 65s -MH  Home Care Purch,Other Small Contracts,Kumari Care Limited,262.48, 24-Jan-2014
1042,Revenue,CCHD,Home Care - Elderly - South,Other Small Contracts,Kumari Care Limited,3445.61, 31-Jan-2014
1043,Revenue,CCHD,Home Care - Elderly - North,Other Small Contracts,Kumari Care Limited,833.86, 31-Jan-2014
1044,Revenue,CCHD,Day Care - South,Private & Voluntary Day Care,Kumari Care Limited,96.5, 31-Jan-2014
1045,Revenue,CCHD,Under 65s -MH  Home Care Purch,Other Small Contracts,Kumari Care Limited,266.34, 31-Jan-2014
1046,Revenue,CCHD,Community Support - North,Preventative Assistance,L A (Bristol) Limited,2442.65, 29-Jan-2014
1047,Revenue,CCHD,Bed purchasing - Phys Dis - North,Permanent Nursing,Leonard Cheshire  National Account Centr,4963.04, 28-Jan-2014
1048,Revenue,CCHD,Bed purchasing - Phys Dis - North,Permanent Residential,Leonard Cheshire  National Account Centr,2868.88, 28-Jan-2014
1049,Revenue,CCHD,Bed Purchasing - Under 65s PWLD - South,Permanent Residential,Leonard Cheshire  National Account Centr,2959.44, 28-Jan-2014
1050,Revenue,CCHD,Bed Purchasing - Elderly - North,Permanent Nursing,Leonard Cheshire  National Account Centr,3468.8, 28-Jan-2014
1051,Revenue,CCHD,Bed purchasing - Phys Dis - North,Permanent Nursing,Leonard Cheshire  National Account Centr,2779.04, 28-Jan-2014
1052,Revenue,CCHD,Bed Purchasing - Elderly - North,Permanent Residential,Leonard Cheshire  National Account Centr,3150.32, 28-Jan-2014
1053,Revenue,CCHD,Swift Dump Code,Other Supplies & Services,Leonard Cheshire  National Account Centr,21000, 21-Jan-2014
1054,Revenue,CCHD,Bed purchasing - Under 65s PWLD - North,Permanent Residential,Leonard Cheshire  National Account Centr,5872.12, 28-Jan-2014
1055,Revenue,CCHD,Bed purchasing - Under 65s PWLD - North,Permanent Residential,Leonard Cheshire  National Account Centr,5870.56, 28-Jan-2014
1056,Revenue,CCHD,Swift Dump Code,Other Supplies & Services,Leonard Cheshire  National Account Centr,11700, 21-Jan-2014
1057,Revenue,CCHD,Swift Dump Code,Other Supplies & Services,Leonard Cheshire  National Account Centr,6400, 21-Jan-2014
1058,Revenue,CCHD,Swift Dump Code,Other Supplies & Services,Leonard Cheshire  National Account Centr,15200, 21-Jan-2014
1059,Revenue,CCHD,Swift Dump Code,Other Supplies & Services,Leonard Cheshire  National Account Centr,9900, 21-Jan-2014
1060,Revenue,CCHD,Swift Dump Code,Other Supplies & Services,Leonard Cheshire  National Account Centr,3600, 21-Jan-2014
1061,Revenue,CCHD,Swift Dump Code,Other Supplies & Services,Leonard Elms Care Home,4800, 21-Jan-2014
1062,Revenue,CCHD,Tenancy Start Up Scheme,Other Supplies & Services,Lifestyle Lettings (Deposit),750, 22-Jan-2014
1063,Revenue,CCHD,Tenancy Start Up Scheme,Other Supplies & Services,Lifestyle Lettings (Rent),695, 22-Jan-2014
1064,Revenue,CCHD,Supported Living - North,Private & Voluntary Home Care,Lifeways Community Care (Gloucester) Ltd,10990, 20-Jan-2014
1065,Revenue,CCHD,Supported Living - North,Private & Voluntary Home Care,Lifeways Community Care (Gloucester) Ltd,11373, 07-Jan-2014
1066,Revenue,CCHD,Supported Living - North,Private & Voluntary Home Care,Lifeways Community Care (Gloucester) Ltd,11373, 21-Jan-2014
1067,Revenue,CCHD,Supported Living - North,Private & Voluntary Home Care,Lifeways Community Care (Gloucester) Ltd,11373, 31-Jan-2014
1068,Revenue,CCHD,Bed Purchasing - Frenchay Hospital,Permanent Residential,Little Croft,1246, 28-Jan-2014
1069,Revenue,CCHD,Bed Purchasing - Elderly - South,Permanent Residential,Little Croft,1545.64, 28-Jan-2014
1070,Revenue,CCHD,Bed Purchasing - Frenchay Hospital,Permanent Residential,Little Croft,1246, 28-Jan-2014
1071,Revenue,CCHD,Bed Purchasing - Southmead Hospital,Permanent Residential,Little Croft,1722, 28-Jan-2014
1072,Revenue,CCHD,Bed Purchasing - Elderly - South,Respite Emergency - Residential,Little Croft,550, 28-Jan-2014
1073,Revenue,CCHD,Bed Purchasing - Elderly - South,Permanent Residential,Little Croft,1856, 28-Jan-2014
1074,Revenue,CCHD,Bed Purchasing - Elderly - South,Permanent Residential,Little Croft,1522.8, 28-Jan-2014
1075,Revenue,CCHD,Bed Purchasing - Frenchay Hospital,Permanent Residential,Little Croft,1187.44, 28-Jan-2014
1076,Revenue,CCHD,Bed Purchasing - Southmead Hospital,Permanent Residential,Little Croft,617.2, 28-Jan-2014
1077,Revenue,CCHD,Bed Purchasing - Elderly MH - South,Permanent Residential,Little Croft,1173.28, 28-Jan-2014
1078,Revenue,CCHD,Bed Purchasing - Elderly - South,Permanent Residential,Little Croft,833.4, 28-Jan-2014
1079,Revenue,CCHD,Bed Purchasing - Frenchay Hospital,Respite Emergency - Residential,Little Croft,1900, 28-Jan-2014
1080,Revenue,CCHD,Bed purchasing - Elderly MH - North,Permanent Residential,Little Croft,1414, 28-Jan-2014
1081,Revenue,CCHD,Bed purchasing - Elderly MH - North,Permanent Residential,Little Croft,1161.5, 28-Jan-2014
1082,Revenue,CCHD,Bed Purchasing - Southmead Hospital,Permanent Residential,Little Croft,1246, 28-Jan-2014
1083,Revenue,CCHD,Bed Purchasing - Elderly - North,Permanent Residential,Little Croft,1347.56, 28-Jan-2014
1084,Revenue,CCHD,Swift Dump Code,Other Supplies & Services,Little Croft,15300, 21-Jan-2014
1085,Revenue,CCHD,Swift Dump Code,Other Supplies & Services,Little Croft,2300, 21-Jan-2014
1086,Revenue,CCHD,Bed purchasing - Under 65s PWLD - North,Permanent Residential,Littlecroft Residential Homes  Longcroft,6386.28, 28-Jan-2014
1087,Revenue,CCHD,Swift Dump Code,Other Supplies & Services,Littlecroft Residential Homes  Longcroft,6300, 21-Jan-2014
1088,Revenue,CCHD,Sexual Health Services - STI & Treatment,Other Supplies & Services,Lloyds Pharmacy Limited,665, 27-Jan-2014
1089,Revenue,CCHD,Home Care - Elderly - North,Other Small Contracts,Lloyds TSB Commercial Finance Limited,7863.01, 13-Jan-2014
1090,Revenue,CCHD,Day Care - South,Private & Voluntary Day Care,Lloyds TSB Commercial Finance Limited,46.92, 13-Jan-2014
1091,Revenue,CCHD,Day Care - North,Private & Voluntary Day Care,Lloyds TSB Commercial Finance Limited,140.76, 13-Jan-2014
1092,Revenue,CCHD,Home Care - Elderly - North,Other Small Contracts,Lloyds TSB Commercial Finance Limited,7577.58, 13-Jan-2014
1093,Revenue,CCHD,Day Care - South,Private & Voluntary Day Care,Lloyds TSB Commercial Finance Limited,46.92, 13-Jan-2014
1094,Revenue,CCHD,Day Care - North,Private & Voluntary Day Care,Lloyds TSB Commercial Finance Limited,140.76, 13-Jan-2014
1095,Revenue,CCHD,Home Care - Elderly - North,Other Small Contracts,Lloyds TSB Commercial Finance Limited,7049.73, 23-Jan-2014
1096,Revenue,CCHD,Day Care - South,Private & Voluntary Day Care,Lloyds TSB Commercial Finance Limited,46.92, 23-Jan-2014
1097,Revenue,CCHD,Day Care - North,Private & Voluntary Day Care,Lloyds TSB Commercial Finance Limited,140.76, 23-Jan-2014
1098,Revenue,CCHD,Supported Living - South,Private & Voluntary Home Care,Lloyds TSB Commercial Finance Limited,3837.01, 20-Jan-2014
1099,Revenue,CCHD,Supported Living - South,Private & Voluntary Home Care,Lloyds TSB Commercial Finance Limited,9506.62, 20-Jan-2014
1100,Revenue,CCHD,Supported Living - South,Private & Voluntary Home Care,Lloyds TSB Commercial Finance Limited,3931.93, 20-Jan-2014
1101,Revenue,CCHD,Supported Living - South,Private & Voluntary Home Care,Lloyds TSB Commercial Finance Limited,8131.26, 20-Jan-2014
1102,Revenue,CCHD,Supported Living - South,Private & Voluntary Home Care,Lloyds TSB Commercial Finance Limited,3933.91, 20-Jan-2014
1103,Revenue,CCHD,Supported Living - South,Private & Voluntary Home Care,Lloyds TSB Commercial Finance Limited,3947.35, 20-Jan-2014
1104,Revenue,CCHD,Supported Living - North,Private & Voluntary Home Care,Lloyds TSB Commercial Finance Limited,9666.52, 20-Jan-2014
1105,Revenue,CCHD,Supported Living - South,Private & Voluntary Home Care,Lloyds TSB Commercial Finance Limited,4008.75, 20-Jan-2014
1106,Revenue,CCHD,Supported Living - South,Private & Voluntary Home Care,Lloyds TSB Commercial Finance Limited,3635.51, 20-Jan-2014
1107,Revenue,CCHD,Supported Living - South,Private & Voluntary Home Care,Lloyds TSB Commercial Finance Limited,3661.25, 20-Jan-2014
1108,Revenue,CCHD,Supported Living - South,Private & Voluntary Home Care,Lloyds TSB Commercial Finance Limited,6106.63, 20-Jan-2014
1109,Revenue,CCHD,Supported Living - South,Private & Voluntary Home Care,Lloyds TSB Commercial Finance Limited,3496.02, 20-Jan-2014
1110,Revenue,CCHD,Supported Living - South,Private & Voluntary Home Care,Lloyds TSB Commercial Finance Limited,3673.09, 20-Jan-2014
1111,Revenue,CCHD,Supported Living - North,Private & Voluntary Home Care,Lloyds TSB Commercial Finance Limited,8291, 20-Jan-2014
1112,Revenue,CCHD,Supported Living - South,Private & Voluntary Home Care,Lloyds TSB Commercial Finance Limited,3581.89, 20-Jan-2014
1113,Revenue,CCHD,Home Care - Elderly - North,Other Small Contracts,Lloyds TSB Commercial Finance Limited,7440.73, 13-Jan-2014
1114,Revenue,CCHD,Day Care - South,Private & Voluntary Day Care,Lloyds TSB Commercial Finance Limited,46.92, 13-Jan-2014
1115,Revenue,CCHD,Day Care - North,Private & Voluntary Day Care,Lloyds TSB Commercial Finance Limited,140.76, 13-Jan-2014
1116,Revenue,CCHD,Supported Living - South,Private & Voluntary Home Care,Loga Care Ltd (T/A Logacare),3795.33, 31-Jan-2014
1117,Revenue,CCHD,Social Lettings Agency,Fees - General,Individual,10, 31-Jan-2014
1118,Revenue,CCHD,Social Lettings Agency,Other Supplies & Services,Individual,565, 31-Jan-2014
1119,Revenue,CCHD,Day Care - North,Private & Voluntary Day Care,Lower Kilcott,1444.6, 28-Jan-2014
1120,Revenue,CCHD,Day Care - North,Private & Voluntary Day Care,Lower Kilcott,552.48, 28-Jan-2014
1121,Revenue,CCHD,Swift Dump Code,Other Supplies & Services,Lower Kilcott,2800, 21-Jan-2014
1122,Revenue,CCHD,Bed Purchasing - Southmead Hospital,Permanent Nursing,Majestic 3 Limited,998, 28-Jan-2014
1123,Revenue,CCHD,Swift Dump Code,Other Supplies & Services,Majestic 3 Limited,900, 21-Jan-2014
1124,Revenue,CCHD,Supported Living - South,Private & Voluntary Home Care,Make It Mentoring (MiM),896, 17-Jan-2014
1125,Revenue,CCHD,Supported Living - South,Private & Voluntary Home Care,Make It Mentoring (MiM),1160, 17-Jan-2014
1126,Revenue,CCHD,Supported Living - South,Private & Voluntary Home Care,Make It Mentoring (MiM),532, 17-Jan-2014
1127,Revenue,CCHD,Swift Dump Code,Other Supplies & Services,Mandeville Grange Nursing Home,7700, 21-Jan-2014
1128,Revenue,CCHD,Bed Purchasing - Elderly - North,Permanent Residential,Manor Cottage,1722.5, 28-Jan-2014
1129,Revenue,CCHD,Bed Purchasing - Southmead Hospital,Permanent Residential,Manor Cottage,1246, 28-Jan-2014
1130,Revenue,CCHD,Bed Purchasing - Elderly - South,Permanent Residential,Manor Cottage,1449.64, 28-Jan-2014
1131,Revenue,CCHD,Bed Purchasing - Southmead Hospital,Permanent Residential,Manor Cottage,1246, 28-Jan-2014
1132,Revenue,CCHD,Swift Dump Code,Other Supplies & Services,Manor Cottage,6100, 21-Jan-2014
1133,Revenue,CCHD,Bed Purchasing - Elderly - North,Permanent Residential,Manton Hall Residential Home,1496.44, 28-Jan-2014
1134,Revenue,CCHD,Swift Dump Code,Other Supplies & Services,Manton Hall Residential Home,1400, 21-Jan-2014
1135,Revenue,CCHD,Section 117 Placements MH Younger,Private & Voluntary Day Care,Maples Community Care Limited,798, 17-Jan-2014
1136,Revenue,CCHD,Section 117 Placements MH Younger,Private & Voluntary Day Care,Maples Community Care Limited,2597, 17-Jan-2014
1137,Revenue,CCHD,Younger MH non-res purchasing,Private & Voluntary Day Care,Maples Community Care Limited,2597, 17-Jan-2014
1138,Revenue,CCHD,Supporting People Programme,Grants to Voluntary Bodies,Maples Community Housing Limited,2677.58, 31-Jan-2014
1139,Revenue,CCHD,Social Lettings Agency,Fees - General,Individual,11.6, 20-Jan-2014
1140,Revenue,CCHD,Social Lettings Agency,Other Supplies & Services,Individual,543.41, 20-Jan-2014
1141,Revenue,CCHD,Community Support - South,Preventative Assistance,Mark Bonshor,779.64, 06-Jan-2014
1142,Revenue,CCHD,Bed Purchasing - Under 65s PWLD - South,Permanent Residential,Marsden Healthcare Limited,911.04, 24-Jan-2014
1143,Revenue,CCHD,Bed purchasing - Elderly PWLD - South,Permanent Residential,Marsden Healthcare Limited,3203, 24-Jan-2014
1144,Revenue,CCHD,Bed purchasing - Elderly PWLD - South,Permanent Residential,Marsden Healthcare Limited,1505.96, 24-Jan-2014
1145,Revenue,CCHD,Swift Dump Code,Other Supplies & Services,Marsden Healthcare Limited,5600, 17-Jan-2014
1146,Revenue,CCHD,Bed Purchasing - Elderly - South,Permanent Nursing,Meadow Care Home,1673.16, 28-Jan-2014
1147,Revenue,CCHD,Swift Dump Code,Other Supplies & Services,Meadow Care Home,1500, 21-Jan-2014
1148,Revenue,CCHD,Home Care - Elderly - South,Other Small Contracts,Mears Care,536.5, 27-Jan-2014
1149,Revenue,CCHD,Home Care - Elderly - North,Other Small Contracts,Mears Care,6238.2, 27-Jan-2014
1150,Revenue,CCHD,Day Care - North,Private & Voluntary Day Care,Mears Care,140.6, 27-Jan-2014
1151,Revenue,CCHD,Under 65s -MH  Home Care Purch,Other Small Contracts,Mears Care,111, 27-Jan-2014
1152,Revenue,CCHD,Home Care - Elderly LD - KH,Private & Voluntary Home Care,Mears Care,51.8, 27-Jan-2014
1153,Revenue,CCHD,Home Care - Elderly - South,Other Small Contracts,Mears Care,558.7, 27-Jan-2014
1154,Revenue,CCHD,Home Care - Elderly - North,Other Small Contracts,Mears Care,5809, 27-Jan-2014
1155,Revenue,CCHD,Day Care - North,Private & Voluntary Day Care,Mears Care,155.4, 27-Jan-2014
1156,Revenue,CCHD,Under 65s -MH  Home Care Purch,Other Small Contracts,Mears Care,111, 27-Jan-2014
1157,Revenue,CCHD,Home Care - Elderly LD - KH,Private & Voluntary Home Care,Mears Care,55.5, 27-Jan-2014
1158,Revenue,CCHD,Home Care - Elderly - South,Other Small Contracts,Mears Care,577.2, 27-Jan-2014
1159,Revenue,CCHD,Home Care - Elderly - North,Other Small Contracts,Mears Care,6134.6, 27-Jan-2014
1160,Revenue,CCHD,Day Care - North,Private & Voluntary Day Care,Mears Care,122.1, 27-Jan-2014
1161,Revenue,CCHD,Under 65s -MH  Home Care Purch,Other Small Contracts,Mears Care,111, 27-Jan-2014
1162,Revenue,CCHD,Home Care - Elderly LD - KH,Private & Voluntary Home Care,Mears Care,51.8, 27-Jan-2014
1163,Revenue,CCHD,Home Care - Elderly - South,Private & Voluntary Home Care,Mears Care,48544, 28-Jan-2014
1164,Revenue,CCHD,Alexandra Way,Prop.Serv. General Repairs,Mechanical Engineering Svcs (Avon) Ltd,9757.12, 17-Jan-2014
1165,Revenue,CCHD,Home Care - Elderly - North,Other Small Contracts,Medacs Home Care,616, 23-Jan-2014
1166,Revenue,CCHD,Home care - Elderly MH - North,Other Small Contracts,Medacs Home Care,87.5, 23-Jan-2014
1167,Revenue,CCHD,Home Care - Elderly - North,Other Small Contracts,Medacs Home Care,595, 23-Jan-2014
1168,Revenue,CCHD,Home care - Elderly MH - North,Other Small Contracts,Medacs Home Care,80.5, 23-Jan-2014
1169,Revenue,CCHD,Home Care - Elderly - North,Other Small Contracts,Medacs Home Care,640.2, 23-Jan-2014
1170,Revenue,CCHD,Home care - Elderly MH - North,Other Small Contracts,Medacs Home Care,98, 23-Jan-2014
1171,Revenue,CCHD,Home Care - Elderly - North,Other Small Contracts,Medacs Home Care,601.8, 23-Jan-2014
1172,Revenue,CCHD,Home care - Elderly MH - North,Other Small Contracts,Medacs Home Care,77, 23-Jan-2014
1173,Revenue,CCHD,Home Care - Elderly - North,Other Small Contracts,Medacs Home Care,524.8, 23-Jan-2014
1174,Revenue,CCHD,Home care - Elderly MH - North,Other Small Contracts,Medacs Home Care,66.5, 23-Jan-2014
1175,Revenue,CCHD,Home Care - Elderly - North,Other Small Contracts,Medacs Home Care,497, 23-Jan-2014
1176,Revenue,CCHD,Home care - Elderly MH - North,Other Small Contracts,Medacs Home Care,77, 23-Jan-2014
1177,Revenue,CCHD,NRS Contract,Daily Living Equipment,Medequip Assistive Technology Ltd,2229.3, 16-Jan-2014
1178,Revenue,CCHD,NRS Contract,Daily Living Equipment,Medequip Assistive Technology Ltd,481.69, 16-Jan-2014
1179,Revenue,CCHD,NRS Contract,Daily Living Equipment,Medequip Assistive Technology Ltd,25708.91, 16-Jan-2014
1180,Revenue,CCHD,NRS Contract,Daily Living Equipment,Medequip Assistive Technology Ltd,75956.81, 16-Jan-2014
1181,Revenue,CCHD,Bed Purchasing - Under 65s PWLD - South,Permanent Residential,Mencap,2219.16, 28-Jan-2014
1182,Revenue,CCHD,Swift Dump Code,Other Supplies & Services,Mencap,2200, 21-Jan-2014
1183,Revenue,CCHD,Supported Living (S28a) South,Private & Voluntary Home Care,Mencap - PS Central & Cymru,3786.86, 15-Jan-2014
1184,Revenue,CCHD,Supported Living (S28a) South,Private & Voluntary Home Care,Mencap - PS Central & Cymru,3786.86, 28-Jan-2014
1185,Revenue,CCHD,Supported Living (S28a) South,Private & Voluntary Home Care,Mencap - PS Central & Cymru,3786.86, 31-Jan-2014
1186,Revenue,CCHD,Supporting People Programme,Grants to Voluntary Bodies,Merlin Housing Society,15398.42, 31-Jan-2014
1187,Revenue,CCHD,Supporting People Programme,Grants to Voluntary Bodies,Merlin Housing Society,2423, 31-Jan-2014
1188,Revenue,CCHD,Supporting People Programme,Grants to Voluntary Bodies,Merlin Housing Society,51328.08, 31-Jan-2014
1189,Revenue,CCHD,Supporting People Programme,Grants to Voluntary Bodies,Merlin Housing Society,1026.58, 31-Jan-2014
1190,Revenue,CCHD,Intermediate Care Accommodation,Other Supplies & Services,Merlin Housing Society,1209.59, 07-Jan-2014
1191,Revenue,CCHD,Bed Purchasing - Frenchay Hospital,Permanent Residential,Milburn Finance,1040.12, 28-Jan-2014
1192,Revenue,CCHD,Swift Dump Code,Other Supplies & Services,Milburn Finance,1000, 21-Jan-2014
1193,Revenue,CCHD,Home Care - Elderly - South,Other Small Contracts,Milestones Outreach Dementia Services,1354.86, 23-Jan-2014
1194,Revenue,CCHD,Home Care - Elderly - North,Other Small Contracts,Milestones Outreach Dementia Services,1856.66, 23-Jan-2014
1195,Revenue,CCHD,Day Care - South,Private & Voluntary Day Care,Milestones Outreach Dementia Services,65.62, 23-Jan-2014
1196,Revenue,CCHD,Home care - Elderly MH - North,Other Small Contracts,Milestones Outreach Dementia Services,54.04, 23-Jan-2014
1197,Revenue,CCHD,Home Care - Elderly - South,Other Small Contracts,Milestones Outreach Dementia Services,1308.54, 23-Jan-2014
1198,Revenue,CCHD,Home Care - Elderly - North,Other Small Contracts,Milestones Outreach Dementia Services,2099.84, 23-Jan-2014
1199,Revenue,CCHD,Home care - Elderly MH - North,Other Small Contracts,Milestones Outreach Dementia Services,54.04, 23-Jan-2014
1200,Revenue,CCHD,Home Care - Elderly - South,Other Small Contracts,Milestones Outreach Dementia Services,1181.16, 23-Jan-2014
1201,Revenue,CCHD,Home Care - Elderly - North,Other Small Contracts,Milestones Outreach Dementia Services,2250.38, 23-Jan-2014
1202,Revenue,CCHD,Home care - Elderly MH - North,Other Small Contracts,Milestones Outreach Dementia Services,54.04, 23-Jan-2014
1203,Revenue,CCHD,Supported Living - North,Private & Voluntary Home Care,Milestones Trust,5385.62, 06-Jan-2014
1204,Revenue,CCHD,Supported Living - South,Private & Voluntary Home Care,Milestones Trust,1851.68, 17-Jan-2014
1205,Revenue,CCHD,Stibbs and Fairburn,Respite Planned - Residential,Milestones Trust,125996.48, 28-Jan-2014
1206,Revenue,CCHD,Supported Living - South,Private & Voluntary Home Care,Milestones Trust,2740.61, 07-Jan-2014
1207,Revenue,CCHD,Supported Living - South,Private & Voluntary Home Care,Milestones Trust,4384.08, 07-Jan-2014
1208,Revenue,CCHD,Supported Living - South,Private & Voluntary Home Care,Milestones Trust,4566.75, 07-Jan-2014
1209,Revenue,CCHD,Supported Living - South,Private & Voluntary Home Care,Milestones Trust,6576.12, 07-Jan-2014
1210,Revenue,CCHD,Supported Living (S28a) North,Private & Voluntary Home Care,Milestones Trust,4959.03, 14-Jan-2014
1211,Revenue,CCHD,Purchase of Non-Res Care - South,Private & Voluntary Day Care,Milestones Trust,679.36, 07-Jan-2014
1212,Revenue,CCHD,Supported Living (S28a) South,Private & Voluntary Home Care,Milestones Trust,6349.38, 14-Jan-2014
1213,Revenue,CCHD,Supported Living - South,Private & Voluntary Home Care,Milestones Trust,1643.14, 07-Jan-2014
1214,Revenue,CCHD,Supported Living - North,Private & Voluntary Home Care,Milestones Trust,611.47, 06-Jan-2014
1215,Revenue,CCHD,Supported Living (S28a) South,Private & Voluntary Home Care,Milestones Trust,808.08, 14-Jan-2014
1216,Revenue,CCHD,Supported Living - South,Private & Voluntary Home Care,Milestones Trust,671.16, 07-Jan-2014
1217,Revenue,CCHD,Supported Living (S28a) North,Private & Voluntary Home Care,Milestones Trust,4967.5, 14-Jan-2014
1218,Revenue,CCHD,Supported Living (S28a) North,Private & Voluntary Home Care,Milestones Trust,4390.75, 14-Jan-2014
1219,Revenue,CCHD,Supported Living (S28a) North,Private & Voluntary Home Care,Milestones Trust,4239.68, 14-Jan-2014
1220,Revenue,CCHD,Supported Living (S28a) North,Private & Voluntary Home Care,Milestones Trust,4967.5, 14-Jan-2014
1221,Revenue,CCHD,Supported Living - South,Private & Voluntary Home Care,Milestones Trust,791.8, 07-Jan-2014
1222,Revenue,CCHD,Supported Living (S28a) North,Private & Voluntary Home Care,Milestones Trust,4390.75, 14-Jan-2014
1223,Revenue,CCHD,Supported Living (S28a) North,Private & Voluntary Home Care,Milestones Trust,4239.68, 14-Jan-2014
1224,Revenue,CCHD,Supported Living (S28a) South,Private & Voluntary Home Care,Milestones Trust,1785.73, 14-Jan-2014
1225,Revenue,CCHD,Supported Living (S28a) North,Private & Voluntary Home Care,Milestones Trust,8993.28, 14-Jan-2014
1226,Revenue,CCHD,Supported Living (S28a) North,Private & Voluntary Home Care,Milestones Trust,11195.5, 14-Jan-2014
1227,Revenue,CCHD,Supported Living (S28a) South,Private & Voluntary Home Care,Milestones Trust,4287.39, 14-Jan-2014
1228,Revenue,CCHD,Supported Living (S28a) South,Private & Voluntary Home Care,Milestones Trust,4010.72, 14-Jan-2014
1229,Revenue,CCHD,Supported Living (S28a) South,Private & Voluntary Home Care,Milestones Trust,4520.31, 14-Jan-2014
1230,Revenue,CCHD,Supported Living (S28a) North,Private & Voluntary Home Care,Milestones Trust,5223.5, 14-Jan-2014
1231,Revenue,CCHD,Supported Living - South,Private & Voluntary Home Care,Milestones Trust,2214.4, 07-Jan-2014
1232,Revenue,CCHD,Supported Living - South,Private & Voluntary Home Care,Milestones Trust,818, 07-Jan-2014
1233,Revenue,CCHD,Supported Living - South,Private & Voluntary Home Care,Milestones Trust,1734.39, 07-Jan-2014
1234,Revenue,CCHD,Supported Living - South,Private & Voluntary Home Care,Milestones Trust,823.78, 07-Jan-2014
1235,Revenue,CCHD,Supported Living - South,Private & Voluntary Home Care,Milestones Trust,914.82, 07-Jan-2014
1236,Revenue,CCHD,Supported Living (S28a) South,Private & Voluntary Home Care,Milestones Trust,692.34, 14-Jan-2014
1237,Revenue,CCHD,Supported Living (S28a) North,Private & Voluntary Home Care,Milestones Trust,586.72, 14-Jan-2014
1238,Revenue,CCHD,Supported Living - North,Private & Voluntary Home Care,Milestones Trust,2073.97, 08-Jan-2014
1239,Revenue,CCHD,Purchase of Non-Res Care - South,Private & Voluntary Day Care,Milestones Trust,2101.96, 13-Jan-2014
1240,Revenue,CCHD,Purchase of Non-Res Care - South,Private & Voluntary Day Care,Milestones Trust,551.7, 13-Jan-2014
1241,Revenue,CCHD,Purchase of Non-Res Care - South,Private & Voluntary Day Care,Milestones Trust,1512.7, 08-Jan-2014
1242,Revenue,CCHD,Purchase of Non-Res Care - South,Private & Voluntary Day Care,Milestones Trust,1428.49, 13-Jan-2014
1243,Revenue,CCHD,Purchase of Non-Res Care - South,Private & Voluntary Day Care,Milestones Trust,1406.11, 13-Jan-2014
1244,Revenue,CCHD,Supported Living - South,Private & Voluntary Home Care,Milestones Trust,551.7, 13-Jan-2014
1245,Revenue,CCHD,Purchase of Non-Res Care - South,Private & Voluntary Day Care,Milestones Trust,1793.96, 13-Jan-2014
1246,Revenue,CCHD,Purchase of Non-Res Care - South,Private & Voluntary Day Care,Milestones Trust,2183.04, 13-Jan-2014
1247,Revenue,CCHD,Purchase of Non-Res Care - South,Private & Voluntary Day Care,Milestones Trust,4135.81, 13-Jan-2014
1248,Revenue,CCHD,Supported Living - South,Private & Voluntary Home Care,Milestones Trust,1987.85, 13-Jan-2014
1249,Revenue,CCHD,Purchase of Non-Res Care - South,Private & Voluntary Day Care,Milestones Trust,2027.16, 08-Jan-2014
1250,Revenue,CCHD,Purchase of Non-Res Care - South,Private & Voluntary Day Care,Milestones Trust,657.01, 13-Jan-2014
1251,Revenue,CCHD,Purchase of Non-Res Care - South,Private & Voluntary Day Care,Milestones Trust,594.71, 13-Jan-2014
1252,Revenue,CCHD,Purchase of Non-Res Care - South,Private & Voluntary Day Care,Milestones Trust,1903.47, 13-Jan-2014
1253,Revenue,CCHD,Purchase of Non-Res Care - South,Private & Voluntary Day Care,Milestones Trust,999.01, 13-Jan-2014
1254,Revenue,CCHD,Purchase of Non-Res Care - South,Private & Voluntary Day Care,Milestones Trust,1563.37, 13-Jan-2014
1255,Revenue,CCHD,Supported Living - South,Private & Voluntary Home Care,Milestones Trust,2526.56, 13-Jan-2014
1256,Revenue,CCHD,Purchase of Non-Res Care - South,Private & Voluntary Day Care,Milestones Trust,1774.24, 08-Jan-2014
1257,Revenue,CCHD,Elderly MH Day Care North,Private & Voluntary Day Care,Milestones Trust,574.84, 22-Jan-2014
1258,Revenue,CCHD,Supported Living (S28a) North,Private & Voluntary Home Care,Milestones Trust,3740.72, 28-Jan-2014
1259,Revenue,CCHD,Purchase of Non-Res Care - South,Private & Voluntary Day Care,Milestones Trust,617.6, 21-Jan-2014
1260,Revenue,CCHD,Supported Living (S28a) South,Private & Voluntary Home Care,Milestones Trust,6561.03, 28-Jan-2014
1261,Revenue,CCHD,Supported Living - South,Private & Voluntary Home Care,Milestones Trust,1270, 21-Jan-2014
1262,Revenue,CCHD,Supported Living (S28a) South,Private & Voluntary Home Care,Milestones Trust,597.37, 28-Jan-2014
1263,Revenue,CCHD,Supported Living (S28a) North,Private & Voluntary Home Care,Milestones Trust,3974, 28-Jan-2014
1264,Revenue,CCHD,Supported Living (S28a) North,Private & Voluntary Home Care,Milestones Trust,3512.6, 28-Jan-2014
1265,Revenue,CCHD,Supported Living (S28a) North,Private & Voluntary Home Care,Milestones Trust,4381, 28-Jan-2014
1266,Revenue,CCHD,Supported Living (S28a) North,Private & Voluntary Home Care,Milestones Trust,3974, 28-Jan-2014
1267,Revenue,CCHD,Supported Living (S28a) North,Private & Voluntary Home Care,Milestones Trust,3512.6, 28-Jan-2014
1268,Revenue,CCHD,Supported Living (S28a) North,Private & Voluntary Home Care,Milestones Trust,4381, 28-Jan-2014
1269,Revenue,CCHD,Supported Living - South,Private & Voluntary Home Care,Milestones Trust,1010.02, 17-Jan-2014
1270,Revenue,CCHD,Supported Living (S28a) South,Private & Voluntary Home Care,Milestones Trust,1437.58, 28-Jan-2014
1271,Revenue,CCHD,Supported Living (S28a) North,Private & Voluntary Home Care,Milestones Trust,9293.06, 28-Jan-2014
1272,Revenue,CCHD,Supported Living (S28a) North,Private & Voluntary Home Care,Milestones Trust,9102.75, 28-Jan-2014
1273,Revenue,CCHD,Supported Living - South,Private & Voluntary Home Care,Milestones Trust,3428.4, 22-Jan-2014
1274,Revenue,CCHD,Supported Living - South,Private & Voluntary Home Care,Milestones Trust,2142.95, 22-Jan-2014
1275,Revenue,CCHD,Supported Living - South,Private & Voluntary Home Care,Milestones Trust,3571.25, 22-Jan-2014
1276,Revenue,CCHD,Supported Living - South,Private & Voluntary Home Care,Milestones Trust,5142.6, 22-Jan-2014
1277,Revenue,CCHD,Supported Living (S28a) North,Private & Voluntary Home Care,Milestones Trust,5416.82, 28-Jan-2014
1278,Revenue,CCHD,Supported Living - North,Private & Voluntary Home Care,Milestones Trust,5190.71, 20-Jan-2014
1279,Revenue,CCHD,Supported Living - South,Private & Voluntary Home Care,Milestones Trust,1894.54, 21-Jan-2014
1280,Revenue,CCHD,Supported Living - South,Private & Voluntary Home Care,Milestones Trust,588.96, 21-Jan-2014
1281,Revenue,CCHD,Supported Living - South,Private & Voluntary Home Care,Milestones Trust,1263.08, 21-Jan-2014
1282,Revenue,CCHD,Supported Living - South,Private & Voluntary Home Care,Milestones Trust,654.03, 21-Jan-2014
1283,Revenue,CCHD,Supported Living - South,Private & Voluntary Home Care,Milestones Trust,741.12, 21-Jan-2014
1284,Revenue,CCHD,Supported Living (S28a) South,Private & Voluntary Home Care,Milestones Trust,669.9, 28-Jan-2014
1285,Revenue,CCHD,Supported Living - North,Private & Voluntary Home Care,Milestones Trust,1244.13, 24-Jan-2014
1286,Revenue,CCHD,Supported Living (S28a) South,Private & Voluntary Home Care,Milestones Trust,3226.57, 28-Jan-2014
1287,Revenue,CCHD,Supported Living (S28a) South,Private & Voluntary Home Care,Milestones Trust,3612.92, 28-Jan-2014
1288,Revenue,CCHD,Supported Living - South,Private & Voluntary Home Care,Milestones Trust,3346.89, 27-Jan-2014
1289,Revenue,CCHD,Supported Living (S28a) South,Private & Voluntary Home Care,Milestones Trust,3441.24, 28-Jan-2014
1290,Revenue,CCHD,Purchase of Non-Res Care - South,Private & Voluntary Day Care,Milestones Trust,1121.91, 31-Jan-2014
1291,Revenue,CCHD,Purchase of Non-Res Care - South,Private & Voluntary Day Care,Milestones Trust,1209.34, 31-Jan-2014
1292,Revenue,CCHD,Bed purchasing - Under 65s PWLD - North,Permanent Residential,Milestones Trust,9386.6, 28-Jan-2014
1293,Revenue,CCHD,Swift Dump Code,Other Supplies & Services,Milestones Trust,9300, 21-Jan-2014
1294,Revenue,CCHD,Supported Living - South,Private & Voluntary Home Care,Moving On,6970.66, 13-Jan-2014
1295,Revenue,CCHD,Supported Living - South,Private & Voluntary Home Care,Moving On,6755.91, 13-Jan-2014
1296,Revenue,CCHD,Social Lettings Agency,Fees - General,Individual,10, 07-Jan-2014
1297,Revenue,CCHD,Social Lettings Agency,Other Supplies & Services,Individual,565, 07-Jan-2014
1298,Revenue,CCHD,Social Lettings Agency,Fees - General,Individual,10, 17-Jan-2014
1299,Revenue,CCHD,Social Lettings Agency,Other Supplies & Services,Individual,565, 17-Jan-2014
1300,Revenue,CCHD,Social Lettings Agency,Fees - General,Individual,10, 22-Jan-2014
1301,Revenue,CCHD,Social Lettings Agency,Other Supplies & Services,Individual,565, 22-Jan-2014
1302,Revenue,CCHD,Social Lettings Agency,Fees - General,Individual,8.6, 22-Jan-2014
1303,Revenue,CCHD,Social Lettings Agency,Other Supplies & Services,Individual,582, 22-Jan-2014
1304,Revenue,CCHD,Social Lettings Agency,Fees - General,Individual,11.6, 31-Jan-2014
1305,Revenue,CCHD,Social Lettings Agency,Other Supplies & Services,Individual,655.41, 31-Jan-2014
1306,Revenue,CCHD,Social Lettings Agency,Other Supplies & Services,Individual,850, 10-Jan-2014
1307,Revenue,CCHD,Homeless - Private Sector Leasing,Other Supplies & Services,Mr D G & Mrs L K Jenkins,565, 23-Jan-2014
1308,Revenue,CCHD,Social Lettings Agency,Fees - General,Individual,10, 08-Jan-2014
1309,Revenue,CCHD,Social Lettings Agency,Other Supplies & Services,Individual,565, 08-Jan-2014
1310,Revenue,CCHD,Swift Dump Code,Permanent Residential,Mr Marcus Bell,2115.68, 31-Jan-2014
1311,Revenue,CCHD,Social Lettings Agency,Fees - General,Individual,11.2, 20-Jan-2014
1312,Revenue,CCHD,Social Lettings Agency,Other Supplies & Services,Individual,632.81, 20-Jan-2014
1313,Revenue,CCHD,Social Lettings Agency,Fees - General,Individual,10, 08-Jan-2014
1314,Revenue,CCHD,Social Lettings Agency,Other Supplies & Services,Individual,565, 08-Jan-2014
1315,Revenue,CCHD,Social Lettings Agency,Fees - General,Individual,10, 31-Jan-2014
1316,Revenue,CCHD,Social Lettings Agency,Other Supplies & Services,Individual,565, 31-Jan-2014
1317,Revenue,CCHD,Social Lettings Agency,Fees - General,Individual,8.7, 16-Jan-2014
1318,Revenue,CCHD,Social Lettings Agency,Other Supplies & Services,Individual,672.8, 16-Jan-2014
1319,Revenue,CCHD,Social Lettings Agency,Fees - General,Individual,11.2, 13-Jan-2014
1320,Revenue,CCHD,Social Lettings Agency,Other Supplies & Services,Individual,632.81, 13-Jan-2014
1321,Revenue,CCHD,Social Lettings Agency,Fees - General,Individual,10, 30-Jan-2014
1322,Revenue,CCHD,Social Lettings Agency,Other Supplies & Services,Individual,565, 30-Jan-2014
1323,Revenue,CCHD,Social Lettings Agency,Fees - General,Individual,7.5, 03-Jan-2014
1324,Revenue,CCHD,Social Lettings Agency,Other Supplies & Services,Individual,587.25, 03-Jan-2014
1325,Revenue,CCHD,Supported Living - South,Private & Voluntary Home Care,Mrs B Kimber,10820.33, 17-Jan-2014
1326,Revenue,CCHD,Supported Living - South,Private & Voluntary Home Care,Mrs B Kimber,8704.59, 20-Jan-2014
1327,Revenue,CCHD,Home Care - Elderly - South,Other Small Contracts,Mrs B Kimber -  CM2000,8547.6, 22-Jan-2014
1328,Revenue,CCHD,Home Care - Elderly - North,Other Small Contracts,Mrs B Kimber -  CM2000,4169.15, 22-Jan-2014
1329,Revenue,CCHD,Day Care - South,Private & Voluntary Day Care,Mrs B Kimber -  CM2000,453.6, 22-Jan-2014
1330,Revenue,CCHD,Day Care - North,Private & Voluntary Day Care,Mrs B Kimber -  CM2000,97.2, 22-Jan-2014
1331,Revenue,CCHD,Under 65s -MH  Home Care Purch,Other Small Contracts,Mrs B Kimber -  CM2000,64.8, 22-Jan-2014
1332,Revenue,CCHD,Elderly MH Day Care North,Private & Voluntary Day Care,Mrs B Kimber -  CM2000,97.2, 22-Jan-2014
1333,Revenue,CCHD,Home Care - Elderly - South,Other Small Contracts,Mrs B Kimber -  CM2000,9066.5, 24-Jan-2014
1334,Revenue,CCHD,Home Care - Elderly - North,Other Small Contracts,Mrs B Kimber -  CM2000,4909.6, 24-Jan-2014
1335,Revenue,CCHD,Day Care - South,Private & Voluntary Day Care,Mrs B Kimber -  CM2000,490.05, 24-Jan-2014
1336,Revenue,CCHD,Day Care - North,Private & Voluntary Day Care,Mrs B Kimber -  CM2000,32.4, 24-Jan-2014
1337,Revenue,CCHD,Under 65s -MH  Home Care Purch,Other Small Contracts,Mrs B Kimber -  CM2000,64.8, 24-Jan-2014
1338,Revenue,CCHD,Elderly MH Day Care North,Private & Voluntary Day Care,Mrs B Kimber -  CM2000,97.2, 24-Jan-2014
1339,Revenue,CCHD,Home Care - Elderly - South,Other Small Contracts,Mrs B Kimber -  CM2000,8171.65, 24-Jan-2014
1340,Revenue,CCHD,Home Care - Elderly - North,Other Small Contracts,Mrs B Kimber -  CM2000,3590.8, 24-Jan-2014
1341,Revenue,CCHD,Day Care - South,Private & Voluntary Day Care,Mrs B Kimber -  CM2000,319.95, 24-Jan-2014
1342,Revenue,CCHD,Day Care - North,Private & Voluntary Day Care,Mrs B Kimber -  CM2000,16.2, 24-Jan-2014
1343,Revenue,CCHD,Under 65s -MH  Home Care Purch,Other Small Contracts,Mrs B Kimber -  CM2000,52.65, 24-Jan-2014
1344,Revenue,CCHD,Elderly MH Day Care North,Private & Voluntary Day Care,Mrs B Kimber -  CM2000,48.6, 24-Jan-2014
1345,Revenue,CCHD,Social Lettings Agency,Fees - General,Individual,10, 17-Jan-2014
1346,Revenue,CCHD,Social Lettings Agency,Other Supplies & Services,Individual,565, 17-Jan-2014
1347,Revenue,CCHD,Social Lettings Agency,Fees - General,Individual,10, 14-Jan-2014
1348,Revenue,CCHD,Social Lettings Agency,Other Supplies & Services,Individual,565, 14-Jan-2014
1349,Revenue,CCHD,Social Lettings Agency,Fees - General,Individual,10, 24-Jan-2014
1350,Revenue,CCHD,Social Lettings Agency,Other Supplies & Services,Individual,565, 24-Jan-2014
1351,Revenue,CCHD,Social Lettings Agency,Fees - General,Individual,10, 31-Jan-2014
1352,Revenue,CCHD,Social Lettings Agency,Other Supplies & Services,Individual,565, 31-Jan-2014
1353,Revenue,CCHD,Supported Living - North,Permanent Residential,Mrs I M Bowerman,1734.48, 13-Jan-2014
1354,Revenue,CCHD,Social Lettings Agency,Fees - General,Individual,10, 10-Jan-2014
1355,Revenue,CCHD,Social Lettings Agency,Other Supplies & Services,Individual,565, 10-Jan-2014
1356,Revenue,CCHD,Supported Living - North,Permanent Residential,Mrs Julie Taylor,1030.7, 13-Jan-2014
1357,Revenue,CCHD,Complaints and FOI,Complaints External Expenses,Mrs Shirley Ward,1072.95, 17-Jan-2014
1358,Revenue,CCHD,Social Lettings Agency,Fees - General,Individual,11.6, 16-Jan-2014
1359,Revenue,CCHD,Social Lettings Agency,Other Supplies & Services,Individual,655.41, 16-Jan-2014
1360,Revenue,CCHD,Purchase of Non-Res Care - North,Private & Voluntary Day Care,Mrs W Thompson,742.2, 13-Jan-2014
1361,Revenue,CCHD,Social Lettings Agency,Fees - General,Individual,10, 08-Jan-2014
1362,Revenue,CCHD,Social Lettings Agency,Other Supplies & Services,Individual,565, 08-Jan-2014
1363,Revenue,CCHD,Social Lettings Agency,Fees - General,Individual,15.2, 10-Jan-2014
1364,Revenue,CCHD,Social Lettings Agency,Other Supplies & Services,Individual,858.8, 10-Jan-2014
1365,Revenue,CCHD,Alexandra Way,Cleaning & Domestic Services,Muzzell Healthcare,794.5, 13-Jan-2014
1366,Revenue,CCHD,Alexandra Way,Cleaning & Domestic Services,Muzzell Healthcare,422.1, 29-Jan-2014
1367,Revenue,CCHD,Younger MH non-res purchasing,Private & Voluntary Day Care,NAS Services Limited,802.2, 15-Jan-2014
1368,Revenue,CCHD,Day Care - North,Private & Voluntary Day Care,NAS Services Limited,912.03, 15-Jan-2014
1369,Revenue,CCHD,Younger MH non-res purchasing,Private & Voluntary Day Care,NAS Services Limited,687.6, 15-Jan-2014
1370,Revenue,CCHD,Day Care - South,Private & Voluntary Day Care,NAS Services Limited,706.71, 15-Jan-2014
1371,Revenue,CCHD,Day Care - South,Private & Voluntary Day Care,NAS Services Limited,861.95, 16-Jan-2014
1372,Revenue,CCHD,Bed Purchasing - Under 65s PWLD - South,Permanent Residential,National Star College,4547.72, 28-Jan-2014
1373,Revenue,CCHD,Swift Dump Code,Other Supplies & Services,National Star College,4500, 21-Jan-2014
1374,Revenue,CCHD,Home Care - Elderly - South,Other Small Contracts,Network Health & Social Care,1750.5, 23-Jan-2014
1375,Revenue,CCHD,Home Care - Elderly - North,Other Small Contracts,Network Health & Social Care,4535.74, 23-Jan-2014
1376,Revenue,CCHD,Home Care - Elderly - South,Other Small Contracts,Network Health & Social Care,2038.36, 23-Jan-2014
1377,Revenue,CCHD,Home Care - Elderly - North,Other Small Contracts,Network Health & Social Care,4103.95, 23-Jan-2014
1378,Revenue,CCHD,Home Care - Elderly - South,Other Small Contracts,Network Health & Social Care,2061.7, 23-Jan-2014
1379,Revenue,CCHD,Home Care - Elderly - North,Other Small Contracts,Network Health & Social Care,4127.29, 23-Jan-2014
1380,Revenue,CCHD,Home Care - Elderly - South,Other Small Contracts,Network Health & Social Care,2018.91, 23-Jan-2014
1381,Revenue,CCHD,Home Care - Elderly - North,Other Small Contracts,Network Health & Social Care,4041.71, 23-Jan-2014
1382,Revenue,CCHD,Social Lettings Agency,Fees - General,Individual,10, 03-Jan-2014
1383,Revenue,CCHD,Social Lettings Agency,Other Supplies & Services,Individual,565, 03-Jan-2014
1384,Revenue,CCHD,Access Team,"Holidays, Outings & Visits",Neville Williams,768, 23-Jan-2014
1385,Revenue,CCHD,Wider Tobacco Control,Other Supplies & Services,NHS South West CSU,26671, 09-Jan-2014
1386,Revenue,CCHD,Bed Purchasing - Under 65s PWLD - South,Permanent Residential,Nightingale Nursing Home,3105.36, 28-Jan-2014
1387,Revenue,CCHD,Swift Dump Code,Other Supplies & Services,Nightingale Nursing Home,3100, 21-Jan-2014
1388,Revenue,CCHD,Public Health - Admin,Other Supplies & Services,North Bristol NHS Trust,800, 16-Jan-2014
1389,Revenue,CCHD,Sexual Health Services - STI & Treatment,Other Supplies & Services,Northern Devon Healthcare Trust,622, 08-Jan-2014
1390,Revenue,CCHD,Information Systems - Software,Other Supplies & Services,Northgate Information Solutions UK Limited,1000, 08-Jan-2014
1391,Revenue,CCHD,Bed Purchasing - Under 65s PWLD - South,Permanent Residential,Norwood   Broadway House,4899.44, 28-Jan-2014
1392,Revenue,CCHD,Swift Dump Code,Other Supplies & Services,Norwood   Broadway House,4800, 21-Jan-2014
1393,Revenue,CCHD,Bed Purchasing - Elderly MH - South,Permanent Residential,Notaro Homes Ltd  Queensmead Court,1857.32, 28-Jan-2014
1394,Revenue,CCHD,Bed Purchasing - Southmead Hospital,Permanent Residential,Notaro Homes Ltd  Queensmead Court,1371.32, 28-Jan-2014
1395,Revenue,CCHD,Swift Dump Code,Other Supplies & Services,Notaro Homes Ltd  Queensmead Court,3200, 21-Jan-2014
1396,Revenue,CCHD,Bed Purchasing - Elderly - South,Permanent Residential,Nova House Care Home,938.4, 28-Jan-2014
1397,Revenue,CCHD,Swift Dump Code,Other Supplies & Services,Nova House Care Home,900, 21-Jan-2014
1398,Revenue,CCHD,Woodleaze,Agency Staff (Admin/Support Staff) Pay,Nurse Plus and Carer Plus (UK) Limited,534.12, 15-Jan-2014
1399,Revenue,CCHD,Woodleaze,Agency Staff (Admin/Support Staff) Pay,Nurse Plus and Carer Plus (UK) Limited,575.23, 15-Jan-2014
1400,Revenue,CCHD,Home Care - Elderly - South,Other Small Contracts,Nursing Solutions Limited,2913.3, 17-Jan-2014
1401,Revenue,CCHD,Home Care - Elderly - North,Other Small Contracts,Nursing Solutions Limited,1021.8, 17-Jan-2014
1402,Revenue,CCHD,Home Care - Elderly - South,Other Small Contracts,Nursing Solutions Limited,3502.2, 17-Jan-2014
1403,Revenue,CCHD,Home Care - Elderly - North,Other Small Contracts,Nursing Solutions Limited,1088.1, 17-Jan-2014
1404,Revenue,CCHD,Home Care - Elderly - South,Other Small Contracts,Nursing Solutions Limited,3369.6, 17-Jan-2014
1405,Revenue,CCHD,Home Care - Elderly - North,Other Small Contracts,Nursing Solutions Limited,998.4, 17-Jan-2014
1406,Revenue,CCHD,Home Care - Elderly - South,Other Small Contracts,Nursing Solutions Limited,2628.6, 17-Jan-2014
1407,Revenue,CCHD,Home Care - Elderly - North,Other Small Contracts,Nursing Solutions Limited,854.1, 17-Jan-2014
1408,Revenue,CCHD,Home Care - Elderly - South,Other Small Contracts,Nursing Solutions Limited,2893.8, 23-Jan-2014
1409,Revenue,CCHD,Home Care - Elderly - North,Other Small Contracts,Nursing Solutions Limited,822.9, 23-Jan-2014
1410,Revenue,CCHD,Home Care - Elderly - South,Other Small Contracts,Nursing Solutions Limited,3003, 31-Jan-2014
1411,Revenue,CCHD,Home Care - Elderly - North,Other Small Contracts,Nursing Solutions Limited,971.1, 31-Jan-2014
1412,Revenue,CCHD,Section 117 Placements MH Younger,Permanent Nursing,Oaklands,6000, 28-Jan-2014
1413,Revenue,CCHD,Swift Dump Code,Other Supplies & Services,Oaklands,6000, 21-Jan-2014
1414,Revenue,CCHD,Woodleaze,Refuse Collection Charges,OCS Group UK Ltd,773.8, 28-Jan-2014
1415,Revenue,CCHD,Home Care - Elderly - South,Other Small Contracts,On the Up,880.08, 10-Jan-2014
1416,Revenue,CCHD,Home Care - Elderly - North,Other Small Contracts,On the Up,96.5, 10-Jan-2014
1417,Revenue,CCHD,Day Care - South,Private & Voluntary Day Care,On the Up,118.56, 10-Jan-2014
1418,Revenue,CCHD,Day Care - North,Private & Voluntary Day Care,On the Up,318.16, 10-Jan-2014
1419,Revenue,CCHD,Younger MH non-res purchasing,Private & Voluntary Day Care,On the Up,36.48, 10-Jan-2014
1420,Revenue,CCHD,Home care - Elderly MH - North,Other Small Contracts,On the Up,61.76, 10-Jan-2014
1421,Revenue,CCHD,Home Care - Elderly - South,Other Small Contracts,On the Up,922.54, 10-Jan-2014
1422,Revenue,CCHD,Home Care - Elderly - North,Other Small Contracts,On the Up,92.64, 10-Jan-2014
1423,Revenue,CCHD,Day Care - South,Private & Voluntary Day Care,On the Up,109.44, 10-Jan-2014
1424,Revenue,CCHD,Day Care - North,Private & Voluntary Day Care,On the Up,226.96, 10-Jan-2014
1425,Revenue,CCHD,Younger MH non-res purchasing,Private & Voluntary Day Care,On the Up,36.48, 10-Jan-2014
1426,Revenue,CCHD,Home care - Elderly MH - North,Other Small Contracts,On the Up,61.76, 10-Jan-2014
1427,Revenue,CCHD,Home Care - Elderly - South,Other Small Contracts,On the Up,887.8, 23-Jan-2014
1428,Revenue,CCHD,Home Care - Elderly - North,Other Small Contracts,On the Up,92.64, 23-Jan-2014
1429,Revenue,CCHD,Day Care - South,Private & Voluntary Day Care,On the Up,36.48, 23-Jan-2014
1430,Revenue,CCHD,Day Care - North,Private & Voluntary Day Care,On the Up,258.88, 23-Jan-2014
1431,Revenue,CCHD,Younger MH non-res purchasing,Private & Voluntary Day Care,On the Up,36.48, 23-Jan-2014
1432,Revenue,CCHD,Home Care - Elderly - South,Other Small Contracts,On the Up,702.52, 23-Jan-2014
1433,Revenue,CCHD,Home Care - Elderly - North,Other Small Contracts,On the Up,96.5, 23-Jan-2014
1434,Revenue,CCHD,Day Care - South,Private & Voluntary Day Care,On the Up,109.44, 23-Jan-2014
1435,Revenue,CCHD,Day Care - North,Private & Voluntary Day Care,On the Up,213.28, 23-Jan-2014
1436,Revenue,CCHD,Home care - Elderly MH - North,Other Small Contracts,On the Up,61.76, 23-Jan-2014
1437,Revenue,CCHD,Housing Advice,Grants to Voluntary Bodies,Orchard & Shipman PLC,13333.25, 30-Jan-2014
1438,Revenue,CCHD,Bed purchasing -S28A  Under 65 - North,Permanent Residential,Orchard End Limited,7452.12, 28-Jan-2014
1439,Revenue,CCHD,Swift Dump Code,Other Supplies & Services,Orchard End Limited,7400, 21-Jan-2014
1440,Revenue,CCHD,Bed Purchasing - Elderly S117- North,Permanent Residential,Osbourne Court,1900, 28-Jan-2014
1441,Revenue,CCHD,Bed purchasing - Elderly S117 - South,Permanent Residential,Osbourne Court,3060, 28-Jan-2014
1442,Revenue,CCHD,Bed Purchasing - Elderly - North,Permanent Residential,Osbourne Court,1154.56, 28-Jan-2014
1443,Revenue,CCHD,Bed Purchasing - Elderly S117- North,Permanent Residential,Osbourne Court,1900, 28-Jan-2014
1444,Revenue,CCHD,Bed Purchasing - Elderly - North,Permanent Residential,Osbourne Court,2519.28, 28-Jan-2014
1445,Revenue,CCHD,Bed Purchasing - Southmead Hospital,Permanent Residential,Osbourne Court,859.4, 28-Jan-2014
1446,Revenue,CCHD,Swift Dump Code,Other Supplies & Services,Osbourne Court,11000, 21-Jan-2014
1447,Revenue,CCHD,Bed Purchasing - Under 65s PWLD - South,Permanent Residential,Osprey Court,7636.76, 28-Jan-2014
1448,Revenue,CCHD,Bed purchasing - S28A Under 65 - South,Permanent Residential,Osprey Court,4259.36, 28-Jan-2014
1449,Revenue,CCHD,Swift Dump Code,Other Supplies & Services,Osprey Court,11800, 21-Jan-2014
1450,Revenue,CCHD,Bed purchasing - S28A Under 65 - South,Permanent Residential,Osprey Court,6305.32, 28-Jan-2014
1451,Revenue,CCHD,Swift Dump Code,Other Supplies & Services,Osprey Court,6300, 21-Jan-2014
1452,Revenue,CCHD,Swift Dump Code,Other Supplies & Services,Osprey Court,38900, 21-Jan-2014
1453,Revenue,CCHD,Bed Purchasing - Southmead Hospital,Permanent Nursing,Palm Court Nursing Home,1503.36, 28-Jan-2014
1454,Revenue,CCHD,Swift Dump Code,Other Supplies & Services,Palm Court Nursing Home,1500, 21-Jan-2014
1455,Revenue,CCHD,Bed Purchasing - Elderly MH - South,Permanent Residential,Park Farm House,1333.44, 28-Jan-2014
1456,Revenue,CCHD,Bed Purchasing - Elderly - South,Respite Emergency - Residential,Park Farm House,2210, 28-Jan-2014
1457,Revenue,CCHD,Bed Purchasing - Elderly - South,Permanent Residential,Park Farm House,555.5, 28-Jan-2014
1458,Revenue,CCHD,Bed Purchasing - Elderly MH - South,Permanent Residential,Park Farm House,1593.2, 28-Jan-2014
1459,Revenue,CCHD,Swift Dump Code,Other Supplies & Services,Park Farm House,2900, 21-Jan-2014
1460,Revenue,CCHD,Bed Purchasing - Under 65s PWLD - South,Permanent Residential,Park Hall,5552, 28-Jan-2014
1461,Revenue,CCHD,Swift Dump Code,Other Supplies & Services,Park Hall,5500, 21-Jan-2014
1462,Revenue,CCHD,Bed purchasing - Under 65s PWLD - North,Permanent Residential,Park Hall,5131.28, 28-Jan-2014
1463,Revenue,CCHD,Swift Dump Code,Other Supplies & Services,Park Hall,5100, 21-Jan-2014
1464,Revenue,CCHD,Bed Purchasing - Under 65s PWLD - South,Permanent Residential,Park Hall,4940.84, 28-Jan-2014
1465,Revenue,CCHD,Swift Dump Code,Other Supplies & Services,Park Hall,4900, 21-Jan-2014
1466,Revenue,CCHD,Bed purchasing - Elderly PWLD - South,Permanent Residential,Park Hall,2520.96, 28-Jan-2014
1467,Revenue,CCHD,Swift Dump Code,Other Supplies & Services,Park Hall,2200, 21-Jan-2014
1468,Revenue,CCHD,Bed purchasing - Elderly PWLD - North,Permanent Residential,Park Hall,4897.8, 28-Jan-2014
1469,Revenue,CCHD,Bed purchasing - S28A Under 65 - South,Permanent Residential,Park Hall,4614.16, 28-Jan-2014
1470,Revenue,CCHD,Bed Purchasing - Under 65s PWLD - South,Permanent Residential,Park Hall,4917.16, 28-Jan-2014
1471,Revenue,CCHD,Swift Dump Code,Other Supplies & Services,Park Hall,14400, 21-Jan-2014
1472,Revenue,CCHD,Bed Purchasing - Under 65s PWLD - South,Permanent Residential,Park Hall,10610.92, 28-Jan-2014
1473,Revenue,CCHD,Swift Dump Code,Other Supplies & Services,Park Hall,10600, 21-Jan-2014
1474,Revenue,CCHD,Bed purchasing -S28A  Under 65 - North,Permanent Residential,Park Hall,5844.16, 28-Jan-2014
1475,Revenue,CCHD,Swift Dump Code,Other Supplies & Services,Park Hall,5800, 21-Jan-2014
1476,Revenue,CCHD,Bed purchasing - S28A Under 65 - South,Permanent Residential,Park Hall,5565.72, 28-Jan-2014
1477,Revenue,CCHD,Swift Dump Code,Other Supplies & Services,Park Hall,5500, 21-Jan-2014
1478,Revenue,CCHD,Bed Purchasing - Under 65s PWLD - South,Permanent Residential,Park Hall,7081.64, 28-Jan-2014
1479,Revenue,CCHD,Swift Dump Code,Other Supplies & Services,Park Hall,7000, 21-Jan-2014
1480,Revenue,CCHD,Health Promotion,Project Funding,Parkrun Limited,2500, 22-Jan-2014
1481,Revenue,CCHD,Social Lettings Agency,Fees - General,Individual,10, 27-Jan-2014
1482,Revenue,CCHD,Social Lettings Agency,Other Supplies & Services,Individual,565, 27-Jan-2014
1483,Revenue,CCHD,Swift Dump Code,Other Supplies & Services,Pauls Place,5000, 21-Jan-2014
1484,Revenue,CCHD,Downend Day Centre,Cleaning & Domestic Services,PHS Group Plc,1098.12, 16-Jan-2014
1485,Revenue,CCHD,General Day Care,Operational Staff Pay,Piers Meadows Recruitment Limited,1031.1, 03-Jan-2014
1486,Revenue,CCHD,General Day Care,Operational Staff Pay,Piers Meadows Recruitment Limited,900.47, 10-Jan-2014
1487,Revenue,CCHD,General Day Care,Operational Staff Pay,Piers Meadows Recruitment Limited,948.85, 17-Jan-2014
1488,Revenue,CCHD,Sexual Health Services - Contraception,Other Supplies & Services,Pilning Surgery,846.54, 20-Jan-2014
1489,Revenue,CCHD,Supporting People Programme,Grants to Voluntary Bodies,Places for People,1117.67, 31-Jan-2014
1490,Revenue,CCHD,Breakthrough and Inclusion Work,Other Supplies & Services,Platinum Fitness,912, 13-Jan-2014
1491,Revenue,CCHD,Breakthrough and Inclusion Work,Other Supplies & Services,Platinum Fitness,1060, 13-Jan-2014
1492,Revenue,CCHD,Home Care - Elderly - South,Other Small Contracts,Premier Homecare Limited,310.08, 10-Jan-2014
1493,Revenue,CCHD,Home Care - Elderly - North,Other Small Contracts,Premier Homecare Limited,8107.68, 10-Jan-2014
1494,Revenue,CCHD,Home care - Elderly MH - North,Other Small Contracts,Premier Homecare Limited,127.68, 10-Jan-2014
1495,Revenue,CCHD,Elderly MH Day Care North,Private & Voluntary Day Care,Premier Homecare Limited,127.68, 10-Jan-2014
1496,Revenue,CCHD,Home Care - Elderly - South,Other Small Contracts,Premier Homecare Limited,214.32, 22-Jan-2014
1497,Revenue,CCHD,Home Care - Elderly - North,Other Small Contracts,Premier Homecare Limited,7104.48, 22-Jan-2014
1498,Revenue,CCHD,Home care - Elderly MH - North,Other Small Contracts,Premier Homecare Limited,127.68, 22-Jan-2014
1499,Revenue,CCHD,Elderly MH Day Care North,Private & Voluntary Day Care,Premier Homecare Limited,36.48, 22-Jan-2014
1500,Revenue,CCHD,Home Care - Elderly - South,Other Small Contracts,Premier Homecare Limited,282.72, 22-Jan-2014
1501,Revenue,CCHD,Home Care - Elderly - North,Other Small Contracts,Premier Homecare Limited,8094, 22-Jan-2014
1502,Revenue,CCHD,Home care - Elderly MH - North,Other Small Contracts,Premier Homecare Limited,127.68, 22-Jan-2014
1503,Revenue,CCHD,Elderly MH Day Care North,Private & Voluntary Day Care,Premier Homecare Limited,127.68, 22-Jan-2014
1504,Revenue,CCHD,Home Care - Elderly - South,Other Small Contracts,Premier Homecare Limited,296.4, 22-Jan-2014
1505,Revenue,CCHD,Home Care - Elderly - North,Other Small Contracts,Premier Homecare Limited,8227.95, 22-Jan-2014
1506,Revenue,CCHD,Home care - Elderly MH - North,Other Small Contracts,Premier Homecare Limited,127.68, 22-Jan-2014
1507,Revenue,CCHD,Elderly MH Day Care North,Private & Voluntary Day Care,Premier Homecare Limited,127.68, 22-Jan-2014
1508,Revenue,CCHD,Home Care - Elderly - South,Other Small Contracts,Prestige Nursing,849.07, 10-Jan-2014
1509,Revenue,CCHD,Home Care - Elderly - North,Other Small Contracts,Prestige Nursing,3280.96, 10-Jan-2014
1510,Revenue,CCHD,Day Care - South,Private & Voluntary Day Care,Prestige Nursing,120.68, 10-Jan-2014
1511,Revenue,CCHD,Day Care - North,Private & Voluntary Day Care,Prestige Nursing,439.62, 10-Jan-2014
1512,Revenue,CCHD,Home Care - Elderly - South,Other Small Contracts,Prestige Nursing,724.08, 10-Jan-2014
1513,Revenue,CCHD,Home Care - Elderly - North,Other Small Contracts,Prestige Nursing,3119.07, 10-Jan-2014
1514,Revenue,CCHD,Day Care - South,Private & Voluntary Day Care,Prestige Nursing,120.68, 10-Jan-2014
1515,Revenue,CCHD,Day Care - North,Private & Voluntary Day Care,Prestige Nursing,439.62, 10-Jan-2014
1516,Revenue,CCHD,Home Care - Elderly - South,Other Small Contracts,Prestige Nursing,758.56, 10-Jan-2014
1517,Revenue,CCHD,Home Care - Elderly - North,Other Small Contracts,Prestige Nursing,3355.65, 10-Jan-2014
1518,Revenue,CCHD,Day Care - South,Private & Voluntary Day Care,Prestige Nursing,120.68, 10-Jan-2014
1519,Revenue,CCHD,Day Care - North,Private & Voluntary Day Care,Prestige Nursing,443.93, 10-Jan-2014
1520,Revenue,CCHD,Woodleaze,Agency Staff (Admin/Support Staff) Pay,Prestige Nursing,576.09, 30-Jan-2014
1521,Revenue,CCHD,Stop Smoking Services and Interventions,Legal Fees,Quality Solicitors Burroughs Day,500, 06-Jan-2014
1522,Revenue,CCHD,Breakthrough and Inclusion Work,Other Supplies & Services,Redefine Mentoring Ltd,3061.14, 07-Jan-2014
1523,Revenue,CCHD,Bed Purchasing - Elderly S117- North,Permanent Nursing,Redholme Memory Care Limited,1962.8, 28-Jan-2014
1524,Revenue,CCHD,Swift Dump Code,Other Supplies & Services,Redholme Memory Care Limited,1900, 21-Jan-2014
1525,Revenue,CCHD,Supporting People Programme,Grants to Voluntary Bodies,Redland Housing Association Ltd,726.92, 31-Jan-2014
1526,Revenue,CCHD,South Glos Users in South Glos Homes,Permanent Nursing,Regent House,1756.64, 28-Jan-2014
1527,Revenue,CCHD,Bed Purchasing - Elderly - South,Permanent Nursing,Regent House,2224.96, 28-Jan-2014
1528,Revenue,CCHD,South Glos Users in South Glos Homes,Permanent Nursing,Regent House,2995.7, 28-Jan-2014
1529,Revenue,CCHD,Bed Purchasing - Elderly - South,Permanent Nursing,Regent House,3454.01, 28-Jan-2014
1530,Revenue,CCHD,Bed Purchasing - Elderly - South,Permanent Nursing,Regent House,2358.84, 28-Jan-2014
1531,Revenue,CCHD,South Glos Users in South Glos Homes,Permanent Nursing,Regent House,643.06, 28-Jan-2014
1532,Revenue,CCHD,Bed Purchasing - Elderly - South,Permanent Nursing,Regent House,1649.08, 28-Jan-2014
1533,Revenue,CCHD,Bed Purchasing - Elderly - South,Permanent Nursing,Regent House,1958.52, 28-Jan-2014
1534,Revenue,CCHD,Bed Purchasing - Elderly MH - South,Permanent Nursing,Regent House,1982.08, 28-Jan-2014
1535,Revenue,CCHD,Bed Purchasing - Elderly - South,Permanent Nursing,Regent House,1699.68, 28-Jan-2014
1536,Revenue,CCHD,South Glos Users in South Glos Homes,Permanent Nursing,Regent House,1490.01, 28-Jan-2014
1537,Revenue,CCHD,South Glos Users in South Glos Homes,Permanent Nursing,Regent House,1490.01, 28-Jan-2014
1538,Revenue,CCHD,Bed Purchasing - Elderly - South,Permanent Nursing,Regent House,1876.36, 28-Jan-2014
1539,Revenue,CCHD,South Glos Users in South Glos Homes,Permanent Nursing,Regent House,1254.74, 28-Jan-2014
1540,Revenue,CCHD,Bed Purchasing - Elderly - South,Permanent Nursing,Regent House,2350.84, 28-Jan-2014
1541,Revenue,CCHD,Bed Purchasing - Elderly - South,Permanent Nursing,Regent House,1595.21, 28-Jan-2014
1542,Revenue,CCHD,South Glos Users in South Glos Homes,Permanent Nursing,Regent House,721.48, 28-Jan-2014
1543,Revenue,CCHD,Bed Purchasing - Elderly - North,Permanent Nursing,Regent House,1869.6, 28-Jan-2014
1544,Revenue,CCHD,South Glos Users in South Glos Homes,Permanent Nursing,Regent House,1929.17, 28-Jan-2014
1545,Revenue,CCHD,South Glos Users in South Glos Homes,Permanent Nursing,Regent House,2054.64, 28-Jan-2014
1546,Revenue,CCHD,South Glos Users in South Glos Homes,Permanent Nursing,Regent House,3152.54, 28-Jan-2014
1547,Revenue,CCHD,South Glos Users in South Glos Homes,Permanent Nursing,Regent House,2556.54, 28-Jan-2014
1548,Revenue,CCHD,South Glos Users in South Glos Homes,Permanent Nursing,Regent House,1725.27, 28-Jan-2014
1549,Revenue,CCHD,South Glos Users in South Glos Homes,Permanent Nursing,Regent House,752.85, 28-Jan-2014
1550,Revenue,CCHD,Bed Purchasing - Elderly - South,Permanent Nursing,Regent House,1808, 28-Jan-2014
1551,Revenue,CCHD,Bed Purchasing - Elderly - South,Permanent Nursing,Regent House,1649.08, 28-Jan-2014
1552,Revenue,CCHD,Bed Purchasing - Elderly - South,Permanent Nursing,Regent House,1658.28, 28-Jan-2014
1553,Revenue,CCHD,South Glos Users in South Glos Homes,Permanent Nursing,Regent House,533.27, 28-Jan-2014
1554,Revenue,CCHD,Bed Purchasing - Southmead Hospital,Permanent Nursing,Regent House,1388.52, 28-Jan-2014
1555,Revenue,CCHD,Bed Purchasing - Elderly - South,Permanent Nursing,Regent House,1646.36, 28-Jan-2014
1556,Revenue,CCHD,Bed Purchasing - Elderly MH - South,Permanent Nursing,Regent House,1192.64, 28-Jan-2014
1557,Revenue,CCHD,Bed purchasing - Elderly MH - North,Permanent Nursing,Regent House,1275.76, 28-Jan-2014
1558,Revenue,CCHD,South Glos Users in South Glos Homes,Permanent Nursing,Regent House,1050.85, 28-Jan-2014
1559,Revenue,CCHD,South Glos Users in South Glos Homes,Permanent Nursing,Regent House,2054.64, 28-Jan-2014
1560,Revenue,CCHD,Swift Dump Code,Other Supplies & Services,Regent House,40100, 21-Jan-2014
1561,Revenue,CCHD,Bed Purchasing - Under 65s PWLD - South,Permanent Residential,Ridgeway House,3450.56, 28-Jan-2014
1562,Revenue,CCHD,Swift Dump Code,Other Supplies & Services,Ridgeway House,3400, 21-Jan-2014
1563,Revenue,CCHD,Bed Purchasing - Elderly - South,Respite Emergency - Nursing,Ritzi Care Homes Limited,2061.42, 30-Jan-2014
1564,Revenue,CCHD,Bed Purchasing - Elderly - South,Respite Emergency - Residential,Ritzi Care Homes Limited,2171.43, 24-Jan-2014
1565,Revenue,CCHD,Bed Purchasing - Under 65s PWLD - South,Permanent Residential,Riverside House,3557.92, 28-Jan-2014
1566,Revenue,CCHD,Swift Dump Code,Other Supplies & Services,Riverside House,3500, 21-Jan-2014
1567,Revenue,CCHD,Bed Purchasing - Frenchay Hospital,Permanent Nursing,Riversway Nursing Home,2645.64, 28-Jan-2014
1568,Revenue,CCHD,Swift Dump Code,Other Supplies & Services,Riversway Nursing Home,2600, 21-Jan-2014
1569,Revenue,CCHD,Bed purchasing - Elderly PWLD - South,Permanent Residential,Rockleaze,1408.56, 28-Jan-2014
1570,Revenue,CCHD,Bed Purchasing - LD S28A- Over 65- South,Permanent Residential,Rockleaze,2054.24, 28-Jan-2014
1571,Revenue,CCHD,Bed purchasing - Elderly PWLD - South,Permanent Residential,Rockleaze,2382.32, 28-Jan-2014
1572,Revenue,CCHD,Bed purchasing - Elderly PWLD - South,Permanent Residential,Rockleaze,1408.56, 28-Jan-2014
1573,Revenue,CCHD,Swift Dump Code,Other Supplies & Services,Rockleaze,7200, 21-Jan-2014
1574,Revenue,CCHD,Bed Purchasing - Frenchay Hospital,Permanent Residential,Rodney House Residential Home,3181.5, 28-Jan-2014
1575,Revenue,CCHD,Swift Dump Code,Other Supplies & Services,Rosewood Lodge & Brook House,9000, 21-Jan-2014
1576,Revenue,CCHD,Bed Purchasing - Elderly MH - South,Permanent Residential,Ross Healthcare,1292.56, 28-Jan-2014
1577,Revenue,CCHD,Swift Dump Code,Other Supplies & Services,Ross Healthcare,1200, 21-Jan-2014
1578,Revenue,CCHD,Learning Difficulties,Other Private Contractors,Ruth Price,750, 13-Jan-2014
1579,Revenue,CCHD,Training - Adult Services,Training Expenses,S R Orchard,800, 06-Jan-2014
1580,Revenue,CCHD,Swift Dump Code,Other Supplies & Services,Saffron Gardens,16000, 21-Jan-2014
1581,Revenue,CCHD,Swift Dump Code,Other Supplies & Services,Saffron Gardens,2800, 21-Jan-2014
1582,Revenue,CCHD,Swift Dump Code,Other Supplies & Services,Saffron Gardens,3600, 21-Jan-2014
1583,Revenue,CCHD,Home Care - Elderly - South,Other Small Contracts,Saga Homecare,3475.29, 23-Jan-2014
1584,Revenue,CCHD,Home Care - Elderly - North,Other Small Contracts,Saga Homecare,8129.48, 23-Jan-2014
1585,Revenue,CCHD,Day Care - North,Private & Voluntary Day Care,Saga Homecare,279.3, 23-Jan-2014
1586,Revenue,CCHD,Home care - Elderly MH - North,Other Small Contracts,Saga Homecare,55.86, 23-Jan-2014
1587,Revenue,CCHD,PWLD Home Care - Under 65 - KH,Private & Voluntary Home Care,Saga Homecare,466.83, 23-Jan-2014
1588,Revenue,CCHD,Home Care - Elderly - South,Other Small Contracts,Saga Homecare,3287.76, 13-Jan-2014
1589,Revenue,CCHD,Home Care - Elderly - North,Other Small Contracts,Saga Homecare,8218.44, 13-Jan-2014
1590,Revenue,CCHD,Day Care - North,Private & Voluntary Day Care,Saga Homecare,263.34, 13-Jan-2014
1591,Revenue,CCHD,Home care - Elderly MH - North,Other Small Contracts,Saga Homecare,59.85, 13-Jan-2014
1592,Revenue,CCHD,Home Care - Elderly - South,Other Small Contracts,Saga Homecare,3375.54, 14-Jan-2014
1593,Revenue,CCHD,Home Care - Elderly - North,Other Small Contracts,Saga Homecare,8500.29, 14-Jan-2014
1594,Revenue,CCHD,Day Care - South,Private & Voluntary Day Care,Saga Homecare,43.89, 14-Jan-2014
1595,Revenue,CCHD,Day Care - North,Private & Voluntary Day Care,Saga Homecare,275.31, 14-Jan-2014
1596,Revenue,CCHD,Home care - Elderly MH - North,Other Small Contracts,Saga Homecare,55.86, 14-Jan-2014
1597,Revenue,CCHD,Home Care - Elderly - South,Other Small Contracts,Saga Homecare,3223.92, 23-Jan-2014
1598,Revenue,CCHD,Home Care - Elderly - North,Other Small Contracts,Saga Homecare,8134.65, 23-Jan-2014
1599,Revenue,CCHD,Day Care - North,Private & Voluntary Day Care,Saga Homecare,263.34, 23-Jan-2014
1600,Revenue,CCHD,Home care - Elderly MH - North,Other Small Contracts,Saga Homecare,55.86, 23-Jan-2014
1601,Revenue,CCHD,Home Care - Elderly - South,Other Small Contracts,Saga Homecare,2980.53, 23-Jan-2014
1602,Revenue,CCHD,Home Care - Elderly - North,Other Small Contracts,Saga Homecare,8154.94, 23-Jan-2014
1603,Revenue,CCHD,Day Care - South,Private & Voluntary Day Care,Saga Homecare,47.88, 23-Jan-2014
1604,Revenue,CCHD,Day Care - North,Private & Voluntary Day Care,Saga Homecare,271.32, 23-Jan-2014
1605,Revenue,CCHD,Home care - Elderly MH - North,Other Small Contracts,Saga Homecare,55.86, 23-Jan-2014
1606,Revenue,CCHD,Home Care - Elderly - South,Other Small Contracts,Saga Homecare,2769.06, 31-Jan-2014
1607,Revenue,CCHD,Home Care - Elderly - North,Other Small Contracts,Saga Homecare,8282.28, 31-Jan-2014
1608,Revenue,CCHD,Day Care - North,Private & Voluntary Day Care,Saga Homecare,251.37, 31-Jan-2014
1609,Revenue,CCHD,Home care - Elderly MH - North,Other Small Contracts,Saga Homecare,55.86, 31-Jan-2014
1610,Revenue,CCHD,Home Care - Elderly - South,Other Small Contracts,Saga Homecare,2741.3, 27-Jan-2014
1611,Revenue,CCHD,Home Care - Elderly - North,Other Small Contracts,Saga Homecare,8443.89, 27-Jan-2014
1612,Revenue,CCHD,Day Care - North,Private & Voluntary Day Care,Saga Homecare,549.05, 27-Jan-2014
1613,Revenue,CCHD,Home care - Elderly MH - North,Other Small Contracts,Saga Homecare,225.15, 27-Jan-2014
1614,Revenue,CCHD,Elderly MH Day Care North,Private & Voluntary Day Care,Saga Homecare,134.3, 27-Jan-2014
1615,Revenue,CCHD,Home Care - LD Under 65 - South,Private & Voluntary Home Care,Saga Homecare,252.8, 27-Jan-2014
1616,Revenue,CCHD,PWLD Home Care - Under 65 - KH,Private & Voluntary Home Care,Saga Homecare,695.2, 27-Jan-2014
1617,Revenue,CCHD,Bed Purchasing - Under 65s PWLD - South,Permanent Residential,Salters Hill Barn,2014.52, 28-Jan-2014
1618,Revenue,CCHD,Swift Dump Code,Other Supplies & Services,Salters Hill Barn,2000, 21-Jan-2014
1619,Revenue,CCHD,Bed Purchasing - Southmead Hospital,Permanent Residential,Sanctuary Care Ltd,1270, 28-Jan-2014
1620,Revenue,CCHD,Swift Dump Code,Other Supplies & Services,Sanctuary Care Ltd,1200, 21-Jan-2014
1621,Revenue,CCHD,Learning Difficulties PSL,Rent,Individual,1650, 31-Jan-2014
1622,Revenue,CCHD,Woodleaze,"Provisions (Food, etc)",School Milk Services Limited,872.06, 30-Jan-2014
1623,Revenue,CCHD,Bed purchasing - Under 65s PWLD - North,Permanent Residential,Scope   Accounts Dept,4956.52, 28-Jan-2014
1624,Revenue,CCHD,Swift Dump Code,Other Supplies & Services,Scope   Accounts Dept,4900, 21-Jan-2014
1625,Revenue,CCHD,Bed Purchasing - Under 65s PWLD - South,Permanent Residential,Scope   Accounts Dept,11027.88, 28-Jan-2014
1626,Revenue,CCHD,Swift Dump Code,Other Supplies & Services,Scope   Accounts Dept,3000, 21-Jan-2014
1627,Revenue,CCHD,Supported Living - North,Private & Voluntary Home Care,SeeAbility,5977.97, 06-Jan-2014
1628,Revenue,CCHD,Day Care - North,Private & Voluntary Day Care,SeeAbility,1879.42, 07-Jan-2014
1629,Revenue,CCHD,Supported Living - North,Private & Voluntary Home Care,SeeAbility,1298.58, 06-Jan-2014
1630,Revenue,CCHD,Supported Living - North,Private & Voluntary Home Care,SeeAbility,7364.61, 06-Jan-2014
1631,Revenue,CCHD,Supported Living - North,Private & Voluntary Home Care,SeeAbility,1213.8, 06-Jan-2014
1632,Revenue,CCHD,Supported Living - North,Private & Voluntary Home Care,SeeAbility,6177.24, 30-Jan-2014
1633,Revenue,CCHD,Day Care - North,Private & Voluntary Day Care,SeeAbility,1942.06, 30-Jan-2014
1634,Revenue,CCHD,Supported Living - North,Private & Voluntary Home Care,SeeAbility,1341.86, 30-Jan-2014
1635,Revenue,CCHD,Supported Living - North,Private & Voluntary Home Care,SeeAbility,7610.1, 30-Jan-2014
1636,Revenue,CCHD,Supported Living - North,Private & Voluntary Home Care,SeeAbility,1254.26, 30-Jan-2014
1637,Revenue,CCHD,Supported Living - South,Private & Voluntary Home Care,Selborne Care Ltd,2646.66, 07-Jan-2014
1638,Revenue,CCHD,Supported Living - South,Private & Voluntary Home Care,Selborne Care Ltd,643.6, 07-Jan-2014
1639,Revenue,CCHD,Purchase of Non-Res Care - North,Private & Voluntary Day Care,Selborne Care Ltd,1563.56, 06-Jan-2014
1640,Revenue,CCHD,Supported Living - South,Private & Voluntary Home Care,Selborne Care Ltd,5128.68, 07-Jan-2014
1641,Revenue,CCHD,Purchase of Non-Res Care - North,Private & Voluntary Day Care,Selborne Care Ltd,901.04, 06-Jan-2014
1642,Revenue,CCHD,Supported Living - South,Private & Voluntary Home Care,Selborne Care Ltd,1185.54, 07-Jan-2014
1643,Revenue,CCHD,Purchase of Non-Res Care - North,Private & Voluntary Day Care,Selborne Care Ltd,438.16, 06-Jan-2014
1644,Revenue,CCHD,Purchase of Non-Res Care - North,Private & Voluntary Day Care,Selborne Care Ltd,438.16, 06-Jan-2014
1645,Revenue,CCHD,Supported Living - North,Private & Voluntary Home Care,Selborne Care Ltd,594.38, 06-Jan-2014
1646,Revenue,CCHD,Supported Living - South,Private & Voluntary Home Care,Selborne Care Ltd,514.88, 07-Jan-2014
1647,Revenue,CCHD,Supported Living - South,Private & Voluntary Home Care,Selborne Care Ltd,4617.04, 07-Jan-2014
1648,Revenue,CCHD,Purchase of Non-Res Care - North,Private & Voluntary Day Care,Selborne Care Ltd,786.36, 06-Jan-2014
1649,Revenue,CCHD,Supported Living - South,Private & Voluntary Home Care,Selborne Care Ltd,554.56, 07-Jan-2014
1650,Revenue,CCHD,Supported Living - South,Private & Voluntary Home Care,Selborne Care Ltd,1914.08, 07-Jan-2014
1651,Revenue,CCHD,Purchase of Non-Res Care - North,Private & Voluntary Day Care,Selborne Care Ltd,743.04, 06-Jan-2014
1652,Revenue,CCHD,Supported Living (S28a) South,Private & Voluntary Home Care,Selborne Care Ltd,3326.68, 14-Jan-2014
1653,Revenue,CCHD,Supported Living - South,Private & Voluntary Home Care,Selborne Care Ltd,2618.01, 20-Jan-2014
1654,Revenue,CCHD,Supported Living - South,Private & Voluntary Home Care,Selborne Care Ltd,643.6, 20-Jan-2014
1655,Revenue,CCHD,Purchase of Non-Res Care - North,Private & Voluntary Day Care,Selborne Care Ltd,1517.12, 20-Jan-2014
1656,Revenue,CCHD,Supported Living - South,Private & Voluntary Home Care,Selborne Care Ltd,5128.68, 20-Jan-2014
1657,Revenue,CCHD,Purchase of Non-Res Care - North,Private & Voluntary Day Care,Selborne Care Ltd,675.78, 20-Jan-2014
1658,Revenue,CCHD,Supported Living - South,Private & Voluntary Home Care,Selborne Care Ltd,973.42, 22-Jan-2014
1659,Revenue,CCHD,Purchase of Non-Res Care - North,Private & Voluntary Day Care,Selborne Care Ltd,635.24, 23-Jan-2014
1660,Revenue,CCHD,Supported Living - North,Private & Voluntary Home Care,Selborne Care Ltd,646.48, 20-Jan-2014
1661,Revenue,CCHD,Supported Living - South,Private & Voluntary Home Care,Selborne Care Ltd,514.88, 22-Jan-2014
1662,Revenue,CCHD,Supported Living - South,Private & Voluntary Home Care,Selborne Care Ltd,4614.88, 20-Jan-2014
1663,Revenue,CCHD,Purchase of Non-Res Care - North,Private & Voluntary Day Care,Selborne Care Ltd,775.56, 20-Jan-2014
1664,Revenue,CCHD,Supported Living - South,Private & Voluntary Home Care,Selborne Care Ltd,554.56, 22-Jan-2014
1665,Revenue,CCHD,Supported Living - South,Private & Voluntary Home Care,Selborne Care Ltd,1890.98, 20-Jan-2014
1666,Revenue,CCHD,Purchase of Non-Res Care - North,Private & Voluntary Day Care,Selborne Care Ltd,600.44, 20-Jan-2014
1667,Revenue,CCHD,Supported Living (S28a) South,Private & Voluntary Home Care,Selborne Care Ltd,3326.68, 21-Jan-2014
1668,Revenue,CCHD,Bed Purchasing - Under 65s PWLD - South,Permanent Residential,Shaldon House (Positive Care Ltd),2194, 28-Jan-2014
1669,Revenue,CCHD,Swift Dump Code,Other Supplies & Services,Shaldon House (Positive Care Ltd),2100, 21-Jan-2014
1670,Revenue,CCHD,Swift Dump Code,Other Supplies & Services,Shaw Healthcare Ltd,16300, 21-Jan-2014
1671,Revenue,CCHD,Bed purchasing - S28A Under 65 - South,Permanent Residential,Shaw Healthcare Ltd,9822.56, 28-Jan-2014
1672,Revenue,CCHD,Bed purchasing - S28A Under 65 - South,Permanent Residential,Shaw Healthcare Ltd,9651.76, 28-Jan-2014
1673,Revenue,CCHD,Bed purchasing - S28A Under 65 - South,Permanent Residential,Shaw Healthcare Ltd,9958.62, 28-Jan-2014
1674,Revenue,CCHD,Swift Dump Code,Other Supplies & Services,Shaw Healthcare Ltd,29100, 21-Jan-2014
1675,Revenue,CCHD,Bed Purchasing - Under 65s PWLD - South,Permanent Nursing,Shaw Healthcare Ltd,9754.04, 28-Jan-2014
1676,Revenue,CCHD,Bed Purchasing - Under 65s PWLD - South,Permanent Residential,Shaw Healthcare Ltd,9760.6, 28-Jan-2014
1677,Revenue,CCHD,Bed purchasing - Elderly PWLD - South,Permanent Residential,Shaw Healthcare Ltd,3907.68, 28-Jan-2014
1678,Revenue,CCHD,Bed purchasing - S28A Under 65 - South,Permanent Residential,Shaw Healthcare Ltd,10402.68, 28-Jan-2014
1679,Revenue,CCHD,Bed purchasing - S28A Under 65 - South,Permanent Residential,Shaw Healthcare Ltd,12174.6, 28-Jan-2014
1680,Revenue,CCHD,Bed Purchasing - S28A - Over 65- North,Permanent Residential,Shaw Healthcare Ltd,4238.92, 28-Jan-2014
1681,Revenue,CCHD,Bed Purchasing - S28A - Over 65- North,Permanent Residential,Shaw Healthcare Ltd,4246.2, 28-Jan-2014
1682,Revenue,CCHD,Bed Purchasing - LD S28A- Over 65- South,Permanent Residential,Shaw Healthcare Ltd,4763.2, 28-Jan-2014
1683,Revenue,CCHD,Bed Purchasing - Under 65s PWLD - South,Permanent Nursing,Shaw Healthcare Ltd,10091.08, 28-Jan-2014
1684,Revenue,CCHD,Bed Purchasing - LD S28A- Over 65- South,Permanent Residential,Shaw Healthcare Ltd,4321.32, 28-Jan-2014
1685,Revenue,CCHD,Bed purchasing -S28A  Under 65 - North,Permanent Residential,Shaw Healthcare Ltd,9174, 28-Jan-2014
1686,Revenue,CCHD,Bed Purchasing - S28A - Over 65- North,Permanent Residential,Shaw Healthcare Ltd,8580.2, 28-Jan-2014
1687,Revenue,CCHD,Swift Dump Code,Other Supplies & Services,Shaw Healthcare Ltd,42400, 21-Jan-2014
1688,Revenue,CCHD,Swift Dump Code,Other Supplies & Services,Shaw Healthcare Ltd,21400, 21-Jan-2014
1689,Revenue,CCHD,Swift Dump Code,Other Supplies & Services,Shaw Healthcare Ltd,27500, 21-Jan-2014
1690,Revenue,CCHD,Bed Purchasing - Southmead Hospital,Permanent Residential,Shaw Healthcare Ltd,891.96, 28-Jan-2014
1691,Revenue,CCHD,Bed Purchasing - Elderly - North,Permanent Residential,Shaw Healthcare Ltd,1262, 28-Jan-2014
1692,Revenue,CCHD,Bed Purchasing - Frenchay Hospital,Permanent Residential,Shaw Healthcare Ltd,1119.32, 28-Jan-2014
1693,Revenue,CCHD,Swift Dump Code,Other Supplies & Services,Shaw Healthcare Ltd,3200, 21-Jan-2014
1694,Revenue,CCHD,Purchase of Non-Res Care - North,Private & Voluntary Day Care,Shaw Healthcare Specialist Services Limited,552.05, 02-Jan-2014
1695,Revenue,CCHD,Purchase of Non-Res Care - North,Private & Voluntary Day Care,Shaw Healthcare Specialist Services Limited,515.66, 31-Jan-2014
1696,Revenue,CCHD,Day Care - North,Private & Voluntary Day Care,Silva Care Limited,1072.06, 20-Jan-2014
1697,Revenue,CCHD,Bed purchasing - Under 65s PWLD - North,Permanent Residential,Small House Homes Limited,17754.92, 28-Jan-2014
1698,Revenue,CCHD,Swift Dump Code,Other Supplies & Services,Small House Homes Limited,17700, 21-Jan-2014
1699,Revenue,CCHD,Purchase of Non-Res Care - South,Private & Voluntary Day Care,Smile Independent Living Support Limited,659.57, 21-Jan-2014
1700,Revenue,CCHD,Purchase of Non-Res Care - North,Private & Voluntary Day Care,Smile Independent Living Support Limited,594.48, 14-Jan-2014
1701,Revenue,CCHD,Supported Living - North,Private & Voluntary Home Care,Smile Independent Living Support Limited,505.17, 14-Jan-2014
1702,Revenue,CCHD,Purchase of Non-Res Care - North,Private & Voluntary Day Care,Smile Independent Living Support Limited,651.71, 14-Jan-2014
1703,Revenue,CCHD,Purchase of Non-Res Care - South,Private & Voluntary Day Care,Smile Independent Living Support Limited,720.7, 21-Jan-2014
1704,Revenue,CCHD,Purchase of Non-Res Care - North,Private & Voluntary Day Care,Smile Independent Living Support Limited,933.13, 14-Jan-2014
1705,Revenue,CCHD,Purchase of Non-Res Care - North,Private & Voluntary Day Care,Smile Independent Living Support Limited,727.16, 14-Jan-2014
1706,Revenue,CCHD,Purchase of Non-Res Care - North,Private & Voluntary Day Care,Smile Independent Living Support Limited,675.09, 14-Jan-2014
1707,Revenue,CCHD,Supported Living - North,Private & Voluntary Home Care,Smile Independent Living Support Limited,3261.51, 14-Jan-2014
1708,Revenue,CCHD,Supported Living - North,Private & Voluntary Home Care,Smile Independent Living Support Limited,3362.26, 14-Jan-2014
1709,Revenue,CCHD,Supported Living - North,Private & Voluntary Home Care,Smile Independent Living Support Limited,2815.72, 14-Jan-2014
1710,Revenue,CCHD,Purchase of Non-Res Care - North,Private & Voluntary Day Care,Smile Independent Living Support Limited,528.13, 20-Jan-2014
1711,Revenue,CCHD,Homelessness Grant,Fees & Charges Income - General,Sovereign,1450, 24-Jan-2014
1712,Revenue,CCHD,Community Support - South,Preventative Assistance,Spearman Consultancy,811.4, 07-Jan-2014
1713,Revenue,CCHD,Minor Adaptations Service,Premises Maintenance by Contractor,SSE Contracting Limited,37.73, 22-Jan-2014
1714,Revenue,CCHD,Bed Purchasing - Under 65s PWLD - South,Permanent Residential,St Brigas,2055.56, 28-Jan-2014
1715,Revenue,CCHD,Bed Purchasing - Under 65s PWLD - South,Permanent Residential,St Brigas,2972.08, 28-Jan-2014
1716,Revenue,CCHD,Bed Purchasing - Under 65s PWLD - South,Permanent Residential,St Brigas,2003.32, 28-Jan-2014
1717,Revenue,CCHD,Swift Dump Code,Other Supplies & Services,St Brigas,7000, 21-Jan-2014
1718,Revenue,CCHD,Bed Purchasing - Frenchay Hospital,Permanent Nursing,St George Nursing Home,1302, 28-Jan-2014
1719,Revenue,CCHD,Bed Purchasing - Elderly - South,Permanent Nursing,St George Nursing Home,1302, 28-Jan-2014
1720,Revenue,CCHD,Bed Purchasing - Southmead Hospital,Permanent Nursing,St George Nursing Home,1314, 28-Jan-2014
1721,Revenue,CCHD,Bed Purchasing - Frenchay Hospital,Permanent Nursing,St George Nursing Home,1065.36, 28-Jan-2014
1722,Revenue,CCHD,Swift Dump Code,Other Supplies & Services,St George Nursing Home,1300, 21-Jan-2014
1723,Revenue,CCHD,Swift Dump Code,Other Supplies & Services,St Georges Nursing Home,4200, 21-Jan-2014
1724,Revenue,CCHD,Bed Purchasing - Frenchay Hospital,Permanent Nursing,St Georges Nursing Home (Wellburn Care Homes),9330.45, 28-Jan-2014
1725,Revenue,CCHD,Bed Purchasing - Elderly - North,Permanent Nursing,St Monicas Trust,1016.68, 28-Jan-2014
1726,Revenue,CCHD,Swift Dump Code,Other Supplies & Services,St Monicas Trust,1000, 21-Jan-2014
1727,Revenue,CCHD,Bed Purchasing - Elderly - North,Permanent Nursing,St Monicas Trust,2790.36, 28-Jan-2014
1728,Revenue,CCHD,Swift Dump Code,Other Supplies & Services,St Monicas Trust,2700, 21-Jan-2014
1729,Revenue,CCHD,Bed purchasing - Phys Dis - North,Permanent Residential,St Roses School,2611, 28-Jan-2014
1730,Revenue,CCHD,Bed purchasing - Phys Dis - North,Permanent Residential,St Roses School,3596, 28-Jan-2014
1731,Revenue,CCHD,Bed Purchasing - Elderly - South,Permanent Nursing,St Roses School,3982.76, 24-Jan-2014
1732,Revenue,CCHD,Swift Dump Code,Other Supplies & Services,St Roses School,3900, 17-Jan-2014
1733,Revenue,CCHD,MH Purchasing - Younger,Permanent Nursing,Stanley House,4311.36, 28-Jan-2014
1734,Revenue,CCHD,Swift Dump Code,Other Supplies & Services,Stanley House,4300, 21-Jan-2014
1735,Revenue,CCHD,Bed Purchasing - Under 65s PWLD - South,Permanent Residential,Stepping Stones Re-Sett. Unit,7484.8, 28-Jan-2014
1736,Revenue,CCHD,Swift Dump Code,Other Supplies & Services,Stepping Stones Re-Sett. Unit,7400, 21-Jan-2014
1737,Revenue,CCHD,Sexual Health Services - Contraception,Other Supplies & Services,Stoke Gifford Medical Centre,3933.32, 22-Jan-2014
1738,Revenue,CCHD,Information Systems - Software,Computer Equipment - Purchase,Stone Computers Ltd,2817, 09-Jan-2014
1739,Revenue,CCHD,Information Systems - Software,Computer Services,Stone Computers Ltd,3970, 09-Jan-2014
1740,Revenue,CCHD,Bed Purchasing - Frenchay Hospital,Permanent Residential,Stonebow House,1352.08, 28-Jan-2014
1741,Revenue,CCHD,Swift Dump Code,Other Supplies & Services,Stonebow House,1300, 21-Jan-2014
1742,Revenue,CCHD,Supported Living - North,Private & Voluntary Home Care,Supported Independence Ltd,740.74, 06-Jan-2014
1743,Revenue,CCHD,Supported Living - South,Private & Voluntary Home Care,Supported Independence Ltd,1661.66, 07-Jan-2014
1744,Revenue,CCHD,Day Care - North,Private & Voluntary Day Care,Supported Independence Ltd,3517.73, 07-Jan-2014
1745,Revenue,CCHD,Supported Living - South,Private & Voluntary Home Care,Supported Independence Ltd,666.56, 07-Jan-2014
1746,Revenue,CCHD,Day Care - South,Private & Voluntary Day Care,Supported Independence Ltd,1001, 06-Jan-2014
1747,Revenue,CCHD,Section 117 Placements MH Younger,Private & Voluntary Day Care,Supported Independence Ltd,1081.71, 24-Jan-2014
1748,Revenue,CCHD,Younger MH non-res purchasing,Private & Voluntary Day Care,Supported Independence Ltd,1041.04, 23-Jan-2014
1749,Revenue,CCHD,Section 117 Placements MH Younger,Private & Voluntary Day Care,Supported Independence Ltd,3788.95, 23-Jan-2014
1750,Revenue,CCHD,Section 117 Placements MH Younger,Private & Voluntary Day Care,Supported Independence Ltd,2145.29, 22-Jan-2014
1751,Revenue,CCHD,Section 117 Placements MH Younger,Private & Voluntary Day Care,Supported Independence Ltd,521.1, 23-Jan-2014
1752,Revenue,CCHD,Day Care - South,Private & Voluntary Day Care,Supported Independence Ltd,564.04, 24-Jan-2014
1753,Revenue,CCHD,Supported Living - North,Private & Voluntary Home Care,Supported Independence Ltd,1081.08, 30-Jan-2014
1754,Revenue,CCHD,Section 117 Placements MH Younger,Private & Voluntary Day Care,Supported Independence Ltd,1273.8, 22-Jan-2014
1755,Revenue,CCHD,Supported Living - South,Private & Voluntary Home Care,Supported Independence Ltd,666.56, 27-Jan-2014
1756,Revenue,CCHD,Supported Living - South,Private & Voluntary Home Care,Supported Independence Ltd,3689.29, 22-Jan-2014
1757,Revenue,CCHD,Day Care - North,Private & Voluntary Day Care,Supported Independence Ltd,3637.11, 27-Jan-2014
1758,Revenue,CCHD,Supported Living - South,Private & Voluntary Home Care,Supported Independence Ltd,1541.54, 22-Jan-2014
1759,Revenue,CCHD,Supported Living - North,Private & Voluntary Home Care,Supported Independence Ltd,800.8, 22-Jan-2014
1760,Revenue,CCHD,Section 117 Placements MH Younger,Private & Voluntary Day Care,Supported Independence Ltd,2454.22, 24-Jan-2014
1761,Revenue,CCHD,Section 117 Placements MH Younger,Private & Voluntary Day Care,Supported Independence Ltd,2578.71, 22-Jan-2014
1762,Revenue,CCHD,Supporting People Programme,Grants to Voluntary Bodies,Supported Independence Ltd,6176.25, 31-Jan-2014
1763,Revenue,CCHD,Supporting People Programme,Grants to Voluntary Bodies,Supported Independence Ltd,2986.92, 31-Jan-2014
1764,Revenue,CCHD,Supporting People Programme,Grants to Voluntary Bodies,Supported Independent Living Schemes,4638.08, 31-Jan-2014
1765,Revenue,CCHD,Supporting People Programme,Grants to Voluntary Bodies,Supported Independent Living Schemes,6008.83, 31-Jan-2014
1766,Revenue,CCHD,Supported Living - South,Private & Voluntary Home Care,Supported Independent Living Schemes,642.96, 20-Jan-2014
1767,Revenue,CCHD,Day Care - South,Private & Voluntary Day Care,Supporting Options,562.65, 30-Jan-2014
1768,Revenue,CCHD,Supported Living - South,Private & Voluntary Home Care,Supporting Options,1293.43, 22-Jan-2014
1769,Revenue,CCHD,Day Care - South,Private & Voluntary Day Care,Supporting Options,2188.31, 21-Jan-2014
1770,Revenue,CCHD,Bed Purchasing - Southmead Hospital,Permanent Nursing,Sutherland House,1382.28, 28-Jan-2014
1771,Revenue,CCHD,Swift Dump Code,Other Supplies & Services,Sutherland House,1300, 21-Jan-2014
1772,Revenue,CCHD,Swift Dump Code,Other Supplies & Services,Templemore Care Home,3800, 21-Jan-2014
1773,Revenue,CCHD,Sexual Health Services - STI & Treatment,Other Supplies & Services,Tesco,848, 27-Jan-2014
1774,Revenue,CCHD,Minor Adaptations Service,Operational Equipment,Tewkesbury Saw Co Limited,421.6, 17-Jan-2014
1775,Revenue,CCHD,Bed Purchasing - Under 65s PWLD - South,Permanent Residential,The Ann Coleman Centre,5968.36, 28-Jan-2014
1776,Revenue,CCHD,Swift Dump Code,Other Supplies & Services,The Ann Coleman Centre,5900, 21-Jan-2014
1777,Revenue,CCHD,Swift Dump Code,Other Supplies & Services,The Beeches,6000, 21-Jan-2014
1778,Revenue,CCHD,Supported Living - North,Private & Voluntary Home Care,The Brandon Trust,8848.64, 13-Jan-2014
1779,Revenue,CCHD,Day Care - North,Private & Voluntary Day Care,The Brandon Trust,757.44, 28-Jan-2014
1780,Revenue,CCHD,Supported Living - South,Private & Voluntary Home Care,The Brandon Trust,1140, 22-Jan-2014
1781,Revenue,CCHD,Supported Living - South,Private & Voluntary Home Care,The Brandon Trust,505.07, 22-Jan-2014
1782,Revenue,CCHD,Purchase of Non-Res Care - North,Private & Voluntary Day Care,The Brandon Trust,336.71, 23-Jan-2014
1783,Revenue,CCHD,Purchase of Non-Res Care - North,Private & Voluntary Day Care,The Brandon Trust,5892.47, 23-Jan-2014
1784,Revenue,CCHD,Purchase of Non-Res Care - North,Private & Voluntary Day Care,The Brandon Trust,1178.49, 23-Jan-2014
1785,Revenue,CCHD,Purchase of Non-Res Care - North,Private & Voluntary Day Care,The Brandon Trust,1125.88, 23-Jan-2014
1786,Revenue,CCHD,Purchase of Non-Res Care - North,Private & Voluntary Day Care,The Brandon Trust,531.37, 23-Jan-2014
1787,Revenue,CCHD,Purchase of Non-Res Care - North,Private & Voluntary Day Care,The Brandon Trust,284.1, 23-Jan-2014
1788,Revenue,CCHD,Purchase of Non-Res Care - North,Private & Voluntary Day Care,The Brandon Trust,331.45, 23-Jan-2014
1789,Revenue,CCHD,Purchase of Non-Res Care - South,Private & Voluntary Day Care,The Brandon Trust,336.72, 22-Jan-2014
1790,Revenue,CCHD,Purchase of Non-Res Care - South,Private & Voluntary Day Care,The Brandon Trust,5892.46, 22-Jan-2014
1791,Revenue,CCHD,Purchase of Non-Res Care - South,Private & Voluntary Day Care,The Brandon Trust,768.12, 22-Jan-2014
1792,Revenue,CCHD,Purchase of Non-Res Care - South,Private & Voluntary Day Care,The Brandon Trust,852.3, 22-Jan-2014
1793,Revenue,CCHD,Purchase of Non-Res Care - South,Private & Voluntary Day Care,The Brandon Trust,3745.92, 22-Jan-2014
1794,Revenue,CCHD,Purchase of Non-Res Care - South,Private & Voluntary Day Care,The Brandon Trust,3209.29, 22-Jan-2014
1795,Revenue,CCHD,Purchase of Non-Res Care - South,Private & Voluntary Day Care,The Brandon Trust,220.97, 22-Jan-2014
1796,Revenue,CCHD,Purchase of Non-Res Care - South,Private & Voluntary Day Care,The Brandon Trust,457.72, 22-Jan-2014
1797,Revenue,CCHD,Purchase of Non-Res Care - South,Private & Voluntary Day Care,The Camphill Village Trust,3490.87, 17-Jan-2014
1798,Revenue,CCHD,Swift Dump Code,Other Supplies & Services,The Cidermill,8400, 21-Jan-2014
1799,Revenue,CCHD,Bed Purchasing - Southmead Hospital,Permanent Residential,The Cidermill,932.24, 28-Jan-2014
1800,Revenue,CCHD,Swift Dump Code,Other Supplies & Services,The Cidermill,900, 21-Jan-2014
1801,Revenue,CCHD,Woodleaze,Cleaning & Domestic Services,The Consortium,374.78, 29-Jan-2014
1802,Revenue,CCHD,Woodleaze,Personal Needs of Clients,The Consortium,64.5, 29-Jan-2014
1803,Revenue,CCHD,Swift Dump Code,Other Supplies & Services,The Cottage,2600, 17-Jan-2014
1804,Revenue,CCHD,Bed purchasing - Under 65s PWLD - North,Permanent Residential,The David Lewis Centre,5809, 28-Jan-2014
1805,Revenue,CCHD,Swift Dump Code,Other Supplies & Services,The David Lewis Centre,5800, 21-Jan-2014
1806,Revenue,CCHD,Bed Purchasing - Southmead Hospital,Permanent Residential,The Gables Residential Home,1366.68, 28-Jan-2014
1807,Revenue,CCHD,Bed purchasing - Elderly S117 - South,Permanent Residential,The Gables Residential Home,2214.12, 28-Jan-2014
1808,Revenue,CCHD,Bed Purchasing - Southmead Hospital,Permanent Residential,The Gables Residential Home,976.08, 28-Jan-2014
1809,Revenue,CCHD,Bed Purchasing - Elderly - South,Permanent Residential,The Gables Residential Home,1286.4, 28-Jan-2014
1810,Revenue,CCHD,Bed Purchasing - Elderly - South,Permanent Residential,The Gables Residential Home,995.04, 28-Jan-2014
1811,Revenue,CCHD,Swift Dump Code,Other Supplies & Services,The Gables Residential Home,7200, 21-Jan-2014
1812,Revenue,CCHD,Bed Purchasing - Elderly - South,Permanent Residential,The Garden House,752.96, 28-Jan-2014
1813,Revenue,CCHD,Bed Purchasing - Elderly - North,Permanent Residential,The Garden House,697.04, 28-Jan-2014
1814,Revenue,CCHD,Bed Purchasing - Elderly - South,Permanent Residential,The Garden House,4828.57, 28-Jan-2014
1815,Revenue,CCHD,Bed Purchasing - Frenchay Hospital,Permanent Residential,The Garden House,1233.48, 28-Jan-2014
1816,Revenue,CCHD,Bed purchasing - Elderly MH - North,Permanent Residential,The Garden House,1651.76, 28-Jan-2014
1817,Revenue,CCHD,Bed Purchasing - Elderly - South,Permanent Residential,The Garden House,1492.8, 28-Jan-2014
1818,Revenue,CCHD,Bed Purchasing - Elderly S117- North,Permanent Residential,The Garden House,1900, 28-Jan-2014
1819,Revenue,CCHD,Bed Purchasing - Elderly - North,Permanent Residential,The Garden House,1244.04, 28-Jan-2014
1820,Revenue,CCHD,Bed Purchasing - Elderly - South,Permanent Residential,The Garden House,1377.12, 28-Jan-2014
1821,Revenue,CCHD,Bed Purchasing - Frenchay Hospital,Permanent Residential,The Garden House,1900, 28-Jan-2014
1822,Revenue,CCHD,Bed Purchasing - Elderly MH - South,Permanent Residential,The Garden House,1213.16, 28-Jan-2014
1823,Revenue,CCHD,Bed purchasing - Elderly MH - North,Respite Emergency - Residential,The Garden House,2042.86, 28-Jan-2014
1824,Revenue,CCHD,Swift Dump Code,Other Supplies & Services,The Garden House,4600, 21-Jan-2014
